Workbook

Sheet Intro

Sheet Notes & Assumptions

Sheet Version History
B1: Version History
B2: Version | C2: Description | E2: Date Published
B3: 1 | C3: SAU Price Control Model FY26−FY28 | E3: 1 May 2025

Sheet Compliance Summary
B1: Cell colour meanings
B2: Input cell
B3: Calculation cell
B5: Compliance Summary
B6: 2D.2 Weighted average price control (WAPC)
B7: Note: For the first financial year (i.e., prices stated in the FY26 Tariff List), nbn has confirmed that the prices comply with the WAPC formula in clause 2D.2.2 of the SAU. For the second and third financial years in the Pricing Roadmap, nbn has assessed whether the prices are expected to comply with the WAPC formula based on forecasts of CPI and forecast quantities of WAPC Charge Components and Forecast Average Combined Charges for Bundled TC-4 Offers.
C11: FY26 | D11: FY27 | E11: FY28
B12: WAPC allowance | C12: =_xlfn.XLOOKUP('Compliance Summary'!C$11,'WAPC Inputs'!$C$9:$E$9,'WAPC Inputs'!$C$17:$E$17) -> 0.024 | D12: =_xlfn.XLOOKUP('Compliance Summary'!D$11,'WAPC Inputs'!$C$9:$E$9,'WAPC Inputs'!$C$17:$E$17) -> 0.037 | E12: =_xlfn.XLOOKUP('Compliance Summary'!E$11,'WAPC Inputs'!$C$9:$E$9,'WAPC Inputs'!$C$17:$E$17) -> 0.028
B14: Weighted average price change | C14: =SUMPRODUCT('WAPC Price & Quantity'!G$17:G$997, 'WAPC Price & Quantity'!O$17:O$997) / SUMPRODUCT('WAPC Price & Quantity'!F$17:F$997, 'WAPC Price & Quantity'!O$17:O$997) - 1 -> 0.02352165562 | D14: =SUMPRODUCT('WAPC Price & Quantity'!H$17:H$997, 'WAPC Price & Quantity'!P$17:P$997) / SUMPRODUCT('WAPC Price & Quantity'!G$17:G$997, 'WAPC Price & Quantity'!P$17:P$997) - 1 -> 0.03684318279 | E14: =SUMPRODUCT((ISNUMBER(SEARCH("CSAS", 'WAPC Price & Quantity'!B$17:B$997))=FALSE)*'WAPC Price & Quantity'!I$17:I$997, 'WAPC Price & Quantity'!Q$17:Q$997) / SUMPRODUCT((ISNUMBER(SEARCH("CSAS", 'WAPC Price & Quantity'!B$17:B$997))=FALSE)*'WAPC Price & Quantity'!H$17:H$997, 'WAPC Price & Quantity'!Q$17:Q$997) - 1 -> 0.02777542996
C15: =IF(C14<=C12,"Compliant","Not compliant") -> Compliant | D15: =IF(D14<=D12,"Compliant","Not compliant") -> Compliant | E15: =IF(E14<=E12,"Compliant","Not compliant") -> Compliant
B18: 2C.2 Restriction on changes to price relativities
B19: Note: The reference to 'Year 2 Indicative Prices in Roadmap t − 1' is to the indicative FY26 prices included in Year 2 of the Pricing Roadmap FY25-FY27.
C21: Minimum price difference | D21: Maximum price difference | E21: Price difference delta
B22: TC-4 price relativity restriction | C22: =MIN(H26:H54) -> -1 | D22: =MAX(H26:H54) -> 0 | E22: =D22-C22 -> 1 | F22: =IF(AND(E22<=1,E22>=-1),"Compliant", "Not compliant") -> Compliant
B25: Tariff List Table References | C25: WAPC Charge Component | D25: Access Network | E25: Individual Price Control | F25: FY26 Tariff List | G25: Year 2 Indicative Prices in Roadmap t − 1 | H25: Price Difference
B26: =_xlfn._xlws.FILTER('WAPC Price & Quantity'!B:E, ISNUMBER(SEARCH("TC-4", 'WAPC Price & Quantity'!C:C)) * NOT(ISNUMBER(SEARCH("CVC", 'WAPC Price & Quantity'!C:C)))) -> 1.3 Bundled TC-4 Offers | C26: AVC TC-4 12/1 Mbps (Basic Bundled Offer) | D26: Fibre, FTTB, FTTN, FTTC, HFC | E26: Other fixed line and fixed wireless TC-4 | F26: =_xlfn._xlws.FILTER('WAPC Price & Quantity'!$G:$G,('WAPC Price & Quantity'!$C:$C=C26)*('WAPC Price & Quantity'!$D:$D=D26)) -> 12.01 | G26: =_xlfn._xlws.FILTER('TC-4 Price Relativity Inputs'!$F:$F,('TC-4 Price Relativity Inputs'!$C:$C=C26)*('TC-4 Price Relativity Inputs'!$D:$D=D26)) -> 12.01 | H26: =F26-G26 -> 0
B27: 1.3 Bundled TC-4 Offers | C27: AVC TC-4 12/1 Mbps | D27: Fibre, FTTB, FTTN, FTTC, HFC, Wireless | E27: Other fixed line and fixed wireless TC-4 | F27: =_xlfn._xlws.FILTER('WAPC Price & Quantity'!$G:$G,('WAPC Price & Quantity'!$C:$C=C27)*('WAPC Price & Quantity'!$D:$D=D27)) -> 33.47 | G27: =_xlfn._xlws.FILTER('TC-4 Price Relativity Inputs'!$F:$F,('TC-4 Price Relativity Inputs'!$C:$C=C27)*('TC-4 Price Relativity Inputs'!$D:$D=D27)) -> 33.89 | H27: =F27-G27 -> -0.42
B28: 1.3 Bundled TC-4 Offers | C28: AVC TC-4 25/5 Mbps | D28: Fibre, FTTB, FTTN, FTTC, HFC, Wireless | E28: Entry level TC-4 | F28: =_xlfn._xlws.FILTER('WAPC Price & Quantity'!$G:$G,('WAPC Price & Quantity'!$C:$C=C28)*('WAPC Price & Quantity'!$D:$D=D28)) -> 34.64 | G28: =_xlfn._xlws.FILTER('TC-4 Price Relativity Inputs'!$F:$F,('TC-4 Price Relativity Inputs'!$C:$C=C28)*('TC-4 Price Relativity Inputs'!$D:$D=D28)) -> 34.75 | H28: -0.11
B29: 1.3 Bundled TC-4 Offers | C29: AVC TC-4 25/5-10 Mbps | D29: FTTB, FTTN | E29: Other fixed line and fixed wireless TC-4 | F29: =_xlfn._xlws.FILTER('WAPC Price & Quantity'!$G:$G,('WAPC Price & Quantity'!$C:$C=C29)*('WAPC Price & Quantity'!$D:$D=D29)) -> 34.64 | G29: =_xlfn._xlws.FILTER('TC-4 Price Relativity Inputs'!$F:$F,('TC-4 Price Relativity Inputs'!$C:$C=C29)*('TC-4 Price Relativity Inputs'!$D:$D=D29)) -> 34.75 | H29: -0.11
B30: 1.3 Bundled TC-4 Offers | C30: AVC TC-4 25/10 Mbps | D30: Fibre, FTTC, HFC | E30: Other fixed line and fixed wireless TC-4 | F30: =_xlfn._xlws.FILTER('WAPC Price & Quantity'!$G:$G,('WAPC Price & Quantity'!$C:$C=C30)*('WAPC Price & Quantity'!$D:$D=D30)) -> 34.64 | G30: =_xlfn._xlws.FILTER('TC-4 Price Relativity Inputs'!$F:$F,('TC-4 Price Relativity Inputs'!$C:$C=C30)*('TC-4 Price Relativity Inputs'!$D:$D=D30)) -> 34.75 | H30: -0.11
B31: 1.3 Bundled TC-4 Offers | C31: AVC TC-4 25-50/5-20 Mbps | D31: FTTB, FTTN | E31: Other fixed line and fixed wireless TC-4 | F31: =_xlfn._xlws.FILTER('WAPC Price & Quantity'!$G:$G,('WAPC Price & Quantity'!$C:$C=C31)*('WAPC Price & Quantity'!$D:$D=D31)) -> 55.19 | G31: =_xlfn._xlws.FILTER('TC-4 Price Relativity Inputs'!$F:$F,('TC-4 Price Relativity Inputs'!$C:$C=C31)*('TC-4 Price Relativity Inputs'!$D:$D=D31)) -> 55.59 | H31: -0.4
B32: 1.3 Bundled TC-4 Offers | C32: AVC TC-4 50/20 Mbps | D32: Fibre, FTTC, HFC | E32: Other fixed line and fixed wireless TC-4 | F32: =_xlfn._xlws.FILTER('WAPC Price & Quantity'!$G:$G,('WAPC Price & Quantity'!$C:$C=C32)*('WAPC Price & Quantity'!$D:$D=D32)) -> 55.19 | G32: =_xlfn._xlws.FILTER('TC-4 Price Relativity Inputs'!$F:$F,('TC-4 Price Relativity Inputs'!$C:$C=C32)*('TC-4 Price Relativity Inputs'!$D:$D=D32)) -> 55.59 | H32: -0.4
B33: 1.3 Bundled TC-4 Offers | C33: AVC TC-4 up to 100/up to 20 Mbps | D33: Wireless | E33: Other fixed line and fixed wireless TC-4 | F33: =_xlfn._xlws.FILTER('WAPC Price & Quantity'!$G:$G,('WAPC Price & Quantity'!$C:$C=C33)*('WAPC Price & Quantity'!$D:$D=D33)) -> 55.19 | G33: =_xlfn._xlws.FILTER('TC-4 Price Relativity Inputs'!$F:$F,('TC-4 Price Relativity Inputs'!$C:$C=C33)*('TC-4 Price Relativity Inputs'!$D:$D=D33)) -> 55.59 | H33: -0.4
B34: 1.4 Bundled TC-4 Offers: Smart Places | C34: Smart Places - AVC TC-4 25/10 Mbps | D34: Fibre | E34: Other fixed line and fixed wireless TC-4 | F34: =_xlfn._xlws.FILTER('WAPC Price & Quantity'!$G:$G,('WAPC Price & Quantity'!$C:$C=C34)*('WAPC Price & Quantity'!$D:$D=D34)) -> 34.64 | G34: =_xlfn._xlws.FILTER('TC-4 Price Relativity Inputs'!$F:$F,('TC-4 Price Relativity Inputs'!$C:$C=C34)*('TC-4 Price Relativity Inputs'!$D:$D=D34)) -> 34.75 | H34: -0.11
B35: 1.4 Bundled TC-4 Offers: Smart Places | C35: Smart Places - AVC TC-4 50/20 Mbps | D35: Fibre | E35: Other fixed line and fixed wireless TC-4 | F35: =_xlfn._xlws.FILTER('WAPC Price & Quantity'!$G:$G,('WAPC Price & Quantity'!$C:$C=C35)*('WAPC Price & Quantity'!$D:$D=D35)) -> 55.19 | G35: =_xlfn._xlws.FILTER('TC-4 Price Relativity Inputs'!$F:$F,('TC-4 Price Relativity Inputs'!$C:$C=C35)*('TC-4 Price Relativity Inputs'!$D:$D=D35)) -> 55.59 | H35: -0.4
B36: 1.1 Flat-Rate Offers | C36: AVC TC-4 25-100/5-20 Mbps | D36: FTTB, FTTN | E36: Other fixed line and fixed wireless TC-4 | F36: =_xlfn._xlws.FILTER('WAPC Price & Quantity'!$G:$G,('WAPC Price & Quantity'!$C:$C=C36)*('WAPC Price & Quantity'!$D:$D=D36)) -> 58.53 | G36: =_xlfn._xlws.FILTER('TC-4 Price Relativity Inputs'!$F:$F,('TC-4 Price Relativity Inputs'!$C:$C=C36)*('TC-4 Price Relativity Inputs'!$D:$D=D36)) -> 58.93 | H36: -0.4
B37: 1.1 Flat-Rate Offers | C37: AVC TC-4 50-100/20 Mbps | D37: FTTC | E37: Other fixed line and fixed wireless TC-4 | F37: =_xlfn._xlws.FILTER('WAPC Price & Quantity'!$G:$G,('WAPC Price & Quantity'!$C:$C=C37)*('WAPC Price & Quantity'!$D:$D=D37)) -> 58.53 | G37: =_xlfn._xlws.FILTER('TC-4 Price Relativity Inputs'!$F:$F,('TC-4 Price Relativity Inputs'!$C:$C=C37)*('TC-4 Price Relativity Inputs'!$D:$D=D37)) -> 58.93 | H37: -0.4
B38: 1.1 Flat-Rate Offers | C38: AVC TC-4 100/20 Mbps | D38: Fibre, HFC | E38: Other fixed line and fixed wireless TC-4 | F38: =_xlfn._xlws.FILTER('WAPC Price & Quantity'!$G:$G,('WAPC Price & Quantity'!$C:$C=C38)*('WAPC Price & Quantity'!$D:$D=D38)) -> 58.53 | G38: =_xlfn._xlws.FILTER('TC-4 Price Relativity Inputs'!$F:$F,('TC-4 Price Relativity Inputs'!$C:$C=C38)*('TC-4 Price Relativity Inputs'!$D:$D=D38)) -> 58.93 | H38: -0.4
B39: 1.1 Flat-Rate Offers | C39: AVC TC-4 200-250/8-20 Mbps | D39: Wireless | E39: Other fixed line and fixed wireless TC-4 | F39: =_xlfn._xlws.FILTER('WAPC Price & Quantity'!$G:$G,('WAPC Price & Quantity'!$C:$C=C39)*('WAPC Price & Quantity'!$D:$D=D39)) -> 58.53 | G39: =_xlfn._xlws.FILTER('TC-4 Price Relativity Inputs'!$F:$F,('TC-4 Price Relativity Inputs'!$C:$C=C39)*('TC-4 Price Relativity Inputs'!$D:$D=D39)) -> 58.93 | H39: -0.4
B40: 1.1 Flat-Rate Offers | C40: AVC TC-4 25-100/5-40 Mbps | D40: FTTB, FTTN | E40: Other fixed line and fixed wireless TC-4 | F40: =_xlfn._xlws.FILTER('WAPC Price & Quantity'!$G:$G,('WAPC Price & Quantity'!$C:$C=C40)*('WAPC Price & Quantity'!$D:$D=D40)) -> 61.53 | G40: =_xlfn._xlws.FILTER('TC-4 Price Relativity Inputs'!$F:$F,('TC-4 Price Relativity Inputs'!$C:$C=C40)*('TC-4 Price Relativity Inputs'!$D:$D=D40)) -> 61.93 | H40: -0.4
B41: 1.1 Flat-Rate Offers | C41: AVC TC-4 50-100/20-40 Mbps | D41: FTTC | E41: Other fixed line and fixed wireless TC-4 | F41: =_xlfn._xlws.FILTER('WAPC Price & Quantity'!$G:$G,('WAPC Price & Quantity'!$C:$C=C41)*('WAPC Price & Quantity'!$D:$D=D41)) -> 61.53 | G41: =_xlfn._xlws.FILTER('TC-4 Price Relativity Inputs'!$F:$F,('TC-4 Price Relativity Inputs'!$C:$C=C41)*('TC-4 Price Relativity Inputs'!$D:$D=D41)) -> 61.93 | H41: -0.4
B42: 1.1 Flat-Rate Offers | C42: AVC TC-4 100/40 Mbps | D42: Fibre, HFC | E42: Other fixed line and fixed wireless TC-4 | F42: =_xlfn._xlws.FILTER('WAPC Price & Quantity'!$G:$G,('WAPC Price & Quantity'!$C:$C=C42)*('WAPC Price & Quantity'!$D:$D=D42)) -> 61.53 | G42: =_xlfn._xlws.FILTER('TC-4 Price Relativity Inputs'!$F:$F,('TC-4 Price Relativity Inputs'!$C:$C=C42)*('TC-4 Price Relativity Inputs'!$D:$D=D42)) -> 61.93 | H42: -0.4
B43: 1.1 Flat-Rate Offers | C43: AVC TC-4 250/25 Mbps | D43: Fibre, HFC | E43: Other fixed line and fixed wireless TC-4 | F43: =_xlfn._xlws.FILTER('WAPC Price & Quantity'!$G:$G,('WAPC Price & Quantity'!$C:$C=C43)*('WAPC Price & Quantity'!$D:$D=D43)) -> 63.93 | G43: =_xlfn._xlws.FILTER('TC-4 Price Relativity Inputs'!$F:$F,('TC-4 Price Relativity Inputs'!$C:$C=C43)*('TC-4 Price Relativity Inputs'!$D:$D=D43)) -> 63.93 | H43: 0
B44: 1.1 Flat-Rate Offers | C44: AVC TC-4 400/10-40 Mbps | D44: Wireless | E44: Other fixed line and fixed wireless TC-4 | F44: =_xlfn._xlws.FILTER('WAPC Price & Quantity'!$G:$G,('WAPC Price & Quantity'!$C:$C=C44)*('WAPC Price & Quantity'!$D:$D=D44)) -> 63.93 | G44: =_xlfn._xlws.FILTER('TC-4 Price Relativity Inputs'!$F:$F,('TC-4 Price Relativity Inputs'!$C:$C=C44)*('TC-4 Price Relativity Inputs'!$D:$D=D44)) -> 63.93 | H44: 0
B45: 1.1 Flat-Rate Offers | C45: AVC TC-4 250/100 Mbps | D45: Fibre | E45: Other fixed line and fixed wireless TC-4 | F45: =_xlfn._xlws.FILTER('WAPC Price & Quantity'!$G:$G,('WAPC Price & Quantity'!$C:$C=C45)*('WAPC Price & Quantity'!$D:$D=D45)) -> 75.5 | G45: =_xlfn._xlws.FILTER('TC-4 Price Relativity Inputs'!$F:$F,('TC-4 Price Relativity Inputs'!$C:$C=C45)*('TC-4 Price Relativity Inputs'!$D:$D=D45)) -> 76.5 | H45: -1
B46: 1.1 Flat-Rate Offers | C46: AVC TC-4 500/200 Mbps | D46: Fibre | E46: Other fixed line and fixed wireless TC-4 | F46: =_xlfn._xlws.FILTER('WAPC Price & Quantity'!$G:$G,('WAPC Price & Quantity'!$C:$C=C46)*('WAPC Price & Quantity'!$D:$D=D46)) -> 101 | G46: =_xlfn._xlws.FILTER('TC-4 Price Relativity Inputs'!$F:$F,('TC-4 Price Relativity Inputs'!$C:$C=C46)*('TC-4 Price Relativity Inputs'!$D:$D=D46)) -> 102 | H46: -1
B47: 1.1 Flat-Rate Offers | C47: AVC TC-4 1000/50 Mbps | D47: Fibre, HFC | E47: Other fixed line and fixed wireless TC-4 | F47: =_xlfn._xlws.FILTER('WAPC Price & Quantity'!$G:$G,('WAPC Price & Quantity'!$C:$C=C47)*('WAPC Price & Quantity'!$D:$D=D47)) -> 73.93 | G47: =_xlfn._xlws.FILTER('TC-4 Price Relativity Inputs'!$F:$F,('TC-4 Price Relativity Inputs'!$C:$C=C47)*('TC-4 Price Relativity Inputs'!$D:$D=D47)) -> 73.93 | H47: 0
B48: 1.1 Flat-Rate Offers | C48: AVC TC-4 1000/400 Mbps | D48: Fibre | E48: Other fixed line and fixed wireless TC-4 | F48: =_xlfn._xlws.FILTER('WAPC Price & Quantity'!$G:$G,('WAPC Price & Quantity'!$C:$C=C48)*('WAPC Price & Quantity'!$D:$D=D48)) -> 126.5 | G48: =_xlfn._xlws.FILTER('TC-4 Price Relativity Inputs'!$F:$F,('TC-4 Price Relativity Inputs'!$C:$C=C48)*('TC-4 Price Relativity Inputs'!$D:$D=D48)) -> 127.5 | H48: -1
B49: 1.2 Flat-Rate Offers - Smart Places | C49: Smart Places - AVC TC-4 100/40 Mbps | D49: Fibre | E49: Other fixed line and fixed wireless TC-4 | F49: =_xlfn._xlws.FILTER('WAPC Price & Quantity'!$G:$G,('WAPC Price & Quantity'!$C:$C=C49)*('WAPC Price & Quantity'!$D:$D=D49)) -> 61.53 | G49: =_xlfn._xlws.FILTER('TC-4 Price Relativity Inputs'!$F:$F,('TC-4 Price Relativity Inputs'!$C:$C=C49)*('TC-4 Price Relativity Inputs'!$D:$D=D49)) -> 61.93 | H49: -0.4
B50: 1.2 Flat-Rate Offers - Smart Places | C50: Smart Places - AVC TC-4 250/100 Mbps | D50: Fibre | E50: Other fixed line and fixed wireless TC-4 | F50: =_xlfn._xlws.FILTER('WAPC Price & Quantity'!$G:$G,('WAPC Price & Quantity'!$C:$C=C50)*('WAPC Price & Quantity'!$D:$D=D50)) -> 75.5 | G50: =_xlfn._xlws.FILTER('TC-4 Price Relativity Inputs'!$F:$F,('TC-4 Price Relativity Inputs'!$C:$C=C50)*('TC-4 Price Relativity Inputs'!$D:$D=D50)) -> 76.5 | H50: -1
B51: 1.2 Flat-Rate Offers - Smart Places | C51: Smart Places - AVC TC-4 500/200 Mbps | D51: Fibre | E51: Other fixed line and fixed wireless TC-4 | F51: =_xlfn._xlws.FILTER('WAPC Price & Quantity'!$G:$G,('WAPC Price & Quantity'!$C:$C=C51)*('WAPC Price & Quantity'!$D:$D=D51)) -> 101 | G51: =_xlfn._xlws.FILTER('TC-4 Price Relativity Inputs'!$F:$F,('TC-4 Price Relativity Inputs'!$C:$C=C51)*('TC-4 Price Relativity Inputs'!$D:$D=D51)) -> 102 | H51: -1
B52: 1.2 Flat-Rate Offers - Smart Places | C52: Smart Places - AVC TC-4 1000/400 Mbps | D52: Fibre | E52: Other fixed line and fixed wireless TC-4 | F52: =_xlfn._xlws.FILTER('WAPC Price & Quantity'!$G:$G,('WAPC Price & Quantity'!$C:$C=C52)*('WAPC Price & Quantity'!$D:$D=D52)) -> 126.5 | G52: =_xlfn._xlws.FILTER('TC-4 Price Relativity Inputs'!$F:$F,('TC-4 Price Relativity Inputs'!$C:$C=C52)*('TC-4 Price Relativity Inputs'!$D:$D=D52)) -> 127.5 | H52: -1
B53: 1.5 Asymmetric AVC Offers in respect of the NBN Co Satellite Network | C53: AVC TC-4 12/1 Mbps | D53: Satellite | E53: Satellite AVC TC-4 | F53: =_xlfn._xlws.FILTER('WAPC Price & Quantity'!$G:$G,('WAPC Price & Quantity'!$C:$C=C53)*('WAPC Price & Quantity'!$D:$D=D53)) -> 24 | G53: =_xlfn._xlws.FILTER('TC-4 Price Relativity Inputs'!$F:$F,('TC-4 Price Relativity Inputs'!$C:$C=C53)*('TC-4 Price Relativity Inputs'!$D:$D=D53)) -> 24 | H53: 0
B54: 1.5 Asymmetric AVC Offers in respect of the NBN Co Satellite Network | C54: AVC TC-4 25/5 Mbps | D54: Satellite | E54: Satellite AVC TC-4 | F54: =_xlfn._xlws.FILTER('WAPC Price & Quantity'!$G:$G,('WAPC Price & Quantity'!$C:$C=C54)*('WAPC Price & Quantity'!$D:$D=D54)) -> 27 | G54: =_xlfn._xlws.FILTER('TC-4 Price Relativity Inputs'!$F:$F,('TC-4 Price Relativity Inputs'!$C:$C=C54)*('TC-4 Price Relativity Inputs'!$D:$D=D54)) -> 27 | H54: 0
B57: 2E.2 Individual price controls
B58: 2E.2.1 Entry Level Offers, 2E.2.2(a)-(c) Fixed line and fixed wireless TC-4 offers, 2E.2.3 Satellite TC-4 products
B59: Note: For the first financial year (i.e., prices stated in the FY26 Tariff List), nbn has confirmed that the prices comply with the Individual Price Controls. For the second and third financial years in the Pricing Roadmap, nbn has assessed whether the prices are expected to comply with the Individual Price Controls based on forecasts of CPI and Forecast Average Combined Charges for Bundled TC-4 Offers.
B62: Greater of 5% and the December Quarter CPI published in Financial Year t − 1 | C62: 0.05
C64: Price Increase Limit
B65: Individual Price Control | C65: FY26 | D65: FY27 | E65: FY28
B66: Entry level TC-4 | C66: =_xlfn.XLOOKUP(C$65,'WAPC Inputs'!$C$9:$E$9,'WAPC Inputs'!$C$11:$E$11) -> 0.024 | D66: =_xlfn.XLOOKUP(D$65,'WAPC Inputs'!$C$9:$E$9,'WAPC Inputs'!$C$11:$E$11) -> 0.037 | E66: =_xlfn.XLOOKUP(E$65,'WAPC Inputs'!$C$9:$E$9,'WAPC Inputs'!$C$11:$E$11) -> 0.028
B67: Other fixed line and fixed wireless TC-4 | C67: =MAX(C$66,'Compliance Summary'!$C$62) -> 0.05 | D67: =MAX(D$66,'Compliance Summary'!$C$62) -> 0.05 | E67: =MAX(E$66,'Compliance Summary'!$C$62) -> 0.05
B68: Satellite AVC TC-4 | C68: =C66 -> 0.024 | D68: =D66 -> 0.037 | E68: =E66 -> 0.028
B69: Satellite CVC TC-4 | C69: 0 | D69: 0 | E69: 0
C71: Maximum Tariff Change
B72: Individual Price Control | C72: FY26 | D72: FY27 | E72: FY28
B73: Entry level TC-4 | C73: =IF((COUNTIF($E$214:$E$215, $B73) > 0), MAX((_xlfn.MAXIFS('WAPC Price & Quantity'!$K:$K, 'WAPC Price & Quantity'!$E:$E, 'Compliance Summary'!$B73)),(_xlfn.MAXIFS($H$214:$H$215, $E$214:$E$215, 'Compliance Summary'!$B73))), (_xlfn.MAXIFS('WAPC Price & Quantity'!$K:$K, 'WAPC Price & Quantity'!$E:$E, 'Compliance Summary'!$B73))) -> 0.02386758295 | D73: =_xlfn.MAXIFS('WAPC Price & Quantity'!L:L, 'WAPC Price & Quantity'!$E:$E, 'Compliance Summary'!$B73) -> 0.03695150115 | E73: =_xlfn.MAXIFS('WAPC Price & Quantity'!M:M, 'WAPC Price & Quantity'!$E:$E, 'Compliance Summary'!$B73) -> 0.02783964365
B74: Other fixed line and fixed wireless TC-4 | C74: =IF((COUNTIF($E$214:$E$215, $B74) > 0), MAX((_xlfn.MAXIFS('WAPC Price & Quantity'!$K:$K, 'WAPC Price & Quantity'!$E:$E, 'Compliance Summary'!$B74)),(_xlfn.MAXIFS($H$214:$H$215, $E$214:$E$215, 'Compliance Summary'!$B74))), (_xlfn.MAXIFS('WAPC Price & Quantity'!$K:$K, 'WAPC Price & Quantity'!$E:$E, 'Compliance Summary'!$B74))) -> 0.0315919248 | D74: =_xlfn.MAXIFS('WAPC Price & Quantity'!L:L, 'WAPC Price & Quantity'!$E:$E, 'Compliance Summary'!$B74) -> 0.04989542874 | E74: =_xlfn.MAXIFS('WAPC Price & Quantity'!M:M, 'WAPC Price & Quantity'!$E:$E, 'Compliance Summary'!$B74) -> 0.05
B75: Satellite AVC TC-4 | C75: =IF((COUNTIF($E$214:$E$215, $B75) > 0), MAX((_xlfn.MAXIFS('WAPC Price & Quantity'!$K:$K, 'WAPC Price & Quantity'!$E:$E, 'Compliance Summary'!$B75)),(_xlfn.MAXIFS($H$214:$H$215, $E$214:$E$215, 'Compliance Summary'!$B75))), (_xlfn.MAXIFS('WAPC Price & Quantity'!$K:$K, 'WAPC Price & Quantity'!$E:$E, 'Compliance Summary'!$B75))) -> 0 | D75: =_xlfn.MAXIFS('WAPC Price & Quantity'!L:L, 'WAPC Price & Quantity'!$E:$E, 'Compliance Summary'!$B75) -> 0 | E75: =_xlfn.MAXIFS('WAPC Price & Quantity'!M:M, 'WAPC Price & Quantity'!$E:$E, 'Compliance Summary'!$B75) -> 0
B76: Satellite CVC TC-4 | C76: =IF((COUNTIF($E$214:$E$215, $B76) > 0), MAX((_xlfn.MAXIFS('WAPC Price & Quantity'!$K:$K, 'WAPC Price & Quantity'!$E:$E, 'Compliance Summary'!$B76)),(_xlfn.MAXIFS($H$214:$H$215, $E$214:$E$215, 'Compliance Summary'!$B76))), (_xlfn.MAXIFS('WAPC Price & Quantity'!$K:$K, 'WAPC Price & Quantity'!$E:$E, 'Compliance Summary'!$B76))) -> 0 | D76: =_xlfn.MAXIFS('WAPC Price & Quantity'!L:L, 'WAPC Price & Quantity'!$E:$E, 'Compliance Summary'!$B76) -> 0 | E76: =_xlfn.MAXIFS('WAPC Price & Quantity'!M:M, 'WAPC Price & Quantity'!$E:$E, 'Compliance Summary'!$B76) -> 0
B78: Note: The Backward-looking Price Controls in clause 2E.3 of the SAU have been exceeded in respect of Financial Year 2024-25 for the12/1 Mbps and 25/5 Mbps Bundled TC-4 Offers as a consequence of Daily AVC Peak Utilisation for the relevant AVC TC-4s being higher in FY25 than forecast – see section titled ‘2E.3 Backward-looking compliance in respect of Average Combined Charges’ at the end of this worksheet. In this case, clause 2E.4 of the SAU requires nbn to use the following (lower) ACCt − 1 values when applying the Individual Price Controls to set FY26 prices for the 12/1 Mbps and 25/5 Mbps Bundled TC-4 Offers (which nbn has used in the table below): • $32.45 for the 12/1 Mbps Bundled TC-4 Offer (being the ACCt − 1 value that would not have exceeded the Backward-looking Price Control – see cell F214), instead of $32.57 (cell I191); and • $33.83 for the 25/5 Mbps Bundled TC-4 Offer (being the ACCt − 1 value that would not have exceeded the Backward-looking Price Control – see cell F215), instead of $33.96 (cell I192).
B86: Tariff List Table References | C86: WAPC Charge Component | D86: Access Network | E86: Individual Price Control | F86: FY25 pt − 1 | G86: FY26 pt | H86: FY27 pt + 1 | I86: FY28 pt + 2 | J86: FY26 % Tariff Change | K86: FY27 % Tariff Change | L86: FY28 % Tariff Change | M86: FY26 Compliant / Not Compliant | N86: FY27 Compliant / Not Compliant | O86: FY28 Compliant / Not Compliant
B87: 1.3 Bundled TC-4 Offers | C87: AVC TC-4 25/5 Mbps | D87: Fibre, FTTB, FTTN, FTTC, HFC, Wireless | E87: Entry level TC-4 | F87: =IF(AND(COUNTIF($C$214:$C$215, C87) > 0, COUNTIF($D$214:$D$215, D87) > 0), (_xlfn._xlws.FILTER($F$214:$F$215,($C$214:$C$215=$C87)*($D$214:$D$215=$D87))), (_xlfn._xlws.FILTER('WAPC Price & Quantity'!F:F,('WAPC Price & Quantity'!$C:$C=$C87)*('WAPC Price & Quantity'!$D:$D=$D87)))) -> 33.8325 | G87: =_xlfn._xlws.FILTER('WAPC Price & Quantity'!G:G,('WAPC Price & Quantity'!$C:$C=$C87)*('WAPC Price & Quantity'!$D:$D=$D87)) -> 34.64 | H87: =_xlfn._xlws.FILTER('WAPC Price & Quantity'!H:H,('WAPC Price & Quantity'!$C:$C=$C87)*('WAPC Price & Quantity'!$D:$D=$D87)) -> 35.92 | I87: =_xlfn._xlws.FILTER('WAPC Price & Quantity'!I:I,('WAPC Price & Quantity'!$C:$C=$C87)*('WAPC Price & Quantity'!$D:$D=$D87)) -> 36.92 | J87: =IF(F87>0,G87/F87-1,0) -> 0.02386758295 | K87: =IF(G87>0,H87/G87-1,0) -> 0.03695150115 | L87: 0.02783964365 | M87: =IF(J87<=(_xlfn.XLOOKUP($E87,$B$65:$B$69,C$65:C$69,,0)),"Compliant","Not compliant") -> Compliant | N87: =IF(K87<=(_xlfn.XLOOKUP($E87,$B$65:$B$69,D$65:D$69,,0)),"Compliant","Not compliant") -> Compliant | O87: =IF(L87<=(_xlfn.XLOOKUP($E87,$B$65:$B$69,E$65:E$69,,0)),"Compliant","Not compliant") -> Compliant
B88: 1.1 Flat-Rate Offers | C88: AVC TC-4 100/20 Mbps | D88: Fibre, HFC | E88: Other fixed line and fixed wireless TC-4 | F88: =IF(AND(COUNTIF($C$214:$C$215, C88) > 0, COUNTIF($D$214:$D$215, D88) > 0), (_xlfn._xlws.FILTER($F$214:$F$215,($C$214:$C$215=$C88)*($D$214:$D$215=$D88))), (_xlfn._xlws.FILTER('WAPC Price & Quantity'!F:F,('WAPC Price & Quantity'!$C:$C=$C88)*('WAPC Price & Quantity'!$D:$D=$D88)))) -> 57.22 | G88: =_xlfn._xlws.FILTER('WAPC Price & Quantity'!G:G,('WAPC Price & Quantity'!$C:$C=$C88)*('WAPC Price & Quantity'!$D:$D=$D88)) -> 58.53 | H88: =_xlfn._xlws.FILTER('WAPC Price & Quantity'!H:H,('WAPC Price & Quantity'!$C:$C=$C88)*('WAPC Price & Quantity'!$D:$D=$D88)) -> 60.94 | I88: =_xlfn._xlws.FILTER('WAPC Price & Quantity'!I:I,('WAPC Price & Quantity'!$C:$C=$C88)*('WAPC Price & Quantity'!$D:$D=$D88)) -> 62.61 | J88: =IF(F88>0,G88/F88-1,0) -> 0.02289409297 | K88: 0.04117546557 | L88: 0.02740400394 | M88: =IF(J88<=(_xlfn.XLOOKUP($E88,$B$65:$B$69,C$65:C$69,,0)),"Compliant","Not compliant") -> Compliant | N88: Compliant | O88: Compliant
B89: 1.1 Flat-Rate Offers | C89: AVC TC-4 100/40 Mbps | D89: Fibre, HFC | E89: Other fixed line and fixed wireless TC-4 | F89: =IF(AND(COUNTIF($C$214:$C$215, C89) > 0, COUNTIF($D$214:$D$215, D89) > 0), (_xlfn._xlws.FILTER($F$214:$F$215,($C$214:$C$215=$C89)*($D$214:$D$215=$D89))), (_xlfn._xlws.FILTER('WAPC Price & Quantity'!F:F,('WAPC Price & Quantity'!$C:$C=$C89)*('WAPC Price & Quantity'!$D:$D=$D89)))) -> 60.22 | G89: =_xlfn._xlws.FILTER('WAPC Price & Quantity'!G:G,('WAPC Price & Quantity'!$C:$C=$C89)*('WAPC Price & Quantity'!$D:$D=$D89)) -> 61.53 | H89: =_xlfn._xlws.FILTER('WAPC Price & Quantity'!H:H,('WAPC Price & Quantity'!$C:$C=$C89)*('WAPC Price & Quantity'!$D:$D=$D89)) -> 63.94 | I89: =_xlfn._xlws.FILTER('WAPC Price & Quantity'!I:I,('WAPC Price & Quantity'!$C:$C=$C89)*('WAPC Price & Quantity'!$D:$D=$D89)) -> 65.61 | J89: 0.02175357024 | K89: 0.03916788558 | L89: 0.02611823585 | M89: Compliant | N89: Compliant | O89: Compliant
B90: 1.1 Flat-Rate Offers | C90: AVC TC-4 1000/400 Mbps | D90: Fibre | E90: Other fixed line and fixed wireless TC-4 | F90: =IF(AND(COUNTIF($C$214:$C$215, C90) > 0, COUNTIF($D$214:$D$215, D90) > 0), (_xlfn._xlws.FILTER($F$214:$F$215,($C$214:$C$215=$C90)*($D$214:$D$215=$D90))), (_xlfn._xlws.FILTER('WAPC Price & Quantity'!F:F,('WAPC Price & Quantity'!$C:$C=$C90)*('WAPC Price & Quantity'!$D:$D=$D90)))) -> 125 | G90: =_xlfn._xlws.FILTER('WAPC Price & Quantity'!G:G,('WAPC Price & Quantity'!$C:$C=$C90)*('WAPC Price & Quantity'!$D:$D=$D90)) -> 126.5 | H90: =_xlfn._xlws.FILTER('WAPC Price & Quantity'!H:H,('WAPC Price & Quantity'!$C:$C=$C90)*('WAPC Price & Quantity'!$D:$D=$D90)) -> 96 | I90: =_xlfn._xlws.FILTER('WAPC Price & Quantity'!I:I,('WAPC Price & Quantity'!$C:$C=$C90)*('WAPC Price & Quantity'!$D:$D=$D90)) -> 98.68 | J90: 0.012 | K90: -0.2411067194 | L90: 0.02791666667 | M90: Compliant | N90: Compliant | O90: Compliant
B91: 1.1 Flat-Rate Offers | C91: AVC TC-4 1000/50 Mbps | D91: Fibre, HFC | E91: Other fixed line and fixed wireless TC-4 | F91: =IF(AND(COUNTIF($C$214:$C$215, C91) > 0, COUNTIF($D$214:$D$215, D91) > 0), (_xlfn._xlws.FILTER($F$214:$F$215,($C$214:$C$215=$C91)*($D$214:$D$215=$D91))), (_xlfn._xlws.FILTER('WAPC Price & Quantity'!F:F,('WAPC Price & Quantity'!$C:$C=$C91)*('WAPC Price & Quantity'!$D:$D=$D91)))) -> 72.22 | G91: =_xlfn._xlws.FILTER('WAPC Price & Quantity'!G:G,('WAPC Price & Quantity'!$C:$C=$C91)*('WAPC Price & Quantity'!$D:$D=$D91)) -> 73.93 | H91: =_xlfn._xlws.FILTER('WAPC Price & Quantity'!H:H,('WAPC Price & Quantity'!$C:$C=$C91)*('WAPC Price & Quantity'!$D:$D=$D91)) -> 75.94 | I91: =_xlfn._xlws.FILTER('WAPC Price & Quantity'!I:I,('WAPC Price & Quantity'!$C:$C=$C91)*('WAPC Price & Quantity'!$D:$D=$D91)) -> 77.61 | J91: 0.02367765162 | K91: 0.02718788043 | L91: 0.02199104556 | M91: =IF(J91<=(_xlfn.XLOOKUP($E91,$B$65:$B$69,C$65:C$69,,0)),"Compliant","Not compliant") -> Compliant | N91: Compliant | O91: Compliant
B92: 1.1 Flat-Rate Offers | C92: AVC TC-4 200-250/8-20 Mbps | D92: Wireless | E92: Other fixed line and fixed wireless TC-4 | F92: =IF(AND(COUNTIF($C$214:$C$215, C92) > 0, COUNTIF($D$214:$D$215, D92) > 0), (_xlfn._xlws.FILTER($F$214:$F$215,($C$214:$C$215=$C92)*($D$214:$D$215=$D92))), (_xlfn._xlws.FILTER('WAPC Price & Quantity'!F:F,('WAPC Price & Quantity'!$C:$C=$C92)*('WAPC Price & Quantity'!$D:$D=$D92)))) -> 57.22 | G92: =_xlfn._xlws.FILTER('WAPC Price & Quantity'!G:G,('WAPC Price & Quantity'!$C:$C=$C92)*('WAPC Price & Quantity'!$D:$D=$D92)) -> 58.53 | H92: =_xlfn._xlws.FILTER('WAPC Price & Quantity'!H:H,('WAPC Price & Quantity'!$C:$C=$C92)*('WAPC Price & Quantity'!$D:$D=$D92)) -> 60.94 | I92: =_xlfn._xlws.FILTER('WAPC Price & Quantity'!I:I,('WAPC Price & Quantity'!$C:$C=$C92)*('WAPC Price & Quantity'!$D:$D=$D92)) -> 62.61 | J92: 0.02289409297 | K92: 0.04117546557 | L92: 0.02740400394 | M92: Compliant | N92: Compliant | O92: Compliant
B93: 1.1 Flat-Rate Offers | C93: AVC TC-4 250/100 Mbps | D93: Fibre | E93: Other fixed line and fixed wireless TC-4 | F93: =IF(AND(COUNTIF($C$214:$C$215, C93) > 0, COUNTIF($D$214:$D$215, D93) > 0), (_xlfn._xlws.FILTER($F$214:$F$215,($C$214:$C$215=$C93)*($D$214:$D$215=$D93))), (_xlfn._xlws.FILTER('WAPC Price & Quantity'!F:F,('WAPC Price & Quantity'!$C:$C=$C93)*('WAPC Price & Quantity'!$D:$D=$D93)))) -> 75 | G93: =_xlfn._xlws.FILTER('WAPC Price & Quantity'!G:G,('WAPC Price & Quantity'!$C:$C=$C93)*('WAPC Price & Quantity'!$D:$D=$D93)) -> 75.5 | H93: =_xlfn._xlws.FILTER('WAPC Price & Quantity'!H:H,('WAPC Price & Quantity'!$C:$C=$C93)*('WAPC Price & Quantity'!$D:$D=$D93)) -> 63.94 | I93: =_xlfn._xlws.FILTER('WAPC Price & Quantity'!I:I,('WAPC Price & Quantity'!$C:$C=$C93)*('WAPC Price & Quantity'!$D:$D=$D93)) -> 65.61 | J93: 0.006666666667 | K93: -0.1531125828 | L93: 0.02611823585 | M93: Compliant | N93: Compliant | O93: Compliant
B94: 1.1 Flat-Rate Offers | C94: AVC TC-4 250/25 Mbps | D94: Fibre, HFC | E94: Other fixed line and fixed wireless TC-4 | F94: =IF(AND(COUNTIF($C$214:$C$215, C94) > 0, COUNTIF($D$214:$D$215, D94) > 0), (_xlfn._xlws.FILTER($F$214:$F$215,($C$214:$C$215=$C94)*($D$214:$D$215=$D94))), (_xlfn._xlws.FILTER('WAPC Price & Quantity'!F:F,('WAPC Price & Quantity'!$C:$C=$C94)*('WAPC Price & Quantity'!$D:$D=$D94)))) -> 62.22 | G94: =_xlfn._xlws.FILTER('WAPC Price & Quantity'!G:G,('WAPC Price & Quantity'!$C:$C=$C94)*('WAPC Price & Quantity'!$D:$D=$D94)) -> 63.93 | H94: =_xlfn._xlws.FILTER('WAPC Price & Quantity'!H:H,('WAPC Price & Quantity'!$C:$C=$C94)*('WAPC Price & Quantity'!$D:$D=$D94)) -> 66.8 | I94: =_xlfn._xlws.FILTER('WAPC Price & Quantity'!I:I,('WAPC Price & Quantity'!$C:$C=$C94)*('WAPC Price & Quantity'!$D:$D=$D94)) -> 70.14 | J94: 0.0274831244 | K94: 0.04489285156 | L94: 0.05 | M94: Compliant | N94: Compliant | O94: Compliant
B95: 1.1 Flat-Rate Offers | C95: AVC TC-4 25-100/5-20 Mbps | D95: FTTB, FTTN | E95: Other fixed line and fixed wireless TC-4 | F95: =IF(AND(COUNTIF($C$214:$C$215, C95) > 0, COUNTIF($D$214:$D$215, D95) > 0), (_xlfn._xlws.FILTER($F$214:$F$215,($C$214:$C$215=$C95)*($D$214:$D$215=$D95))), (_xlfn._xlws.FILTER('WAPC Price & Quantity'!F:F,('WAPC Price & Quantity'!$C:$C=$C95)*('WAPC Price & Quantity'!$D:$D=$D95)))) -> 57.22 | G95: =_xlfn._xlws.FILTER('WAPC Price & Quantity'!G:G,('WAPC Price & Quantity'!$C:$C=$C95)*('WAPC Price & Quantity'!$D:$D=$D95)) -> 58.53 | H95: =_xlfn._xlws.FILTER('WAPC Price & Quantity'!H:H,('WAPC Price & Quantity'!$C:$C=$C95)*('WAPC Price & Quantity'!$D:$D=$D95)) -> 60.94 | I95: =_xlfn._xlws.FILTER('WAPC Price & Quantity'!I:I,('WAPC Price & Quantity'!$C:$C=$C95)*('WAPC Price & Quantity'!$D:$D=$D95)) -> 62.61 | J95: 0.02289409297 | K95: 0.04117546557 | L95: 0.02740400394 | M95: Compliant | N95: Compliant | O95: Compliant
B96: 1.1 Flat-Rate Offers | C96: AVC TC-4 25-100/5-40 Mbps | D96: FTTB, FTTN | E96: Other fixed line and fixed wireless TC-4 | F96: =IF(AND(COUNTIF($C$214:$C$215, C96) > 0, COUNTIF($D$214:$D$215, D96) > 0), (_xlfn._xlws.FILTER($F$214:$F$215,($C$214:$C$215=$C96)*($D$214:$D$215=$D96))), (_xlfn._xlws.FILTER('WAPC Price & Quantity'!F:F,('WAPC Price & Quantity'!$C:$C=$C96)*('WAPC Price & Quantity'!$D:$D=$D96)))) -> 60.22 | G96: =_xlfn._xlws.FILTER('WAPC Price & Quantity'!G:G,('WAPC Price & Quantity'!$C:$C=$C96)*('WAPC Price & Quantity'!$D:$D=$D96)) -> 61.53 | H96: =_xlfn._xlws.FILTER('WAPC Price & Quantity'!H:H,('WAPC Price & Quantity'!$C:$C=$C96)*('WAPC Price & Quantity'!$D:$D=$D96)) -> 63.94 | I96: =_xlfn._xlws.FILTER('WAPC Price & Quantity'!I:I,('WAPC Price & Quantity'!$C:$C=$C96)*('WAPC Price & Quantity'!$D:$D=$D96)) -> 65.61 | J96: 0.02175357024 | K96: 0.03916788558 | L96: 0.02611823585 | M96: Compliant | N96: Compliant | O96: Compliant
B97: 1.1 Flat-Rate Offers | C97: AVC TC-4 400/10-40 Mbps | D97: Wireless | E97: Other fixed line and fixed wireless TC-4 | F97: =IF(AND(COUNTIF($C$214:$C$215, C97) > 0, COUNTIF($D$214:$D$215, D97) > 0), (_xlfn._xlws.FILTER($F$214:$F$215,($C$214:$C$215=$C97)*($D$214:$D$215=$D97))), (_xlfn._xlws.FILTER('WAPC Price & Quantity'!F:F,('WAPC Price & Quantity'!$C:$C=$C97)*('WAPC Price & Quantity'!$D:$D=$D97)))) -> 62.22 | G97: =_xlfn._xlws.FILTER('WAPC Price & Quantity'!G:G,('WAPC Price & Quantity'!$C:$C=$C97)*('WAPC Price & Quantity'!$D:$D=$D97)) -> 63.93 | H97: =_xlfn._xlws.FILTER('WAPC Price & Quantity'!H:H,('WAPC Price & Quantity'!$C:$C=$C97)*('WAPC Price & Quantity'!$D:$D=$D97)) -> 66.8 | I97: =_xlfn._xlws.FILTER('WAPC Price & Quantity'!I:I,('WAPC Price & Quantity'!$C:$C=$C97)*('WAPC Price & Quantity'!$D:$D=$D97)) -> 70.14 | J97: 0.0274831244 | K97: 0.04489285156 | L97: 0.05 | M97: Compliant | N97: Compliant | O97: Compliant
B98: 1.1 Flat-Rate Offers | C98: AVC TC-4 500/200 Mbps | D98: Fibre | E98: Other fixed line and fixed wireless TC-4 | F98: =IF(AND(COUNTIF($C$214:$C$215, C98) > 0, COUNTIF($D$214:$D$215, D98) > 0), (_xlfn._xlws.FILTER($F$214:$F$215,($C$214:$C$215=$C98)*($D$214:$D$215=$D98))), (_xlfn._xlws.FILTER('WAPC Price & Quantity'!F:F,('WAPC Price & Quantity'!$C:$C=$C98)*('WAPC Price & Quantity'!$D:$D=$D98)))) -> 100 | G98: =_xlfn._xlws.FILTER('WAPC Price & Quantity'!G:G,('WAPC Price & Quantity'!$C:$C=$C98)*('WAPC Price & Quantity'!$D:$D=$D98)) -> 101 | H98: =_xlfn._xlws.FILTER('WAPC Price & Quantity'!H:H,('WAPC Price & Quantity'!$C:$C=$C98)*('WAPC Price & Quantity'!$D:$D=$D98)) -> 79 | I98: =_xlfn._xlws.FILTER('WAPC Price & Quantity'!I:I,('WAPC Price & Quantity'!$C:$C=$C98)*('WAPC Price & Quantity'!$D:$D=$D98)) -> 81.21 | J98: 0.01 | K98: -0.2178217822 | L98: 0.02797468354 | M98: Compliant | N98: Compliant | O98: Compliant
B99: 1.1 Flat-Rate Offers | C99: AVC TC-4 50-100/20 Mbps | D99: FTTC | E99: Other fixed line and fixed wireless TC-4 | F99: =IF(AND(COUNTIF($C$214:$C$215, C99) > 0, COUNTIF($D$214:$D$215, D99) > 0), (_xlfn._xlws.FILTER($F$214:$F$215,($C$214:$C$215=$C99)*($D$214:$D$215=$D99))), (_xlfn._xlws.FILTER('WAPC Price & Quantity'!F:F,('WAPC Price & Quantity'!$C:$C=$C99)*('WAPC Price & Quantity'!$D:$D=$D99)))) -> 57.22 | G99: =_xlfn._xlws.FILTER('WAPC Price & Quantity'!G:G,('WAPC Price & Quantity'!$C:$C=$C99)*('WAPC Price & Quantity'!$D:$D=$D99)) -> 58.53 | H99: =_xlfn._xlws.FILTER('WAPC Price & Quantity'!H:H,('WAPC Price & Quantity'!$C:$C=$C99)*('WAPC Price & Quantity'!$D:$D=$D99)) -> 60.94 | I99: =_xlfn._xlws.FILTER('WAPC Price & Quantity'!I:I,('WAPC Price & Quantity'!$C:$C=$C99)*('WAPC Price & Quantity'!$D:$D=$D99)) -> 62.61 | J99: 0.02289409297 | K99: 0.04117546557 | L99: 0.02740400394 | M99: Compliant | N99: Compliant | O99: Compliant
B100: 1.1 Flat-Rate Offers | C100: AVC TC-4 50-100/20-40 Mbps | D100: FTTC | E100: Other fixed line and fixed wireless TC-4 | F100: =IF(AND(COUNTIF($C$214:$C$215, C100) > 0, COUNTIF($D$214:$D$215, D100) > 0), (_xlfn._xlws.FILTER($F$214:$F$215,($C$214:$C$215=$C100)*($D$214:$D$215=$D100))), (_xlfn._xlws.FILTER('WAPC Price & Quantity'!F:F,('WAPC Price & Quantity'!$C:$C=$C100)*('WAPC Price & Quantity'!$D:$D=$D100)))) -> 60.22 | G100: =_xlfn._xlws.FILTER('WAPC Price & Quantity'!G:G,('WAPC Price & Quantity'!$C:$C=$C100)*('WAPC Price & Quantity'!$D:$D=$D100)) -> 61.53 | H100: =_xlfn._xlws.FILTER('WAPC Price & Quantity'!H:H,('WAPC Price & Quantity'!$C:$C=$C100)*('WAPC Price & Quantity'!$D:$D=$D100)) -> 63.94 | I100: =_xlfn._xlws.FILTER('WAPC Price & Quantity'!I:I,('WAPC Price & Quantity'!$C:$C=$C100)*('WAPC Price & Quantity'!$D:$D=$D100)) -> 65.61 | J100: 0.02175357024 | K100: 0.03916788558 | L100: 0.02611823585 | M100: Compliant | N100: Compliant | O100: Compliant
B101: 1.2 Flat-Rate Offers - Smart Places | C101: Smart Places - AVC TC-4 100/40 Mbps | D101: Fibre | E101: Other fixed line and fixed wireless TC-4 | F101: =IF(AND(COUNTIF($C$214:$C$215, C101) > 0, COUNTIF($D$214:$D$215, D101) > 0), (_xlfn._xlws.FILTER($F$214:$F$215,($C$214:$C$215=$C101)*($D$214:$D$215=$D101))), (_xlfn._xlws.FILTER('WAPC Price & Quantity'!F:F,('WAPC Price & Quantity'!$C:$C=$C101)*('WAPC Price & Quantity'!$D:$D=$D101)))) -> 60.22 | G101: =_xlfn._xlws.FILTER('WAPC Price & Quantity'!G:G,('WAPC Price & Quantity'!$C:$C=$C101)*('WAPC Price & Quantity'!$D:$D=$D101)) -> 61.53 | H101: =_xlfn._xlws.FILTER('WAPC Price & Quantity'!H:H,('WAPC Price & Quantity'!$C:$C=$C101)*('WAPC Price & Quantity'!$D:$D=$D101)) -> 63.94 | I101: =_xlfn._xlws.FILTER('WAPC Price & Quantity'!I:I,('WAPC Price & Quantity'!$C:$C=$C101)*('WAPC Price & Quantity'!$D:$D=$D101)) -> 65.61 | J101: 0.02175357024 | K101: 0.03916788558 | L101: 0.02611823585 | M101: Compliant | N101: Compliant | O101: Compliant
B102: 1.2 Flat-Rate Offers - Smart Places | C102: Smart Places - AVC TC-4 1000/400 Mbps | D102: Fibre | E102: Other fixed line and fixed wireless TC-4 | F102: =IF(AND(COUNTIF($C$214:$C$215, C102) > 0, COUNTIF($D$214:$D$215, D102) > 0), (_xlfn._xlws.FILTER($F$214:$F$215,($C$214:$C$215=$C102)*($D$214:$D$215=$D102))), (_xlfn._xlws.FILTER('WAPC Price & Quantity'!F:F,('WAPC Price & Quantity'!$C:$C=$C102)*('WAPC Price & Quantity'!$D:$D=$D102)))) -> 125 | G102: =_xlfn._xlws.FILTER('WAPC Price & Quantity'!G:G,('WAPC Price & Quantity'!$C:$C=$C102)*('WAPC Price & Quantity'!$D:$D=$D102)) -> 126.5 | H102: =_xlfn._xlws.FILTER('WAPC Price & Quantity'!H:H,('WAPC Price & Quantity'!$C:$C=$C102)*('WAPC Price & Quantity'!$D:$D=$D102)) -> 96 | I102: =_xlfn._xlws.FILTER('WAPC Price & Quantity'!I:I,('WAPC Price & Quantity'!$C:$C=$C102)*('WAPC Price & Quantity'!$D:$D=$D102)) -> 98.68 | J102: 0.012 | K102: -0.2411067194 | L102: 0.02791666667 | M102: Compliant | N102: Compliant | O102: Compliant
B103: 1.2 Flat-Rate Offers - Smart Places | C103: Smart Places - AVC TC-4 250/100 Mbps | D103: Fibre | E103: Other fixed line and fixed wireless TC-4 | F103: =IF(AND(COUNTIF($C$214:$C$215, C103) > 0, COUNTIF($D$214:$D$215, D103) > 0), (_xlfn._xlws.FILTER($F$214:$F$215,($C$214:$C$215=$C103)*($D$214:$D$215=$D103))), (_xlfn._xlws.FILTER('WAPC Price & Quantity'!F:F,('WAPC Price & Quantity'!$C:$C=$C103)*('WAPC Price & Quantity'!$D:$D=$D103)))) -> 75 | G103: =_xlfn._xlws.FILTER('WAPC Price & Quantity'!G:G,('WAPC Price & Quantity'!$C:$C=$C103)*('WAPC Price & Quantity'!$D:$D=$D103)) -> 75.5 | H103: =_xlfn._xlws.FILTER('WAPC Price & Quantity'!H:H,('WAPC Price & Quantity'!$C:$C=$C103)*('WAPC Price & Quantity'!$D:$D=$D103)) -> 63.94 | I103: =_xlfn._xlws.FILTER('WAPC Price & Quantity'!I:I,('WAPC Price & Quantity'!$C:$C=$C103)*('WAPC Price & Quantity'!$D:$D=$D103)) -> 65.61 | J103: 0.006666666667 | K103: =IF(G103>0,H103/G103-1,0) -> -0.1531125828 | L103: =IF(H103>0,I103/H103-1,0) -> 0.02611823585 | M103: Compliant | N103: Compliant | O103: Compliant
B104: 1.2 Flat-Rate Offers - Smart Places | C104: Smart Places - AVC TC-4 500/200 Mbps | D104: Fibre | E104: Other fixed line and fixed wireless TC-4 | F104: =IF(AND(COUNTIF($C$214:$C$215, C104) > 0, COUNTIF($D$214:$D$215, D104) > 0), (_xlfn._xlws.FILTER($F$214:$F$215,($C$214:$C$215=$C104)*($D$214:$D$215=$D104))), (_xlfn._xlws.FILTER('WAPC Price & Quantity'!F:F,('WAPC Price & Quantity'!$C:$C=$C104)*('WAPC Price & Quantity'!$D:$D=$D104)))) -> 100 | G104: =_xlfn._xlws.FILTER('WAPC Price & Quantity'!G:G,('WAPC Price & Quantity'!$C:$C=$C104)*('WAPC Price & Quantity'!$D:$D=$D104)) -> 101 | H104: =_xlfn._xlws.FILTER('WAPC Price & Quantity'!H:H,('WAPC Price & Quantity'!$C:$C=$C104)*('WAPC Price & Quantity'!$D:$D=$D104)) -> 79 | I104: =_xlfn._xlws.FILTER('WAPC Price & Quantity'!I:I,('WAPC Price & Quantity'!$C:$C=$C104)*('WAPC Price & Quantity'!$D:$D=$D104)) -> 81.21 | J104: 0.01 | K104: =IF(G104>0,H104/G104-1,0) -> -0.2178217822 | L104: 0.02797468354 | M104: Compliant | N104: Compliant | O104: Compliant
B105: 1.3 Bundled TC-4 Offers | C105: AVC TC-4 12/1 Mbps (Basic Bundled Offer) | D105: Fibre, FTTB, FTTN, FTTC, HFC | E105: Other fixed line and fixed wireless TC-4 | F105: =IF(AND(COUNTIF($C$214:$C$215, C105) > 0, COUNTIF($D$214:$D$215, D105) > 0), (_xlfn._xlws.FILTER($F$214:$F$215,($C$214:$C$215=$C105)*($D$214:$D$215=$D105))), (_xlfn._xlws.FILTER('WAPC Price & Quantity'!F:F,('WAPC Price & Quantity'!$C:$C=$C105)*('WAPC Price & Quantity'!$D:$D=$D105)))) -> 12.01 | G105: =_xlfn._xlws.FILTER('WAPC Price & Quantity'!G:G,('WAPC Price & Quantity'!$C:$C=$C105)*('WAPC Price & Quantity'!$D:$D=$D105)) -> 12.01 | H105: =_xlfn._xlws.FILTER('WAPC Price & Quantity'!H:H,('WAPC Price & Quantity'!$C:$C=$C105)*('WAPC Price & Quantity'!$D:$D=$D105)) -> 12 | I105: =_xlfn._xlws.FILTER('WAPC Price & Quantity'!I:I,('WAPC Price & Quantity'!$C:$C=$C105)*('WAPC Price & Quantity'!$D:$D=$D105)) -> 12 | J105: 0 | K105: -0.0008326394671 | L105: 0 | M105: Compliant | N105: Compliant | O105: Compliant
B106: 1.3 Bundled TC-4 Offers | C106: AVC TC-4 12/1 Mbps | D106: Fibre, FTTB, FTTN, FTTC, HFC, Wireless | E106: Other fixed line and fixed wireless TC-4 | F106: =IF(AND(COUNTIF($C$214:$C$215, C106) > 0, COUNTIF($D$214:$D$215, D106) > 0), (_xlfn._xlws.FILTER($F$214:$F$215,($C$214:$C$215=$C106)*($D$214:$D$215=$D106))), (_xlfn._xlws.FILTER('WAPC Price & Quantity'!F:F,('WAPC Price & Quantity'!$C:$C=$C106)*('WAPC Price & Quantity'!$D:$D=$D106)))) -> 32.445 | G106: =_xlfn._xlws.FILTER('WAPC Price & Quantity'!G:G,('WAPC Price & Quantity'!$C:$C=$C106)*('WAPC Price & Quantity'!$D:$D=$D106)) -> 33.47 | H106: =_xlfn._xlws.FILTER('WAPC Price & Quantity'!H:H,('WAPC Price & Quantity'!$C:$C=$C106)*('WAPC Price & Quantity'!$D:$D=$D106)) -> 35.14 | I106: =_xlfn._xlws.FILTER('WAPC Price & Quantity'!I:I,('WAPC Price & Quantity'!$C:$C=$C106)*('WAPC Price & Quantity'!$D:$D=$D106)) -> 36.89 | J106: 0.0315919248 | K106: 0.04989542874 | L106: 0.04980079681 | M106: Compliant | N106: Compliant | O106: Compliant
B107: 1.3 Bundled TC-4 Offers | C107: AVC TC-4 25/10 Mbps | D107: Fibre, FTTC, HFC | E107: Other fixed line and fixed wireless TC-4 | F107: =IF(AND(COUNTIF($C$214:$C$215, C107) > 0, COUNTIF($D$214:$D$215, D107) > 0), (_xlfn._xlws.FILTER($F$214:$F$215,($C$214:$C$215=$C107)*($D$214:$D$215=$D107))), (_xlfn._xlws.FILTER('WAPC Price & Quantity'!F:F,('WAPC Price & Quantity'!$C:$C=$C107)*('WAPC Price & Quantity'!$D:$D=$D107)))) -> 33.96 | G107: =_xlfn._xlws.FILTER('WAPC Price & Quantity'!G:G,('WAPC Price & Quantity'!$C:$C=$C107)*('WAPC Price & Quantity'!$D:$D=$D107)) -> 34.64 | H107: =_xlfn._xlws.FILTER('WAPC Price & Quantity'!H:H,('WAPC Price & Quantity'!$C:$C=$C107)*('WAPC Price & Quantity'!$D:$D=$D107)) -> 35.92 | I107: =_xlfn._xlws.FILTER('WAPC Price & Quantity'!I:I,('WAPC Price & Quantity'!$C:$C=$C107)*('WAPC Price & Quantity'!$D:$D=$D107)) -> 36.92 | J107: 0.02002355713 | K107: 0.03695150115 | L107: 0.02783964365 | M107: Compliant | N107: Compliant | O107: Compliant
B108: 1.3 Bundled TC-4 Offers | C108: AVC TC-4 25/5-10 Mbps | D108: FTTB, FTTN | E108: Other fixed line and fixed wireless TC-4 | F108: =IF(AND(COUNTIF($C$214:$C$215, C108) > 0, COUNTIF($D$214:$D$215, D108) > 0), (_xlfn._xlws.FILTER($F$214:$F$215,($C$214:$C$215=$C108)*($D$214:$D$215=$D108))), (_xlfn._xlws.FILTER('WAPC Price & Quantity'!F:F,('WAPC Price & Quantity'!$C:$C=$C108)*('WAPC Price & Quantity'!$D:$D=$D108)))) -> 33.96 | G108: =_xlfn._xlws.FILTER('WAPC Price & Quantity'!G:G,('WAPC Price & Quantity'!$C:$C=$C108)*('WAPC Price & Quantity'!$D:$D=$D108)) -> 34.64 | H108: =_xlfn._xlws.FILTER('WAPC Price & Quantity'!H:H,('WAPC Price & Quantity'!$C:$C=$C108)*('WAPC Price & Quantity'!$D:$D=$D108)) -> 35.92 | I108: =_xlfn._xlws.FILTER('WAPC Price & Quantity'!I:I,('WAPC Price & Quantity'!$C:$C=$C108)*('WAPC Price & Quantity'!$D:$D=$D108)) -> 36.92 | J108: 0.02002355713 | K108: 0.03695150115 | L108: 0.02783964365 | M108: Compliant | N108: Compliant | O108: Compliant
B109: 1.3 Bundled TC-4 Offers | C109: AVC TC-4 25-50/5-20 Mbps | D109: FTTB, FTTN | E109: Other fixed line and fixed wireless TC-4 | F109: =IF(AND(COUNTIF($C$214:$C$215, C109) > 0, COUNTIF($D$214:$D$215, D109) > 0), (_xlfn._xlws.FILTER($F$214:$F$215,($C$214:$C$215=$C109)*($D$214:$D$215=$D109))), (_xlfn._xlws.FILTER('WAPC Price & Quantity'!F:F,('WAPC Price & Quantity'!$C:$C=$C109)*('WAPC Price & Quantity'!$D:$D=$D109)))) -> 53.59 | G109: =_xlfn._xlws.FILTER('WAPC Price & Quantity'!G:G,('WAPC Price & Quantity'!$C:$C=$C109)*('WAPC Price & Quantity'!$D:$D=$D109)) -> 55.19 | H109: =_xlfn._xlws.FILTER('WAPC Price & Quantity'!H:H,('WAPC Price & Quantity'!$C:$C=$C109)*('WAPC Price & Quantity'!$D:$D=$D109)) -> 57.69 | I109: =_xlfn._xlws.FILTER('WAPC Price & Quantity'!I:I,('WAPC Price & Quantity'!$C:$C=$C109)*('WAPC Price & Quantity'!$D:$D=$D109)) -> 59.36 | J109: 0.02985631648 | K109: 0.04529806124 | L109: 0.02894782458 | M109: Compliant | N109: Compliant | O109: Compliant
B110: 1.3 Bundled TC-4 Offers | C110: AVC TC-4 50/20 Mbps | D110: Fibre, FTTC, HFC | E110: Other fixed line and fixed wireless TC-4 | F110: =IF(AND(COUNTIF($C$214:$C$215, C110) > 0, COUNTIF($D$214:$D$215, D110) > 0), (_xlfn._xlws.FILTER($F$214:$F$215,($C$214:$C$215=$C110)*($D$214:$D$215=$D110))), (_xlfn._xlws.FILTER('WAPC Price & Quantity'!F:F,('WAPC Price & Quantity'!$C:$C=$C110)*('WAPC Price & Quantity'!$D:$D=$D110)))) -> 53.59 | G110: =_xlfn._xlws.FILTER('WAPC Price & Quantity'!G:G,('WAPC Price & Quantity'!$C:$C=$C110)*('WAPC Price & Quantity'!$D:$D=$D110)) -> 55.19 | H110: =_xlfn._xlws.FILTER('WAPC Price & Quantity'!H:H,('WAPC Price & Quantity'!$C:$C=$C110)*('WAPC Price & Quantity'!$D:$D=$D110)) -> 57.69 | I110: =_xlfn._xlws.FILTER('WAPC Price & Quantity'!I:I,('WAPC Price & Quantity'!$C:$C=$C110)*('WAPC Price & Quantity'!$D:$D=$D110)) -> 59.36 | J110: 0.02985631648 | K110: 0.04529806124 | L110: 0.02894782458 | M110: Compliant | N110: Compliant | O110: Compliant
B111: 1.3 Bundled TC-4 Offers | C111: AVC TC-4 up to 100/up to 20 Mbps | D111: Wireless | E111: Other fixed line and fixed wireless TC-4 | F111: =IF(AND(COUNTIF($C$214:$C$215, C111) > 0, COUNTIF($D$214:$D$215, D111) > 0), (_xlfn._xlws.FILTER($F$214:$F$215,($C$214:$C$215=$C111)*($D$214:$D$215=$D111))), (_xlfn._xlws.FILTER('WAPC Price & Quantity'!F:F,('WAPC Price & Quantity'!$C:$C=$C111)*('WAPC Price & Quantity'!$D:$D=$D111)))) -> 53.59 | G111: =_xlfn._xlws.FILTER('WAPC Price & Quantity'!G:G,('WAPC Price & Quantity'!$C:$C=$C111)*('WAPC Price & Quantity'!$D:$D=$D111)) -> 55.19 | H111: =_xlfn._xlws.FILTER('WAPC Price & Quantity'!H:H,('WAPC Price & Quantity'!$C:$C=$C111)*('WAPC Price & Quantity'!$D:$D=$D111)) -> 57.69 | I111: =_xlfn._xlws.FILTER('WAPC Price & Quantity'!I:I,('WAPC Price & Quantity'!$C:$C=$C111)*('WAPC Price & Quantity'!$D:$D=$D111)) -> 59.36 | J111: 0.02985631648 | K111: 0.04529806124 | L111: 0.02894782458 | M111: Compliant | N111: Compliant | O111: Compliant
B112: 1.4 Bundled TC-4 Offers: Smart Places | C112: Smart Places - AVC TC-4 25/10 Mbps | D112: Fibre | E112: Other fixed line and fixed wireless TC-4 | F112: =IF(AND(COUNTIF($C$214:$C$215, C112) > 0, COUNTIF($D$214:$D$215, D112) > 0), (_xlfn._xlws.FILTER($F$214:$F$215,($C$214:$C$215=$C112)*($D$214:$D$215=$D112))), (_xlfn._xlws.FILTER('WAPC Price & Quantity'!F:F,('WAPC Price & Quantity'!$C:$C=$C112)*('WAPC Price & Quantity'!$D:$D=$D112)))) -> 33.96 | G112: =_xlfn._xlws.FILTER('WAPC Price & Quantity'!G:G,('WAPC Price & Quantity'!$C:$C=$C112)*('WAPC Price & Quantity'!$D:$D=$D112)) -> 34.64 | H112: =_xlfn._xlws.FILTER('WAPC Price & Quantity'!H:H,('WAPC Price & Quantity'!$C:$C=$C112)*('WAPC Price & Quantity'!$D:$D=$D112)) -> 35.92 | I112: =_xlfn._xlws.FILTER('WAPC Price & Quantity'!I:I,('WAPC Price & Quantity'!$C:$C=$C112)*('WAPC Price & Quantity'!$D:$D=$D112)) -> 36.92 | J112: 0.02002355713 | K112: 0.03695150115 | L112: 0.02783964365 | M112: Compliant | N112: Compliant | O112: Compliant
B113: 1.4 Bundled TC-4 Offers: Smart Places | C113: Smart Places - AVC TC-4 50/20 Mbps | D113: Fibre | E113: Other fixed line and fixed wireless TC-4 | F113: =IF(AND(COUNTIF($C$214:$C$215, C113) > 0, COUNTIF($D$214:$D$215, D113) > 0), (_xlfn._xlws.FILTER($F$214:$F$215,($C$214:$C$215=$C113)*($D$214:$D$215=$D113))), (_xlfn._xlws.FILTER('WAPC Price & Quantity'!F:F,('WAPC Price & Quantity'!$C:$C=$C113)*('WAPC Price & Quantity'!$D:$D=$D113)))) -> 53.59 | G113: =_xlfn._xlws.FILTER('WAPC Price & Quantity'!G:G,('WAPC Price & Quantity'!$C:$C=$C113)*('WAPC Price & Quantity'!$D:$D=$D113)) -> 55.19 | H113: =_xlfn._xlws.FILTER('WAPC Price & Quantity'!H:H,('WAPC Price & Quantity'!$C:$C=$C113)*('WAPC Price & Quantity'!$D:$D=$D113)) -> 57.69 | I113: =_xlfn._xlws.FILTER('WAPC Price & Quantity'!I:I,('WAPC Price & Quantity'!$C:$C=$C113)*('WAPC Price & Quantity'!$D:$D=$D113)) -> 59.36 | J113: 0.02985631648 | K113: 0.04529806124 | L113: 0.02894782458 | M113: Compliant | N113: Compliant | O113: Compliant
B114: 1.5 Asymmetric AVC Offers in respect of the NBN Co Satellite Network | C114: AVC TC-4 12/1 Mbps | D114: Satellite | E114: Satellite AVC TC-4 | F114: =IF(AND(COUNTIF($C$214:$C$215, C114) > 0, COUNTIF($D$214:$D$215, D114) > 0), (_xlfn._xlws.FILTER($F$214:$F$215,($C$214:$C$215=$C114)*($D$214:$D$215=$D114))), (_xlfn._xlws.FILTER('WAPC Price & Quantity'!F:F,('WAPC Price & Quantity'!$C:$C=$C114)*('WAPC Price & Quantity'!$D:$D=$D114)))) -> 24 | G114: =_xlfn._xlws.FILTER('WAPC Price & Quantity'!G:G,('WAPC Price & Quantity'!$C:$C=$C114)*('WAPC Price & Quantity'!$D:$D=$D114)) -> 24 | H114: =_xlfn._xlws.FILTER('WAPC Price & Quantity'!H:H,('WAPC Price & Quantity'!$C:$C=$C114)*('WAPC Price & Quantity'!$D:$D=$D114)) -> 24 | I114: =_xlfn._xlws.FILTER('WAPC Price & Quantity'!I:I,('WAPC Price & Quantity'!$C:$C=$C114)*('WAPC Price & Quantity'!$D:$D=$D114)) -> 24 | J114: 0 | K114: 0 | L114: 0 | M114: Compliant | N114: Compliant | O114: Compliant
B115: 1.5 Asymmetric AVC Offers in respect of the NBN Co Satellite Network | C115: AVC TC-4 25/5 Mbps | D115: Satellite | E115: Satellite AVC TC-4 | F115: =IF(AND(COUNTIF($C$214:$C$215, C115) > 0, COUNTIF($D$214:$D$215, D115) > 0), (_xlfn._xlws.FILTER($F$214:$F$215,($C$214:$C$215=$C115)*($D$214:$D$215=$D115))), (_xlfn._xlws.FILTER('WAPC Price & Quantity'!F:F,('WAPC Price & Quantity'!$C:$C=$C115)*('WAPC Price & Quantity'!$D:$D=$D115)))) -> 27 | G115: =_xlfn._xlws.FILTER('WAPC Price & Quantity'!G:G,('WAPC Price & Quantity'!$C:$C=$C115)*('WAPC Price & Quantity'!$D:$D=$D115)) -> 27 | H115: =_xlfn._xlws.FILTER('WAPC Price & Quantity'!H:H,('WAPC Price & Quantity'!$C:$C=$C115)*('WAPC Price & Quantity'!$D:$D=$D115)) -> 27 | I115: =_xlfn._xlws.FILTER('WAPC Price & Quantity'!I:I,('WAPC Price & Quantity'!$C:$C=$C115)*('WAPC Price & Quantity'!$D:$D=$D115)) -> 27 | J115: 0 | K115: 0 | L115: 0 | M115: Compliant | N115: Compliant | O115: Compliant
B116: 3.2 Connectivity Virtual Circuit Offers | C116: CVC TC-4 (Satellite) | D116: Satellite | E116: Satellite CVC TC-4 | F116: =IF(AND(COUNTIF($C$214:$C$215, C116) > 0, COUNTIF($D$214:$D$215, D116) > 0), (_xlfn._xlws.FILTER($F$214:$F$215,($C$214:$C$215=$C116)*($D$214:$D$215=$D116))), (_xlfn._xlws.FILTER('WAPC Price & Quantity'!F:F,('WAPC Price & Quantity'!$C:$C=$C116)*('WAPC Price & Quantity'!$D:$D=$D116)))) -> 15.75 | G116: =_xlfn._xlws.FILTER('WAPC Price & Quantity'!G:G,('WAPC Price & Quantity'!$C:$C=$C116)*('WAPC Price & Quantity'!$D:$D=$D116)) -> 15.75 | H116: =_xlfn._xlws.FILTER('WAPC Price & Quantity'!H:H,('WAPC Price & Quantity'!$C:$C=$C116)*('WAPC Price & Quantity'!$D:$D=$D116)) -> 15.75 | I116: =_xlfn._xlws.FILTER('WAPC Price & Quantity'!I:I,('WAPC Price & Quantity'!$C:$C=$C116)*('WAPC Price & Quantity'!$D:$D=$D116)) -> 15.75 | J116: 0 | K116: 0 | L116: 0 | M116: Compliant | N116: Compliant | O116: Compliant
B117: 4 CVC Class Offers for the NBN Co Satellite Network | C117: CVC Class 0 | D117: Satellite | E117: Satellite CVC TC-4 | F117: =IF(AND(COUNTIF($C$214:$C$215, C117) > 0, COUNTIF($D$214:$D$215, D117) > 0), (_xlfn._xlws.FILTER($F$214:$F$215,($C$214:$C$215=$C117)*($D$214:$D$215=$D117))), (_xlfn._xlws.FILTER('WAPC Price & Quantity'!F:F,('WAPC Price & Quantity'!$C:$C=$C117)*('WAPC Price & Quantity'!$D:$D=$D117)))) -> 0 | G117: =_xlfn._xlws.FILTER('WAPC Price & Quantity'!G:G,('WAPC Price & Quantity'!$C:$C=$C117)*('WAPC Price & Quantity'!$D:$D=$D117)) -> 0 | H117: =_xlfn._xlws.FILTER('WAPC Price & Quantity'!H:H,('WAPC Price & Quantity'!$C:$C=$C117)*('WAPC Price & Quantity'!$D:$D=$D117)) -> 0 | I117: =_xlfn._xlws.FILTER('WAPC Price & Quantity'!I:I,('WAPC Price & Quantity'!$C:$C=$C117)*('WAPC Price & Quantity'!$D:$D=$D117)) -> 0 | J117: 0 | K117: 0 | L117: 0 | M117: Compliant | N117: Compliant | O117: Compliant
B118: 4 CVC Class Offers for the NBN Co Satellite Network | C118: CVC Class 1 | D118: Satellite | E118: Satellite CVC TC-4 | F118: =IF(AND(COUNTIF($C$214:$C$215, C118) > 0, COUNTIF($D$214:$D$215, D118) > 0), (_xlfn._xlws.FILTER($F$214:$F$215,($C$214:$C$215=$C118)*($D$214:$D$215=$D118))), (_xlfn._xlws.FILTER('WAPC Price & Quantity'!F:F,('WAPC Price & Quantity'!$C:$C=$C118)*('WAPC Price & Quantity'!$D:$D=$D118)))) -> 18 | G118: =_xlfn._xlws.FILTER('WAPC Price & Quantity'!G:G,('WAPC Price & Quantity'!$C:$C=$C118)*('WAPC Price & Quantity'!$D:$D=$D118)) -> 18 | H118: =_xlfn._xlws.FILTER('WAPC Price & Quantity'!H:H,('WAPC Price & Quantity'!$C:$C=$C118)*('WAPC Price & Quantity'!$D:$D=$D118)) -> 18 | I118: =_xlfn._xlws.FILTER('WAPC Price & Quantity'!I:I,('WAPC Price & Quantity'!$C:$C=$C118)*('WAPC Price & Quantity'!$D:$D=$D118)) -> 18 | J118: 0 | K118: 0 | L118: 0 | M118: Compliant | N118: Compliant | O118: Compliant
B119: 4 CVC Class Offers for the NBN Co Satellite Network | C119: CVC Class 2 | D119: Satellite | E119: Satellite CVC TC-4 | F119: =IF(AND(COUNTIF($C$214:$C$215, C119) > 0, COUNTIF($D$214:$D$215, D119) > 0), (_xlfn._xlws.FILTER($F$214:$F$215,($C$214:$C$215=$C119)*($D$214:$D$215=$D119))), (_xlfn._xlws.FILTER('WAPC Price & Quantity'!F:F,('WAPC Price & Quantity'!$C:$C=$C119)*('WAPC Price & Quantity'!$D:$D=$D119)))) -> 40 | G119: =_xlfn._xlws.FILTER('WAPC Price & Quantity'!G:G,('WAPC Price & Quantity'!$C:$C=$C119)*('WAPC Price & Quantity'!$D:$D=$D119)) -> 40 | H119: =_xlfn._xlws.FILTER('WAPC Price & Quantity'!H:H,('WAPC Price & Quantity'!$C:$C=$C119)*('WAPC Price & Quantity'!$D:$D=$D119)) -> 40 | I119: =_xlfn._xlws.FILTER('WAPC Price & Quantity'!I:I,('WAPC Price & Quantity'!$C:$C=$C119)*('WAPC Price & Quantity'!$D:$D=$D119)) -> 40 | J119: 0 | K119: 0 | L119: 0 | M119: Compliant | N119: Compliant | O119: Compliant
B122: 2E.2.2(d) Fixed line and fixed wireless TC-4 offers
B124: Individual Price Control period | C124: Financia Year | D124: Price Commitment (per utilised Mbps) | E124: CVC TC-4 (non-Satellite) Price | F124: Compliant / Not Compliant
B125: Beginning 1 July 2024 | C125: 1 July 2025 - 30 June 2026 (FY25) | D125: 4.5 | E125: =_xlfn.XLOOKUP("1 April 2025 - 30 June 2025 (Q4 FY25)", 'FY25-27 FACC'!$42:$42, 'FY25-27 FACC'!$62:$62) -> 4.5 | F125: =IF($E125<=$D125,"Compliant","Not compliant") -> Compliant
B126: Beginning 1 July 2025 | C126: 1 July 2025 - 30 June 2026 (FY26) | D126: 3.5 | E126: =_xlfn.XLOOKUP($C126, 'FY25-27 FACC'!$42:$42, 'FY25-27 FACC'!$62:$62) -> 3.5 | F126: =IF($E126<=$D126,"Compliant","Not compliant") -> Compliant
B127: Beginning 1 July 2026 and later | C127: 1 July 2026 - 30 June 2027 (FY27) | D127: 0 | E127: =_xlfn.XLOOKUP($C127, 'FY25-27 FACC'!$42:$42, 'FY25-27 FACC'!$62:$62) -> 0 | F127: =IF($E127<=$D127,"Compliant","Not compliant") -> Compliant
B130: 2E.2.2(h) Fixed line and fixed wireless TC-4 offers
B131: nbn confirms that it has not changed the Price structure of a Flat-Rate Offer such that it ceases to be a Flat Rate Offer. No additional charges apply for CVC TC-4 utilised in conjunction with a Flat-Rate Offer.
B135: 2E.2.4 Other Changes based on hourly labour rate and/or cost of materials
B136: The SAU provides that, in respect of an Other Charge that consists of an hourly labour rate (or such other labour-based charge) and/or costs of materials: (a) the labour-based component of the Other Charge may only be increased by indexing it to the ABS Wage Price Index for Private Sector Construction or by periodically resetting it with reference to the relevant rates charged to nbn by its contractors; and (b) materials will be charged at cost. nbn is not increasing the labour-based component of any such Other Charge in FY26 and is not forecasting any increase to the labour-based component in FY27 and FY28.
B143: 2E.2.5(a)(iii) Recurring WAPC Charge Components of Products withdrawn under clause 2H.6.2(a)
B144: Note 1: On 13 November 2024, nbn provided notice under clause 2H.6.2(a) of the SAU of its intention to withdraw the ‘Cell Site Access Service’ (CSAS) Product on 13 November 2026. Note 2: Column F (Monthly Recurring Charge as at 13 November 2024) sets out the Price of each Recurring WAPC Charge Component for the CSAS Product, for which nbn issued a withdrawal notice under clause 2H.2.6(a) of the SAU. Consistent with clause 2E.2.5 of the SAU, the Price of each Recurring WAPC Charge Component for CSAS in the FY26 Tariff List does not exceed the respective Price of that Recurring WAPC Charge Component for CSAS as at 13 November 2024.
B149: FY26 Tariff List Table References | C149: WAPC Charge Component | D149: Access Network | E149: Individual Price Control | F149: Monthly Recurring Charge as at 13 November 2024 | G149: FY26 pt | H149: Compliant / Not Compliant
B150: =_xlfn._xlws.FILTER('WAPC Price & Quantity'!B:D, ISNUMBER(SEARCH("14 CSAS Symmetric Access Capacity Offers", 'WAPC Price & Quantity'!B:B)) + ISNUMBER(SEARCH("15 CSAS Network to Network Interface Offers", 'WAPC Price & Quantity'!B:B))) -> 14 CSAS Symmetric Access Capacity Offers | C150: CSAS - Access Capacity 50 Mbps Metro and Outer Metro | D150: Fibre | E150: =_xlfn._xlws.FILTER('Compliance Summary'!$E$86:$E$119,('Compliance Summary'!$C$86:$C$119=$C150)*('Compliance Summary'!$D$86:$D$119=$D150), "n/a") -> n/a | F150: 910 | G150: =_xlfn._xlws.FILTER('WAPC Price & Quantity'!$G:$G,('WAPC Price & Quantity'!$C:$C=$C150)*('WAPC Price & Quantity'!$D:$D=$D150)) -> 910 | H150: =IF(G150<=F150,"Compliant", "Not compliant") -> Compliant
B151: 14 CSAS Symmetric Access Capacity Offers | C151: CSAS - Access Capacity 50 Mbps Regional | D151: Fibre | E151: =_xlfn._xlws.FILTER('Compliance Summary'!$E$86:$E$119,('Compliance Summary'!$C$86:$C$119=$C151)*('Compliance Summary'!$D$86:$D$119=$D151), "n/a") -> n/a | F151: 1245 | G151: =_xlfn._xlws.FILTER('WAPC Price & Quantity'!$G:$G,('WAPC Price & Quantity'!$C:$C=$C151)*('WAPC Price & Quantity'!$D:$D=$D151)) -> 1245 | H151: =IF(G151<=F151,"Compliant", "Not compliant") -> Compliant
B152: 14 CSAS Symmetric Access Capacity Offers | C152: CSAS - Access Capacity 100 Mbps Metro and Outer Metro | D152: Fibre | E152: =_xlfn._xlws.FILTER('Compliance Summary'!$E$86:$E$119,('Compliance Summary'!$C$86:$C$119=$C152)*('Compliance Summary'!$D$86:$D$119=$D152), "n/a") -> n/a | F152: 1250 | G152: =_xlfn._xlws.FILTER('WAPC Price & Quantity'!$G:$G,('WAPC Price & Quantity'!$C:$C=$C152)*('WAPC Price & Quantity'!$D:$D=$D152)) -> 1250 | H152: Compliant
B153: 14 CSAS Symmetric Access Capacity Offers | C153: CSAS - Access Capacity 100 Mbps Regional | D153: Fibre | E153: =_xlfn._xlws.FILTER('Compliance Summary'!$E$86:$E$119,('Compliance Summary'!$C$86:$C$119=$C153)*('Compliance Summary'!$D$86:$D$119=$D153), "n/a") -> n/a | F153: 1800 | G153: =_xlfn._xlws.FILTER('WAPC Price & Quantity'!$G:$G,('WAPC Price & Quantity'!$C:$C=$C153)*('WAPC Price & Quantity'!$D:$D=$D153)) -> 1800 | H153: Compliant
B154: 14 CSAS Symmetric Access Capacity Offers | C154: CSAS - Access Capacity 150 Mbps Metro and Outer Metro | D154: Fibre | E154: =_xlfn._xlws.FILTER('Compliance Summary'!$E$86:$E$119,('Compliance Summary'!$C$86:$C$119=$C154)*('Compliance Summary'!$D$86:$D$119=$D154), "n/a") -> n/a | F154: 1500 | G154: =_xlfn._xlws.FILTER('WAPC Price & Quantity'!$G:$G,('WAPC Price & Quantity'!$C:$C=$C154)*('WAPC Price & Quantity'!$D:$D=$D154)) -> 1500 | H154: Compliant
B155: 14 CSAS Symmetric Access Capacity Offers | C155: CSAS - Access Capacity 150 Mbps Regional | D155: Fibre | E155: =_xlfn._xlws.FILTER('Compliance Summary'!$E$86:$E$119,('Compliance Summary'!$C$86:$C$119=$C155)*('Compliance Summary'!$D$86:$D$119=$D155), "n/a") -> n/a | F155: 2235 | G155: =_xlfn._xlws.FILTER('WAPC Price & Quantity'!$G:$G,('WAPC Price & Quantity'!$C:$C=$C155)*('WAPC Price & Quantity'!$D:$D=$D155)) -> 2235 | H155: Compliant
B156: 14 CSAS Symmetric Access Capacity Offers | C156: CSAS - Access Capacity 200 Mbps Metro and Outer Metro | D156: Fibre | E156: =_xlfn._xlws.FILTER('Compliance Summary'!$E$86:$E$119,('Compliance Summary'!$C$86:$C$119=$C156)*('Compliance Summary'!$D$86:$D$119=$D156), "n/a") -> n/a | F156: 1720 | G156: =_xlfn._xlws.FILTER('WAPC Price & Quantity'!$G:$G,('WAPC Price & Quantity'!$C:$C=$C156)*('WAPC Price & Quantity'!$D:$D=$D156)) -> 1720 | H156: Compliant
B157: 14 CSAS Symmetric Access Capacity Offers | C157: CSAS - Access Capacity 200 Mbps Regional | D157: Fibre | E157: =_xlfn._xlws.FILTER('Compliance Summary'!$E$86:$E$119,('Compliance Summary'!$C$86:$C$119=$C157)*('Compliance Summary'!$D$86:$D$119=$D157), "n/a") -> n/a | F157: 2600 | G157: =_xlfn._xlws.FILTER('WAPC Price & Quantity'!$G:$G,('WAPC Price & Quantity'!$C:$C=$C157)*('WAPC Price & Quantity'!$D:$D=$D157)) -> 2600 | H157: Compliant
B158: 14 CSAS Symmetric Access Capacity Offers | C158: CSAS - Access Capacity 300 Mbps Metro and Outer Metro | D158: Fibre | E158: =_xlfn._xlws.FILTER('Compliance Summary'!$E$86:$E$119,('Compliance Summary'!$C$86:$C$119=$C158)*('Compliance Summary'!$D$86:$D$119=$D158), "n/a") -> n/a | F158: 2070 | G158: =_xlfn._xlws.FILTER('WAPC Price & Quantity'!$G:$G,('WAPC Price & Quantity'!$C:$C=$C158)*('WAPC Price & Quantity'!$D:$D=$D158)) -> 2070 | H158: Compliant
B159: 14 CSAS Symmetric Access Capacity Offers | C159: CSAS - Access Capacity 300 Mbps Regional | D159: Fibre | E159: =_xlfn._xlws.FILTER('Compliance Summary'!$E$86:$E$119,('Compliance Summary'!$C$86:$C$119=$C159)*('Compliance Summary'!$D$86:$D$119=$D159), "n/a") -> n/a | F159: 3210 | G159: =_xlfn._xlws.FILTER('WAPC Price & Quantity'!$G:$G,('WAPC Price & Quantity'!$C:$C=$C159)*('WAPC Price & Quantity'!$D:$D=$D159)) -> 3210 | H159: Compliant
B160: 14 CSAS Symmetric Access Capacity Offers | C160: CSAS - Access Capacity 500 Mbps Metro and Outer Metro | D160: Fibre | E160: =_xlfn._xlws.FILTER('Compliance Summary'!$E$86:$E$119,('Compliance Summary'!$C$86:$C$119=$C160)*('Compliance Summary'!$D$86:$D$119=$D160), "n/a") -> n/a | F160: 2550 | G160: =_xlfn._xlws.FILTER('WAPC Price & Quantity'!$G:$G,('WAPC Price & Quantity'!$C:$C=$C160)*('WAPC Price & Quantity'!$D:$D=$D160)) -> 2550 | H160: Compliant
B161: 14 CSAS Symmetric Access Capacity Offers | C161: CSAS - Access Capacity 500 Mbps Regional | D161: Fibre | E161: =_xlfn._xlws.FILTER('Compliance Summary'!$E$86:$E$119,('Compliance Summary'!$C$86:$C$119=$C161)*('Compliance Summary'!$D$86:$D$119=$D161), "n/a") -> n/a | F161: 4200 | G161: =_xlfn._xlws.FILTER('WAPC Price & Quantity'!$G:$G,('WAPC Price & Quantity'!$C:$C=$C161)*('WAPC Price & Quantity'!$D:$D=$D161)) -> 4200 | H161: Compliant
B162: 14 CSAS Symmetric Access Capacity Offers | C162: CSAS - Access Capacity 900 Mbps Metro and Outer Metro | D162: Fibre | E162: =_xlfn._xlws.FILTER('Compliance Summary'!$E$86:$E$119,('Compliance Summary'!$C$86:$C$119=$C162)*('Compliance Summary'!$D$86:$D$119=$D162), "n/a") -> n/a | F162: 3240 | G162: =_xlfn._xlws.FILTER('WAPC Price & Quantity'!$G:$G,('WAPC Price & Quantity'!$C:$C=$C162)*('WAPC Price & Quantity'!$D:$D=$D162)) -> 3240 | H162: Compliant
B163: 14 CSAS Symmetric Access Capacity Offers | C163: CSAS - Access Capacity 900 Mbps Regional | D163: Fibre | E163: =_xlfn._xlws.FILTER('Compliance Summary'!$E$86:$E$119,('Compliance Summary'!$C$86:$C$119=$C163)*('Compliance Summary'!$D$86:$D$119=$D163), "n/a") -> n/a | F163: 5760 | G163: =_xlfn._xlws.FILTER('WAPC Price & Quantity'!$G:$G,('WAPC Price & Quantity'!$C:$C=$C163)*('WAPC Price & Quantity'!$D:$D=$D163)) -> 5760 | H163: Compliant
B164: 15 CSAS Network to Network Interface Offers | C164: CSAS - NNI 1000BaseLX - Recurring | D164: Fibre | E164: =_xlfn._xlws.FILTER('Compliance Summary'!$E$86:$E$119,('Compliance Summary'!$C$86:$C$119=$C164)*('Compliance Summary'!$D$86:$D$119=$D164), "n/a") -> n/a | F164: 100 | G164: =_xlfn._xlws.FILTER('WAPC Price & Quantity'!$G:$G,('WAPC Price & Quantity'!$C:$C=$C164)*('WAPC Price & Quantity'!$D:$D=$D164)) -> 100 | H164: Compliant
B165: 15 CSAS Network to Network Interface Offers | C165: CSAS - NNI 10GBaseLR - Recurring | D165: Fibre | E165: =_xlfn._xlws.FILTER('Compliance Summary'!$E$86:$E$119,('Compliance Summary'!$C$86:$C$119=$C165)*('Compliance Summary'!$D$86:$D$119=$D165), "n/a") -> n/a | F165: 400 | G165: =_xlfn._xlws.FILTER('WAPC Price & Quantity'!$G:$G,('WAPC Price & Quantity'!$C:$C=$C165)*('WAPC Price & Quantity'!$D:$D=$D165)) -> 375 | H165: Compliant
B166: 15 CSAS Network to Network Interface Offers | C166: CSAS - NNI 1000BaseEX - Recurring | D166: Fibre | E166: =_xlfn._xlws.FILTER('Compliance Summary'!$E$86:$E$119,('Compliance Summary'!$C$86:$C$119=$C166)*('Compliance Summary'!$D$86:$D$119=$D166), "n/a") -> n/a | F166: 125 | G166: =_xlfn._xlws.FILTER('WAPC Price & Quantity'!$G:$G,('WAPC Price & Quantity'!$C:$C=$C166)*('WAPC Price & Quantity'!$D:$D=$D166)) -> 125 | H166: Compliant
B167: 15 CSAS Network to Network Interface Offers | C167: CSAS - NNI 10GBaseER - Recurring | D167: Fibre | E167: =_xlfn._xlws.FILTER('Compliance Summary'!$E$86:$E$119,('Compliance Summary'!$C$86:$C$119=$C167)*('Compliance Summary'!$D$86:$D$119=$D167), "n/a") -> n/a | F167: 500 | G167: =_xlfn._xlws.FILTER('WAPC Price & Quantity'!$G:$G,('WAPC Price & Quantity'!$C:$C=$C167)*('WAPC Price & Quantity'!$D:$D=$D167)) -> 470 | H167: Compliant
B170: 2E.2.6(a)(iii) Recurring WAPC Charge Components of Products where withdrawal is required by law or directed by Shareholder Ministers
B171: nbn confirms that clause 2E.2.6(a)(iii) of the SAU has no relevant application to the Prices in the Tariff List published on 1 May 2025 (noting that the circumstances in which those controls would apply have not arisen).
B175: 2E.3 Backward-looking compliance in respect of Average Combined Charges
B176: Note: Bundled TC-4 Offers have a two-part AVC-CVC price structure. In that context, the individual price controls limit the prices of Bundled TC-4 Offers essentially by limiting their ‘forecast average combined charge’ (FACC) for the upcoming year (based on a forecast of Daily AVC Peak Utilisation) as compared to their ‘average combined charge’ (ACC) for the current year (based on actual Daily AVC Peak Utilisation). Subsequently, over the course of a year, it’s possible that the ACC for a Bundled TC-4 Offer would exceed the FACC for that offer as stated in the Pricing Roadmap at the start of that year (e.g. because actual Daily AVC Peak Utilisation is higher than forecast). The ‘backwards-looking price controls’ account for that possibility – and act to ensure that the relevant baseline when applying the individual price controls for the next year is based on the notional allowed ACC from the year before, not any higher actual ACC – see clauses 2E.3 and 2E.4 of the SAU. For the purposes of the FY26 price control model, the backwards-looking price controls essentially check whether actual Daily AVC Peak Utilisation (and therefore the average of the Average Daily AVC Overage Charge) for each Bundled TC-4 Offer exceeded the forecast that was used for FY25. Where this occurs, ACCt − 1 for the relevant Bundled TC-4 Offer (as used in applying the individual price controls for FY26) is adjusted such that it would not have exceeded the backward-looking price control. This sets a lower baseline for those individual price controls and constrains the prices of such Bundled TC-4 Offers. The ‘adjusted’ ACCt − 1 for such Bundled TC-4 Offers is not also used as the ‘pt − 1’ value in the WAPC (which is a separate price control). Rather, the ‘pt − 1’ value for Bundled TC-4 Offers for the purposes of the WAPC is based on the ACC for year t − 1 – see clause 2D.2.2(e) of the SAU. This reflects that the WAPC has a separate mechanism designed to account for the possibility that the ACC of Bundled TC-4 Offers may exceed the FACC for those offers for a given year (the ‘excess adjustment’ mechanism, which will first be relevant in applying the WAPC in FY27 – see clause 2D.2.6 of the SAU).
B187: December quarter CPI in FY24 | C187: 0.041
C189: Tariff List Table References | D189: WAPC Charge Component | E189: Access Network | F189: Individual Price Control | G189: FY24 Average Combined Charge | H189: Backward-looking Price Control | I189: FY25 ACC | J189: Exceeded / Not Exceeded
B190: =_xlfn._xlws.FILTER('FY25-27 FACC'!$B:$B,('FY25-27 FACC'!$D:$D=D190)*('FY25-27 FACC'!$E:$E=E190)) -> 12/1 Mbps (Basic Bundled Offer) | C190: =_xlfn._xlws.FILTER('WAPC Price & Quantity'!B:E, ISNUMBER(SEARCH("Bundled TC-4 Offers", 'WAPC Price & Quantity'!B:B))) -> 1.3 Bundled TC-4 Offers | D190: AVC TC-4 12/1 Mbps (Basic Bundled Offer) | E190: Fibre, FTTB, FTTN, FTTC, HFC | F190: Other fixed line and fixed wireless TC-4 | G190: =INDEX('FY24 Average Combined Charge'!$C$17:$F$17,,MATCH(B190,'FY24 Average Combined Charge'!$C$16:$F$16,0)) -> 12.01 | H190: =G190*IF(F190="Entry level TC-4",(1+$C$187),(1+MAX('Compliance Summary'!$C$62,$C$187))) -> 12.6105 | I190: =INDEX('FY25-27 FACC'!$C$15:$F$15,, MATCH(_xlfn._xlws.FILTER('FY25-27 FACC'!$B$70:$B$79,('FY25-27 FACC'!$D$70:$D$79=$D190)*('FY25-27 FACC'!$E$70:$E$79=$E190)), 'FY25-27 FACC'!$C$14:$F$14,0)) -> 12.01 | J190: =IF(I190>H190,"Exceeded", "Not exceeded") -> Not exceeded
B191: =_xlfn._xlws.FILTER('FY25-27 FACC'!$B:$B,('FY25-27 FACC'!$D:$D=D191)*('FY25-27 FACC'!$E:$E=E191)) -> 12/1 Mbps (Non-Basic Bundled Offer) | C191: 1.3 Bundled TC-4 Offers | D191: AVC TC-4 12/1 Mbps | E191: Fibre, FTTB, FTTN, FTTC, HFC, Wireless | F191: Other fixed line and fixed wireless TC-4 | G191: =INDEX('FY24 Average Combined Charge'!$C$17:$F$17,,MATCH(B191,'FY24 Average Combined Charge'!$C$16:$F$16,0)) -> 30.9 | H191: =G191*IF(F191="Entry level TC-4",(1+$C$187),(1+MAX('Compliance Summary'!$C$62,$C$187))) -> 32.445 | I191: =INDEX('FY25-27 FACC'!$C$15:$F$15,, MATCH(_xlfn._xlws.FILTER('FY25-27 FACC'!$B$70:$B$79,('FY25-27 FACC'!$D$70:$D$79=$D191)*('FY25-27 FACC'!$E$70:$E$79=$E191)), 'FY25-27 FACC'!$C$14:$F$14,0)) -> 32.57 | J191: =IF(I191>H191,"Exceeded", "Not exceeded") -> Exceeded
B192: =_xlfn._xlws.FILTER('FY25-27 FACC'!$B:$B,('FY25-27 FACC'!$D:$D=D192)*('FY25-27 FACC'!$E:$E=E192)) -> 25/5 Mbps and 25/10 Mbps | C192: 1.3 Bundled TC-4 Offers | D192: AVC TC-4 25/5 Mbps | E192: Fibre, FTTB, FTTN, FTTC, HFC, Wireless | F192: Entry level TC-4 | G192: =INDEX('FY24 Average Combined Charge'!$C$17:$F$17,,MATCH(B192,'FY24 Average Combined Charge'!$C$16:$F$16,0)) -> 32.5 | H192: =G192*IF(F192="Entry level TC-4",(1+$C$187),(1+MAX('Compliance Summary'!$C$62,$C$187))) -> 33.8325 | I192: =INDEX('FY25-27 FACC'!$C$15:$F$15,, MATCH(_xlfn._xlws.FILTER('FY25-27 FACC'!$B$70:$B$79,('FY25-27 FACC'!$D$70:$D$79=$D192)*('FY25-27 FACC'!$E$70:$E$79=$E192)), 'FY25-27 FACC'!$C$14:$F$14,0)) -> 33.96 | J192: Exceeded
B193: =_xlfn._xlws.FILTER('FY25-27 FACC'!$B:$B,('FY25-27 FACC'!$D:$D=D193)*('FY25-27 FACC'!$E:$E=E193)) -> 25/5 Mbps and 25/10 Mbps | C193: 1.3 Bundled TC-4 Offers | D193: AVC TC-4 25/5-10 Mbps | E193: FTTB, FTTN | F193: Other fixed line and fixed wireless TC-4 | G193: =INDEX('FY24 Average Combined Charge'!$C$17:$F$17,,MATCH(B193,'FY24 Average Combined Charge'!$C$16:$F$16,0)) -> 32.5 | H193: =G193*IF(F193="Entry level TC-4",(1+$C$187),(1+MAX('Compliance Summary'!$C$62,$C$187))) -> 34.125 | I193: =INDEX('FY25-27 FACC'!$C$15:$F$15,, MATCH(_xlfn._xlws.FILTER('FY25-27 FACC'!$B$70:$B$79,('FY25-27 FACC'!$D$70:$D$79=$D193)*('FY25-27 FACC'!$E$70:$E$79=$E193)), 'FY25-27 FACC'!$C$14:$F$14,0)) -> 33.96 | J193: Not exceeded
B194: =_xlfn._xlws.FILTER('FY25-27 FACC'!$B:$B,('FY25-27 FACC'!$D:$D=D194)*('FY25-27 FACC'!$E:$E=E194)) -> 25/5 Mbps and 25/10 Mbps | C194: 1.3 Bundled TC-4 Offers | D194: AVC TC-4 25/10 Mbps | E194: Fibre, FTTC, HFC | F194: Other fixed line and fixed wireless TC-4 | G194: =INDEX('FY24 Average Combined Charge'!$C$17:$F$17,,MATCH(B194,'FY24 Average Combined Charge'!$C$16:$F$16,0)) -> 32.5 | H194: =G194*IF(F194="Entry level TC-4",(1+$C$187),(1+MAX('Compliance Summary'!$C$62,$C$187))) -> 34.125 | I194: =INDEX('FY25-27 FACC'!$C$15:$F$15,, MATCH(_xlfn._xlws.FILTER('FY25-27 FACC'!$B$70:$B$79,('FY25-27 FACC'!$D$70:$D$79=$D194)*('FY25-27 FACC'!$E$70:$E$79=$E194)), 'FY25-27 FACC'!$C$14:$F$14,0)) -> 33.96 | J194: Not exceeded
B195: =_xlfn._xlws.FILTER('FY25-27 FACC'!$B:$B,('FY25-27 FACC'!$D:$D=D195)*('FY25-27 FACC'!$E:$E=E195)) -> 50/20 and Up to 100/Up to 20 Mbps | C195: 1.3 Bundled TC-4 Offers | D195: AVC TC-4 25-50/5-20 Mbps | E195: FTTB, FTTN | F195: Other fixed line and fixed wireless TC-4 | G195: =INDEX('FY24 Average Combined Charge'!$C$17:$F$17,,MATCH(B195,'FY24 Average Combined Charge'!$C$16:$F$16,0)) -> 51.16 | H195: =G195*IF(F195="Entry level TC-4",(1+$C$187),(1+MAX('Compliance Summary'!$C$62,$C$187))) -> 53.718 | I195: =INDEX('FY25-27 FACC'!$C$15:$F$15,, MATCH(_xlfn._xlws.FILTER('FY25-27 FACC'!$B$70:$B$79,('FY25-27 FACC'!$D$70:$D$79=$D195)*('FY25-27 FACC'!$E$70:$E$79=$E195)), 'FY25-27 FACC'!$C$14:$F$14,0)) -> 53.59 | J195: Not exceeded
B196: =_xlfn._xlws.FILTER('FY25-27 FACC'!$B:$B,('FY25-27 FACC'!$D:$D=D196)*('FY25-27 FACC'!$E:$E=E196)) -> 50/20 and Up to 100/Up to 20 Mbps | C196: 1.3 Bundled TC-4 Offers | D196: AVC TC-4 50/20 Mbps | E196: Fibre, FTTC, HFC | F196: Other fixed line and fixed wireless TC-4 | G196: =INDEX('FY24 Average Combined Charge'!$C$17:$F$17,,MATCH(B196,'FY24 Average Combined Charge'!$C$16:$F$16,0)) -> 51.16 | H196: =G196*IF(F196="Entry level TC-4",(1+$C$187),(1+MAX('Compliance Summary'!$C$62,$C$187))) -> 53.718 | I196: =INDEX('FY25-27 FACC'!$C$15:$F$15,, MATCH(_xlfn._xlws.FILTER('FY25-27 FACC'!$B$70:$B$79,('FY25-27 FACC'!$D$70:$D$79=$D196)*('FY25-27 FACC'!$E$70:$E$79=$E196)), 'FY25-27 FACC'!$C$14:$F$14,0)) -> 53.59 | J196: Not exceeded
B197: =_xlfn._xlws.FILTER('FY25-27 FACC'!$B:$B,('FY25-27 FACC'!$D:$D=D197)*('FY25-27 FACC'!$E:$E=E197)) -> 50/20 and Up to 100/Up to 20 Mbps | C197: 1.3 Bundled TC-4 Offers | D197: AVC TC-4 up to 100/up to 20 Mbps | E197: Wireless | F197: Other fixed line and fixed wireless TC-4 | G197: =INDEX('FY24 Average Combined Charge'!$C$17:$F$17,,MATCH(B197,'FY24 Average Combined Charge'!$C$16:$F$16,0)) -> 51.16 | H197: =G197*IF(F197="Entry level TC-4",(1+$C$187),(1+MAX('Compliance Summary'!$C$62,$C$187))) -> 53.718 | I197: =INDEX('FY25-27 FACC'!$C$15:$F$15,, MATCH(_xlfn._xlws.FILTER('FY25-27 FACC'!$B$70:$B$79,('FY25-27 FACC'!$D$70:$D$79=$D197)*('FY25-27 FACC'!$E$70:$E$79=$E197)), 'FY25-27 FACC'!$C$14:$F$14,0)) -> 53.59 | J197: Not exceeded
B198: =_xlfn._xlws.FILTER('FY25-27 FACC'!$B:$B,('FY25-27 FACC'!$D:$D=D198)*('FY25-27 FACC'!$E:$E=E198)) -> 25/5 Mbps and 25/10 Mbps | C198: 1.4 Bundled TC-4 Offers: Smart Places | D198: Smart Places - AVC TC-4 25/10 Mbps | E198: Fibre | F198: Other fixed line and fixed wireless TC-4 | G198: =INDEX('FY24 Average Combined Charge'!$C$17:$F$17,,MATCH(B198,'FY24 Average Combined Charge'!$C$16:$F$16,0)) -> 32.5 | H198: =G198*IF(F198="Entry level TC-4",(1+$C$187),(1+MAX('Compliance Summary'!$C$62,$C$187))) -> 34.125 | I198: =INDEX('FY25-27 FACC'!$C$15:$F$15,, MATCH(_xlfn._xlws.FILTER('FY25-27 FACC'!$B$70:$B$79,('FY25-27 FACC'!$D$70:$D$79=$D198)*('FY25-27 FACC'!$E$70:$E$79=$E198)), 'FY25-27 FACC'!$C$14:$F$14,0)) -> 33.96 | J198: Not exceeded
B199: =_xlfn._xlws.FILTER('FY25-27 FACC'!$B:$B,('FY25-27 FACC'!$D:$D=D199)*('FY25-27 FACC'!$E:$E=E199)) -> 50/20 and Up to 100/Up to 20 Mbps | C199: 1.4 Bundled TC-4 Offers: Smart Places | D199: Smart Places - AVC TC-4 50/20 Mbps | E199: Fibre | F199: Other fixed line and fixed wireless TC-4 | G199: =INDEX('FY24 Average Combined Charge'!$C$17:$F$17,,MATCH(B199,'FY24 Average Combined Charge'!$C$16:$F$16,0)) -> 51.16 | H199: =G199*IF(F199="Entry level TC-4",(1+$C$187),(1+MAX('Compliance Summary'!$C$62,$C$187))) -> 53.718 | I199: =INDEX('FY25-27 FACC'!$C$15:$F$15,, MATCH(_xlfn._xlws.FILTER('FY25-27 FACC'!$B$70:$B$79,('FY25-27 FACC'!$D$70:$D$79=$D199)*('FY25-27 FACC'!$E$70:$E$79=$E199)), 'FY25-27 FACC'!$C$14:$F$14,0)) -> 53.59 | J199: Not exceeded
B202: 2E.4 Effect of exceeding a Backward-looking Price Control
B203: Note: The ACCt of two Bundled TC-4 Offers in FY25 exceeded the following Backward-looking Price Controls: • The AVC TC-4 25/5 Mbps (Entry level TC-4 Offer) exceeded the Backward-looking Price Control under clause 2E.3(a). • The AVC TC-4 12/1 Mbps (Non-Basic Bundled Offer) exceeded the Backward-looking Price Control under clause 2E.3(b). In this case, clause 2E.4 of the SAU requires nbn to use the following (lower) ACCt − 1 values when applying the Individual Price Controls to set FY26 prices for the 12/1 Mbps and 25/5 Mbps Bundled TC-4 Offers (which nbn has used in the table below): • $32.45 for the 12/1 Mbps Bundled TC-4 Offer (being the ACCt − 1 value that would not have exceeded the Backward-looking Price Control – see cell F214), instead of $32.57 (cell I191); and • $33.83 for the 25/5 Mbps Bundled TC-4 Offer (being the ACCt − 1 value that would not have exceeded the Backward-looking Price Control – see cell F215), instead of $33.96 (cell I192).
B213: Tariff List Table References | C213: WAPC Charge Component | D213: Access Network | E213: Individual Price Control | F213: ACCt − 1 required to comply with Backward-looking Price Control | G213: FY26 Price | H213: % Tariff Change
B214: =_xlfn._xlws.FILTER(_xlfn.ANCHORARRAY(C190), $J$190:$J$199="Exceeded") -> 1.3 Bundled TC-4 Offers | C214: AVC TC-4 12/1 Mbps | D214: Fibre, FTTB, FTTN, FTTC, HFC, Wireless | E214: Other fixed line and fixed wireless TC-4 | F214: =_xlfn._xlws.FILTER($H$190:$H$199, ($D$190:$D$199=$C214)*($E$190:$E$199=$D214)) -> 32.445 | G214: =_xlfn._xlws.FILTER('WAPC Price & Quantity'!$G:$G, ('WAPC Price & Quantity'!$C:$C='Compliance Summary'!$C214)*('WAPC Price & Quantity'!$D:$D='Compliance Summary'!$D214)) -> 33.47 | H214: =IF($F214>0,$G214/$F214-1,0) -> 0.0315919248
B215: 1.3 Bundled TC-4 Offers | C215: AVC TC-4 25/5 Mbps | D215: Fibre, FTTB, FTTN, FTTC, HFC, Wireless | E215: Entry level TC-4 | F215: =_xlfn._xlws.FILTER($H$190:$H$199, ($D$190:$D$199=$C215)*($E$190:$E$199=$D215)) -> 33.8325 | G215: =_xlfn._xlws.FILTER('WAPC Price & Quantity'!$G:$G, ('WAPC Price & Quantity'!$C:$C='Compliance Summary'!$C215)*('WAPC Price & Quantity'!$D:$D='Compliance Summary'!$D215)) -> 34.64 | H215: =IF($F215>0,$G215/$F215-1,0) -> 0.02386758295

Sheet Inputs ->

Sheet WAPC Price & Quantity
B1: Cell colour meanings
B2: Input cell
B3: Calculation cell
B9: Price & Quantity Inputs
B10: Note 1: nbn notes that quantities are annualised, consistent with clause 2D.2.2(g) of the SAU. For example, the quantities for monthly charges are multiplied by 12 for an annualised quantity. Quantities for charges with other billing periods are adjusted as required to an annualised basis. Note 2: The qt − 1.25 volumes shown in the t = FY26 column represent volumes supplied from 1 April 2024 and 31 March 2025, annualised in accordance with clause 2D.2.2(g) of the SAU. The qt − 1.25 volumes shown in the t = FY27 and t = FY28 columns represent forecast volumes for the periods 1 April 2025 to 31 March 2026 and 1 April 2026 to 31 March 2027, respectively.
F14: Prices | K14: % Tariff Change | O14: Quantities
F15: pt − 1 | G15: pt | H15: pt + 1 | I15: pt + 2 | O15: qt − 1.25 | P15: qt − 1.25 | Q15: qt − 1.25 | S15: Notes
B16: Tariff List Table References | C16: WAPC Charge Component | D16: Access Network | E16: Individual Price Control | F16: FY25 | G16: FY26 | H16: FY27 | I16: FY28 | K16: FY26 | L16: FY27 | M16: FY28 | O16: t = FY26 | P16: t = FY27 | Q16: t = FY28 | R16: Recurring / Non-Recurring Charge | S16: Note numbering below refers to 'Notes & Assumptions' tab
B17: 1.3 Bundled TC-4 Offers | C17: AVC TC-4 12/1 Mbps (Basic Bundled Offer) | D17: Fibre, FTTB, FTTN, FTTC, HFC | E17: =_xlfn._xlws.FILTER('Compliance Summary'!$E$86:$E$119,('Compliance Summary'!$C$86:$C$119='WAPC Price & Quantity'!C17)*('Compliance Summary'!$D$86:$D$119='WAPC Price & Quantity'!D17), "n/a") -> Other fixed line and fixed wireless TC-4 | F17: =INDEX('FY25-27 FACC'!$C$15:$F$15,,MATCH(_xlfn._xlws.FILTER('FY25-27 FACC'!$B$70:$B$79,('FY25-27 FACC'!$D$70:$D$79='WAPC Price & Quantity'!$C17)*('FY25-27 FACC'!$E$70:$E$79='WAPC Price & Quantity'!$D17)),'FY25-27 FACC'!$C$14:$F$14,0)) -> 12.01 | G17: =INDEX('FY25-27 FACC'!$C$38:$F$38,,MATCH(_xlfn._xlws.FILTER('FY25-27 FACC'!$B$70:$B$79,('FY25-27 FACC'!$D$70:$D$79='WAPC Price & Quantity'!$C17)*('FY25-27 FACC'!$E$70:$E$79='WAPC Price & Quantity'!$D17)),'FY25-27 FACC'!$C$36:$F$36,0)) -> 12.01 | H17: =INDEX('FY25-27 FACC'!$C$39:$F$39,,MATCH(_xlfn._xlws.FILTER('FY25-27 FACC'!$B$70:$B$79,('FY25-27 FACC'!$D$70:$D$79='WAPC Price & Quantity'!$C17)*('FY25-27 FACC'!$E$70:$E$79='WAPC Price & Quantity'!$D17)),'FY25-27 FACC'!$C$36:$F$36,0)) -> 12 | I17: 12 | K17: =IF(F17>0,G17/F17-1,0) -> 0 | L17: =IF(G17>0,H17/G17-1,0) -> -0.0008326394671 | M17: =IF(H17>0,I17/H17-1,0) -> 0 | O17: 3309484.34 | P17: 2790117.8 | Q17: 2422609.33 | R17: Monthly Recurring Charge
B18: 1.3 Bundled TC-4 Offers | C18: AVC TC-4 12/1 Mbps | D18: Fibre, FTTB, FTTN, FTTC, HFC, Wireless | E18: =_xlfn._xlws.FILTER('Compliance Summary'!$E$86:$E$119,('Compliance Summary'!$C$86:$C$119='WAPC Price & Quantity'!C18)*('Compliance Summary'!$D$86:$D$119='WAPC Price & Quantity'!D18), "n/a") -> Other fixed line and fixed wireless TC-4 | F18: =INDEX('FY25-27 FACC'!$C$15:$F$15,,MATCH(_xlfn._xlws.FILTER('FY25-27 FACC'!$B$70:$B$79,('FY25-27 FACC'!$D$70:$D$79='WAPC Price & Quantity'!$C18)*('FY25-27 FACC'!$E$70:$E$79='WAPC Price & Quantity'!$D18)),'FY25-27 FACC'!$C$14:$F$14,0)) -> 32.57 | G18: =INDEX('FY25-27 FACC'!$C$38:$F$38,,MATCH(_xlfn._xlws.FILTER('FY25-27 FACC'!$B$70:$B$79,('FY25-27 FACC'!$D$70:$D$79='WAPC Price & Quantity'!$C18)*('FY25-27 FACC'!$E$70:$E$79='WAPC Price & Quantity'!$D18)),'FY25-27 FACC'!$C$36:$F$36,0)) -> 33.47 | H18: =INDEX('FY25-27 FACC'!$C$39:$F$39,,MATCH(_xlfn._xlws.FILTER('FY25-27 FACC'!$B$70:$B$79,('FY25-27 FACC'!$D$70:$D$79='WAPC Price & Quantity'!$C18)*('FY25-27 FACC'!$E$70:$E$79='WAPC Price & Quantity'!$D18)),'FY25-27 FACC'!$C$36:$F$36,0)) -> 35.14 | I18: 36.89 | K18: 0.02763279091 | L18: 0.04989542874 | M18: 0.04980079681 | O18: 2476659.85 | P18: 2717483.09 | Q18: 3317939.22 | R18: Monthly Recurring Charge
B19: 1.3 Bundled TC-4 Offers | C19: AVC TC-4 25/5 Mbps | D19: Fibre, FTTB, FTTN, FTTC, HFC, Wireless | E19: =_xlfn._xlws.FILTER('Compliance Summary'!$E$86:$E$119,('Compliance Summary'!$C$86:$C$119='WAPC Price & Quantity'!C19)*('Compliance Summary'!$D$86:$D$119='WAPC Price & Quantity'!D19), "n/a") -> Entry level TC-4 | F19: =INDEX('FY25-27 FACC'!$C$15:$F$15,,MATCH(_xlfn._xlws.FILTER('FY25-27 FACC'!$B$70:$B$79,('FY25-27 FACC'!$D$70:$D$79='WAPC Price & Quantity'!$C19)*('FY25-27 FACC'!$E$70:$E$79='WAPC Price & Quantity'!$D19)),'FY25-27 FACC'!$C$14:$F$14,0)) -> 33.96 | G19: =INDEX('FY25-27 FACC'!$C$38:$F$38,,MATCH(_xlfn._xlws.FILTER('FY25-27 FACC'!$B$70:$B$79,('FY25-27 FACC'!$D$70:$D$79='WAPC Price & Quantity'!$C19)*('FY25-27 FACC'!$E$70:$E$79='WAPC Price & Quantity'!$D19)),'FY25-27 FACC'!$C$36:$F$36,0)) -> 34.64 | H19: =INDEX('FY25-27 FACC'!$C$39:$F$39,,MATCH(_xlfn._xlws.FILTER('FY25-27 FACC'!$B$70:$B$79,('FY25-27 FACC'!$D$70:$D$79='WAPC Price & Quantity'!$C19)*('FY25-27 FACC'!$E$70:$E$79='WAPC Price & Quantity'!$D19)),'FY25-27 FACC'!$C$36:$F$36,0)) -> 35.92 | I19: 36.92 | K19: 0.02002355713 | L19: 0.03695150115 | M19: 0.02783964365 | O19: 16003846.55 | P19: 15598340.34 | Q19: 15103346.16 | R19: Monthly Recurring Charge
B20: 1.3 Bundled TC-4 Offers | C20: AVC TC-4 25/5-10 Mbps | D20: FTTB, FTTN | E20: =_xlfn._xlws.FILTER('Compliance Summary'!$E$86:$E$119,('Compliance Summary'!$C$86:$C$119='WAPC Price & Quantity'!C20)*('Compliance Summary'!$D$86:$D$119='WAPC Price & Quantity'!D20), "n/a") -> Other fixed line and fixed wireless TC-4 | F20: =INDEX('FY25-27 FACC'!$C$15:$F$15,,MATCH(_xlfn._xlws.FILTER('FY25-27 FACC'!$B$70:$B$79,('FY25-27 FACC'!$D$70:$D$79='WAPC Price & Quantity'!$C20)*('FY25-27 FACC'!$E$70:$E$79='WAPC Price & Quantity'!$D20)),'FY25-27 FACC'!$C$14:$F$14,0)) -> 33.96 | G20: =INDEX('FY25-27 FACC'!$C$38:$F$38,,MATCH(_xlfn._xlws.FILTER('FY25-27 FACC'!$B$70:$B$79,('FY25-27 FACC'!$D$70:$D$79='WAPC Price & Quantity'!$C20)*('FY25-27 FACC'!$E$70:$E$79='WAPC Price & Quantity'!$D20)),'FY25-27 FACC'!$C$36:$F$36,0)) -> 34.64 | H20: =INDEX('FY25-27 FACC'!$C$39:$F$39,,MATCH(_xlfn._xlws.FILTER('FY25-27 FACC'!$B$70:$B$79,('FY25-27 FACC'!$D$70:$D$79='WAPC Price & Quantity'!$C20)*('FY25-27 FACC'!$E$70:$E$79='WAPC Price & Quantity'!$D20)),'FY25-27 FACC'!$C$36:$F$36,0)) -> 35.92 | I20: 36.92 | K20: 0.02002355713 | L20: 0.03695150115 | M20: 0.02783964365 | O20: 2042979.65 | P20: 2085204.62 | Q20: 1812863.44 | R20: Monthly Recurring Charge
B21: 1.3 Bundled TC-4 Offers | C21: AVC TC-4 25/10 Mbps | D21: Fibre, FTTC, HFC | E21: =_xlfn._xlws.FILTER('Compliance Summary'!$E$86:$E$119,('Compliance Summary'!$C$86:$C$119='WAPC Price & Quantity'!C21)*('Compliance Summary'!$D$86:$D$119='WAPC Price & Quantity'!D21), "n/a") -> Other fixed line and fixed wireless TC-4 | F21: =INDEX('FY25-27 FACC'!$C$15:$F$15,,MATCH(_xlfn._xlws.FILTER('FY25-27 FACC'!$B$70:$B$79,('FY25-27 FACC'!$D$70:$D$79='WAPC Price & Quantity'!$C21)*('FY25-27 FACC'!$E$70:$E$79='WAPC Price & Quantity'!$D21)),'FY25-27 FACC'!$C$14:$F$14,0)) -> 33.96 | G21: =INDEX('FY25-27 FACC'!$C$38:$F$38,,MATCH(_xlfn._xlws.FILTER('FY25-27 FACC'!$B$70:$B$79,('FY25-27 FACC'!$D$70:$D$79='WAPC Price & Quantity'!$C21)*('FY25-27 FACC'!$E$70:$E$79='WAPC Price & Quantity'!$D21)),'FY25-27 FACC'!$C$36:$F$36,0)) -> 34.64 | H21: =INDEX('FY25-27 FACC'!$C$39:$F$39,,MATCH(_xlfn._xlws.FILTER('FY25-27 FACC'!$B$70:$B$79,('FY25-27 FACC'!$D$70:$D$79='WAPC Price & Quantity'!$C21)*('FY25-27 FACC'!$E$70:$E$79='WAPC Price & Quantity'!$D21)),'FY25-27 FACC'!$C$36:$F$36,0)) -> 35.92 | I21: 36.92 | K21: 0.02002355713 | L21: 0.03695150115 | M21: 0.02783964365 | O21: 2871954.71 | P21: 3322469.72 | Q21: 3293681.96 | R21: Monthly Recurring Charge
B22: 1.3 Bundled TC-4 Offers | C22: AVC TC-4 25-50/5-20 Mbps | D22: FTTB, FTTN | E22: =_xlfn._xlws.FILTER('Compliance Summary'!$E$86:$E$119,('Compliance Summary'!$C$86:$C$119='WAPC Price & Quantity'!C22)*('Compliance Summary'!$D$86:$D$119='WAPC Price & Quantity'!D22), "n/a") -> Other fixed line and fixed wireless TC-4 | F22: =INDEX('FY25-27 FACC'!$C$15:$F$15,,MATCH(_xlfn._xlws.FILTER('FY25-27 FACC'!$B$70:$B$79,('FY25-27 FACC'!$D$70:$D$79='WAPC Price & Quantity'!$C22)*('FY25-27 FACC'!$E$70:$E$79='WAPC Price & Quantity'!$D22)),'FY25-27 FACC'!$C$14:$F$14,0)) -> 53.59 | G22: =INDEX('FY25-27 FACC'!$C$38:$F$38,,MATCH(_xlfn._xlws.FILTER('FY25-27 FACC'!$B$70:$B$79,('FY25-27 FACC'!$D$70:$D$79='WAPC Price & Quantity'!$C22)*('FY25-27 FACC'!$E$70:$E$79='WAPC Price & Quantity'!$D22)),'FY25-27 FACC'!$C$36:$F$36,0)) -> 55.19 | H22: =INDEX('FY25-27 FACC'!$C$39:$F$39,,MATCH(_xlfn._xlws.FILTER('FY25-27 FACC'!$B$70:$B$79,('FY25-27 FACC'!$D$70:$D$79='WAPC Price & Quantity'!$C22)*('FY25-27 FACC'!$E$70:$E$79='WAPC Price & Quantity'!$D22)),'FY25-27 FACC'!$C$36:$F$36,0)) -> 57.69 | I22: 59.36 | K22: 0.02985631648 | L22: 0.04529806124 | M22: 0.02894782458 | O22: 19586923.76 | P22: 15363181.3 | Q22: 11675517.35 | R22: Monthly Recurring Charge
B23: 1.3 Bundled TC-4 Offers | C23: AVC TC-4 50/20 Mbps | D23: Fibre, FTTC, HFC | E23: =_xlfn._xlws.FILTER('Compliance Summary'!$E$86:$E$119,('Compliance Summary'!$C$86:$C$119='WAPC Price & Quantity'!C23)*('Compliance Summary'!$D$86:$D$119='WAPC Price & Quantity'!D23), "n/a") -> Other fixed line and fixed wireless TC-4 | F23: =INDEX('FY25-27 FACC'!$C$15:$F$15,,MATCH(_xlfn._xlws.FILTER('FY25-27 FACC'!$B$70:$B$79,('FY25-27 FACC'!$D$70:$D$79='WAPC Price & Quantity'!$C23)*('FY25-27 FACC'!$E$70:$E$79='WAPC Price & Quantity'!$D23)),'FY25-27 FACC'!$C$14:$F$14,0)) -> 53.59 | G23: =INDEX('FY25-27 FACC'!$C$38:$F$38,,MATCH(_xlfn._xlws.FILTER('FY25-27 FACC'!$B$70:$B$79,('FY25-27 FACC'!$D$70:$D$79='WAPC Price & Quantity'!$C23)*('FY25-27 FACC'!$E$70:$E$79='WAPC Price & Quantity'!$D23)),'FY25-27 FACC'!$C$36:$F$36,0)) -> 55.19 | H23: =INDEX('FY25-27 FACC'!$C$39:$F$39,,MATCH(_xlfn._xlws.FILTER('FY25-27 FACC'!$B$70:$B$79,('FY25-27 FACC'!$D$70:$D$79='WAPC Price & Quantity'!$C23)*('FY25-27 FACC'!$E$70:$E$79='WAPC Price & Quantity'!$D23)),'FY25-27 FACC'!$C$36:$F$36,0)) -> 57.69 | I23: 59.36 | K23: 0.02985631648 | L23: 0.04529806124 | M23: 0.02894782458 | O23: 28020011.05 | P23: 24119733.42 | Q23: 24114135.8 | R23: Monthly Recurring Charge
B24: 1.3 Bundled TC-4 Offers | C24: AVC TC-4 up to 100/up to 20 Mbps | D24: Wireless | E24: =_xlfn._xlws.FILTER('Compliance Summary'!$E$86:$E$119,('Compliance Summary'!$C$86:$C$119='WAPC Price & Quantity'!C24)*('Compliance Summary'!$D$86:$D$119='WAPC Price & Quantity'!D24), "n/a") -> Other fixed line and fixed wireless TC-4 | F24: =INDEX('FY25-27 FACC'!$C$15:$F$15,,MATCH(_xlfn._xlws.FILTER('FY25-27 FACC'!$B$70:$B$79,('FY25-27 FACC'!$D$70:$D$79='WAPC Price & Quantity'!$C24)*('FY25-27 FACC'!$E$70:$E$79='WAPC Price & Quantity'!$D24)),'FY25-27 FACC'!$C$14:$F$14,0)) -> 53.59 | G24: =INDEX('FY25-27 FACC'!$C$38:$F$38,,MATCH(_xlfn._xlws.FILTER('FY25-27 FACC'!$B$70:$B$79,('FY25-27 FACC'!$D$70:$D$79='WAPC Price & Quantity'!$C24)*('FY25-27 FACC'!$E$70:$E$79='WAPC Price & Quantity'!$D24)),'FY25-27 FACC'!$C$36:$F$36,0)) -> 55.19 | H24: =INDEX('FY25-27 FACC'!$C$39:$F$39,,MATCH(_xlfn._xlws.FILTER('FY25-27 FACC'!$B$70:$B$79,('FY25-27 FACC'!$D$70:$D$79='WAPC Price & Quantity'!$C24)*('FY25-27 FACC'!$E$70:$E$79='WAPC Price & Quantity'!$D24)),'FY25-27 FACC'!$C$36:$F$36,0)) -> 57.69 | I24: 59.36 | K24: 0.02985631648 | L24: 0.04529806124 | M24: 0.02894782458 | O24: 2959958.04 | P24: 2928857.52 | Q24: 2952124.5 | R24: Monthly Recurring Charge
B25: 1.4 Bundled TC-4 Offers: Smart Places | C25: Smart Places - AVC TC-4 25/10 Mbps | D25: Fibre | E25: =_xlfn._xlws.FILTER('Compliance Summary'!$E$86:$E$119,('Compliance Summary'!$C$86:$C$119='WAPC Price & Quantity'!C25)*('Compliance Summary'!$D$86:$D$119='WAPC Price & Quantity'!D25), "n/a") -> Other fixed line and fixed wireless TC-4 | F25: =INDEX('FY25-27 FACC'!$C$15:$F$15,,MATCH(_xlfn._xlws.FILTER('FY25-27 FACC'!$B$70:$B$79,('FY25-27 FACC'!$D$70:$D$79='WAPC Price & Quantity'!$C25)*('FY25-27 FACC'!$E$70:$E$79='WAPC Price & Quantity'!$D25)),'FY25-27 FACC'!$C$14:$F$14,0)) -> 33.96 | G25: =INDEX('FY25-27 FACC'!$C$38:$F$38,,MATCH(_xlfn._xlws.FILTER('FY25-27 FACC'!$B$70:$B$79,('FY25-27 FACC'!$D$70:$D$79='WAPC Price & Quantity'!$C25)*('FY25-27 FACC'!$E$70:$E$79='WAPC Price & Quantity'!$D25)),'FY25-27 FACC'!$C$36:$F$36,0)) -> 34.64 | H25: =INDEX('FY25-27 FACC'!$C$39:$F$39,,MATCH(_xlfn._xlws.FILTER('FY25-27 FACC'!$B$70:$B$79,('FY25-27 FACC'!$D$70:$D$79='WAPC Price & Quantity'!$C25)*('FY25-27 FACC'!$E$70:$E$79='WAPC Price & Quantity'!$D25)),'FY25-27 FACC'!$C$36:$F$36,0)) -> 35.92 | I25: 36.92 | K25: 0.02002355713 | L25: 0.03695150115 | M25: 0.02783964365 | O25: 507.98 | P25: 14461.92 | Q25: 43249.68 | R25: Monthly Recurring Charge
B26: 1.4 Bundled TC-4 Offers: Smart Places | C26: Smart Places - AVC TC-4 50/20 Mbps | D26: Fibre | E26: =_xlfn._xlws.FILTER('Compliance Summary'!$E$86:$E$119,('Compliance Summary'!$C$86:$C$119='WAPC Price & Quantity'!C26)*('Compliance Summary'!$D$86:$D$119='WAPC Price & Quantity'!D26), "n/a") -> Other fixed line and fixed wireless TC-4 | F26: =INDEX('FY25-27 FACC'!$C$15:$F$15,,MATCH(_xlfn._xlws.FILTER('FY25-27 FACC'!$B$70:$B$79,('FY25-27 FACC'!$D$70:$D$79='WAPC Price & Quantity'!$C26)*('FY25-27 FACC'!$E$70:$E$79='WAPC Price & Quantity'!$D26)),'FY25-27 FACC'!$C$14:$F$14,0)) -> 53.59 | G26: =INDEX('FY25-27 FACC'!$C$38:$F$38,,MATCH(_xlfn._xlws.FILTER('FY25-27 FACC'!$B$70:$B$79,('FY25-27 FACC'!$D$70:$D$79='WAPC Price & Quantity'!$C26)*('FY25-27 FACC'!$E$70:$E$79='WAPC Price & Quantity'!$D26)),'FY25-27 FACC'!$C$36:$F$36,0)) -> 55.19 | H26: =INDEX('FY25-27 FACC'!$C$39:$F$39,,MATCH(_xlfn._xlws.FILTER('FY25-27 FACC'!$B$70:$B$79,('FY25-27 FACC'!$D$70:$D$79='WAPC Price & Quantity'!$C26)*('FY25-27 FACC'!$E$70:$E$79='WAPC Price & Quantity'!$D26)),'FY25-27 FACC'!$C$36:$F$36,0)) -> 57.69 | I26: 59.36 | K26: 0.02985631648 | L26: 0.04529806124 | M26: 0.02894782458 | O26: 960.07 | P26: 2812.04 | Q26: 8409.66 | R26: Monthly Recurring Charge
B27: 1.1 Flat-Rate Offers | C27: AVC TC-4 25-100/5-20 Mbps | D27: FTTB, FTTN | E27: =_xlfn._xlws.FILTER('Compliance Summary'!$E$86:$E$119,('Compliance Summary'!$C$86:$C$119='WAPC Price & Quantity'!C27)*('Compliance Summary'!$D$86:$D$119='WAPC Price & Quantity'!D27), "n/a") -> Other fixed line and fixed wireless TC-4 | F27: 57.22 | G27: 58.53 | H27: 60.94 | I27: 62.61 | K27: 0.02289409297 | L27: 0.04117546557 | M27: 0.02740400394 | O27: 3602252.78 | P27: 3685123.11 | Q27: 3170538.41 | R27: Monthly Recurring Charge
B28: 1.1 Flat-Rate Offers | C28: AVC TC-4 50-100/20 Mbps | D28: FTTC | E28: =_xlfn._xlws.FILTER('Compliance Summary'!$E$86:$E$119,('Compliance Summary'!$C$86:$C$119='WAPC Price & Quantity'!C28)*('Compliance Summary'!$D$86:$D$119='WAPC Price & Quantity'!D28), "n/a") -> Other fixed line and fixed wireless TC-4 | F28: 57.22 | G28: 58.53 | H28: 60.94 | I28: 62.61 | K28: 0.02289409297 | L28: 0.04117546557 | M28: 0.02740400394 | O28: 1995627.62 | P28: 2019677.78 | Q28: 1772279.81 | R28: Monthly Recurring Charge
B29: 1.1 Flat-Rate Offers | C29: AVC TC-4 100/20 Mbps | D29: Fibre, HFC | E29: =_xlfn._xlws.FILTER('Compliance Summary'!$E$86:$E$119,('Compliance Summary'!$C$86:$C$119='WAPC Price & Quantity'!C29)*('Compliance Summary'!$D$86:$D$119='WAPC Price & Quantity'!D29), "n/a") -> Other fixed line and fixed wireless TC-4 | F29: 57.22 | G29: 58.53 | H29: 60.94 | I29: 62.61 | K29: 0.02289409297 | L29: 0.04117546557 | M29: 0.02740400394 | O29: 12039240.26 | P29: 19465024.21 | Q29: 26996503.09 | R29: Monthly Recurring Charge
B30: 1.1 Flat-Rate Offers | C30: AVC TC-4 200-250/8-20 Mbps | D30: Wireless | E30: =_xlfn._xlws.FILTER('Compliance Summary'!$E$86:$E$119,('Compliance Summary'!$C$86:$C$119='WAPC Price & Quantity'!C30)*('Compliance Summary'!$D$86:$D$119='WAPC Price & Quantity'!D30), "n/a") -> Other fixed line and fixed wireless TC-4 | F30: 57.22 | G30: 58.53 | H30: 60.94 | I30: 62.61 | K30: 0.02289409297 | L30: 0.04117546557 | M30: 0.02740400394 | O30: 17174.63 | P30: 87237.68 | Q30: 124792.21 | R30: Monthly Recurring Charge
B31: 1.1 Flat-Rate Offers | C31: AVC TC-4 25-100/5-40 Mbps | D31: FTTB, FTTN | E31: =_xlfn._xlws.FILTER('Compliance Summary'!$E$86:$E$119,('Compliance Summary'!$C$86:$C$119='WAPC Price & Quantity'!C31)*('Compliance Summary'!$D$86:$D$119='WAPC Price & Quantity'!D31), "n/a") -> Other fixed line and fixed wireless TC-4 | F31: 60.22 | G31: 61.53 | H31: 63.94 | I31: 65.61 | K31: 0.02175357024 | L31: 0.03916788558 | M31: 0.02611823585 | O31: 1263950.5 | P31: 1191741.45 | Q31: 1036211.05 | R31: Monthly Recurring Charge
B32: 1.1 Flat-Rate Offers | C32: AVC TC-4 50-100/20-40 Mbps | D32: FTTC | E32: =_xlfn._xlws.FILTER('Compliance Summary'!$E$86:$E$119,('Compliance Summary'!$C$86:$C$119='WAPC Price & Quantity'!C32)*('Compliance Summary'!$D$86:$D$119='WAPC Price & Quantity'!D32), "n/a") -> Other fixed line and fixed wireless TC-4 | F32: 60.22 | G32: 61.53 | H32: 63.94 | I32: 65.61 | K32: 0.02175357024 | L32: 0.03916788558 | M32: 0.02611823585 | O32: 521052.56 | P32: 471485.34 | Q32: 388525.81 | R32: Monthly Recurring Charge
B33: 1.1 Flat-Rate Offers | C33: AVC TC-4 100/40 Mbps | D33: Fibre, HFC | E33: =_xlfn._xlws.FILTER('Compliance Summary'!$E$86:$E$119,('Compliance Summary'!$C$86:$C$119='WAPC Price & Quantity'!C33)*('Compliance Summary'!$D$86:$D$119='WAPC Price & Quantity'!D33), "n/a") -> Other fixed line and fixed wireless TC-4 | F33: 60.22 | G33: 61.53 | H33: 63.94 | I33: 65.61 | K33: 0.02175357024 | L33: 0.03916788558 | M33: 0.02611823585 | O33: 2134638.12 | P33: 954760.56 | Q33: 0 | R33: Monthly Recurring Charge
B34: 1.1 Flat-Rate Offers | C34: AVC TC-4 250/25 Mbps | D34: Fibre, HFC | E34: =_xlfn._xlws.FILTER('Compliance Summary'!$E$86:$E$119,('Compliance Summary'!$C$86:$C$119='WAPC Price & Quantity'!C34)*('Compliance Summary'!$D$86:$D$119='WAPC Price & Quantity'!D34), "n/a") -> Other fixed line and fixed wireless TC-4 | F34: 62.22 | G34: 63.93 | H34: 66.8 | I34: 70.14 | K34: 0.0274831244 | L34: 0.04489285156 | M34: 0.05 | O34: 3111960.72 | P34: 3178495.98 | Q34: 2723097.65 | R34: Monthly Recurring Charge
B35: 1.1 Flat-Rate Offers | C35: AVC TC-4 400/10-40 Mbps | D35: Wireless | E35: =_xlfn._xlws.FILTER('Compliance Summary'!$E$86:$E$119,('Compliance Summary'!$C$86:$C$119='WAPC Price & Quantity'!C35)*('Compliance Summary'!$D$86:$D$119='WAPC Price & Quantity'!D35), "n/a") -> Other fixed line and fixed wireless TC-4 | F35: 62.22 | G35: 63.93 | H35: 66.8 | I35: 70.14 | K35: 0.0274831244 | L35: 0.04489285156 | M35: 0.05 | O35: 4115.38 | P35: 20265.17 | Q35: 23939.24 | R35: Monthly Recurring Charge
B36: 1.1 Flat-Rate Offers | C36: AVC TC-4 250/100 Mbps | D36: Fibre | E36: =_xlfn._xlws.FILTER('Compliance Summary'!$E$86:$E$119,('Compliance Summary'!$C$86:$C$119='WAPC Price & Quantity'!C36)*('Compliance Summary'!$D$86:$D$119='WAPC Price & Quantity'!D36), "n/a") -> Other fixed line and fixed wireless TC-4 | F36: 75 | G36: 75.5 | H36: 63.94 | I36: 65.61 | K36: 0.006666666667 | L36: -0.1531125828 | M36: 0.02611823585 | O36: 131298.94 | P36: 894265.95 | Q36: 892266.8 | R36: Monthly Recurring Charge
B37: 1.1 Flat-Rate Offers | C37: AVC TC-4 500/200 Mbps | D37: Fibre | E37: =_xlfn._xlws.FILTER('Compliance Summary'!$E$86:$E$119,('Compliance Summary'!$C$86:$C$119='WAPC Price & Quantity'!C37)*('Compliance Summary'!$D$86:$D$119='WAPC Price & Quantity'!D37), "n/a") -> Other fixed line and fixed wireless TC-4 | F37: 100 | G37: 101 | H37: 79 | I37: 81.21 | K37: 0.01 | L37: -0.2178217822 | M37: 0.02797468354 | O37: 31667.44 | P37: 67629.9 | Q37: 67230.07 | R37: Monthly Recurring Charge
B38: 1.1 Flat-Rate Offers | C38: AVC TC-4 1000/50 Mbps | D38: Fibre, HFC | E38: =_xlfn._xlws.FILTER('Compliance Summary'!$E$86:$E$119,('Compliance Summary'!$C$86:$C$119='WAPC Price & Quantity'!C38)*('Compliance Summary'!$D$86:$D$119='WAPC Price & Quantity'!D38), "n/a") -> Other fixed line and fixed wireless TC-4 | F38: 72.22 | G38: 73.93 | H38: 75.94 | I38: 77.61 | K38: 0.02367765162 | L38: 0.02718788043 | M38: 0.02199104556 | O38: 2481095.67 | P38: 3547976.68 | Q38: 4892900.22 | R38: Monthly Recurring Charge
B39: 1.1 Flat-Rate Offers | C39: AVC TC-4 1000/400 Mbps | D39: Fibre | E39: =_xlfn._xlws.FILTER('Compliance Summary'!$E$86:$E$119,('Compliance Summary'!$C$86:$C$119='WAPC Price & Quantity'!C39)*('Compliance Summary'!$D$86:$D$119='WAPC Price & Quantity'!D39), "n/a") -> Other fixed line and fixed wireless TC-4 | F39: 125 | G39: 126.5 | H39: 96 | I39: 98.68 | K39: 0.012 | L39: -0.2411067194 | M39: 0.02791666667 | O39: 37774.85 | P39: 131087.38 | Q39: 130687.55 | R39: Monthly Recurring Charge
B40: 1.2 Flat-Rate Offers - Smart Places | C40: Smart Places - AVC TC-4 100/40 Mbps | D40: Fibre | E40: =_xlfn._xlws.FILTER('Compliance Summary'!$E$86:$E$119,('Compliance Summary'!$C$86:$C$119='WAPC Price & Quantity'!C40)*('Compliance Summary'!$D$86:$D$119='WAPC Price & Quantity'!D40), "n/a") -> Other fixed line and fixed wireless TC-4 | F40: 60.22 | G40: 61.53 | H40: 63.94 | I40: 65.61 | K40: 0.02175357024 | L40: 0.03916788558 | M40: 0.02611823585 | O40: 38.17 | P40: 803.44 | Q40: 2402.76 | R40: Monthly Recurring Charge
B41: 1.2 Flat-Rate Offers - Smart Places | C41: Smart Places - AVC TC-4 250/100 Mbps | D41: Fibre | E41: =_xlfn._xlws.FILTER('Compliance Summary'!$E$86:$E$119,('Compliance Summary'!$C$86:$C$119='WAPC Price & Quantity'!C41)*('Compliance Summary'!$D$86:$D$119='WAPC Price & Quantity'!D41), "n/a") -> Other fixed line and fixed wireless TC-4 | F41: 75 | G41: 75.5 | H41: 63.94 | I41: 65.61 | K41: 0.006666666667 | L41: -0.1531125828 | M41: 0.02611823585 | O41: 0 | P41: 200.86 | Q41: 600.69 | R41: Monthly Recurring Charge
B42: 1.2 Flat-Rate Offers - Smart Places | C42: Smart Places - AVC TC-4 500/200 Mbps | D42: Fibre | E42: =_xlfn._xlws.FILTER('Compliance Summary'!$E$86:$E$119,('Compliance Summary'!$C$86:$C$119='WAPC Price & Quantity'!C42)*('Compliance Summary'!$D$86:$D$119='WAPC Price & Quantity'!D42), "n/a") -> Other fixed line and fixed wireless TC-4 | F42: 100 | G42: 101 | H42: 79 | I42: 81.21 | K42: 0.01 | L42: -0.2178217822 | M42: 0.02797468354 | O42: 0 | P42: 200.86 | Q42: 600.69 | R42: Monthly Recurring Charge
B43: 1.2 Flat-Rate Offers - Smart Places | C43: Smart Places - AVC TC-4 1000/400 Mbps | D43: Fibre | E43: =_xlfn._xlws.FILTER('Compliance Summary'!$E$86:$E$119,('Compliance Summary'!$C$86:$C$119='WAPC Price & Quantity'!C43)*('Compliance Summary'!$D$86:$D$119='WAPC Price & Quantity'!D43), "n/a") -> Other fixed line and fixed wireless TC-4 | F43: 125 | G43: 126.5 | H43: 96 | I43: 98.68 | K43: 0.012 | L43: -0.2411067194 | M43: 0.02791666667 | O43: 0 | P43: 200.86 | Q43: 600.69 | R43: Monthly Recurring Charge
B44: 1.5 Asymmetric AVC Offers in respect of the NBN Co Satellite Network | C44: AVC TC-4 12/1 Mbps | D44: Satellite | E44: =_xlfn._xlws.FILTER('Compliance Summary'!$E$86:$E$119,('Compliance Summary'!$C$86:$C$119='WAPC Price & Quantity'!C44)*('Compliance Summary'!$D$86:$D$119='WAPC Price & Quantity'!D44), "n/a") -> Satellite AVC TC-4 | F44: 24 | G44: 24 | H44: 24 | I44: 24 | K44: 0 | L44: 0 | M44: 0 | O44: 139120.8 | P44: 103085.94 | Q44: 77190.88 | R44: Monthly Recurring Charge
B45: 1.5 Asymmetric AVC Offers in respect of the NBN Co Satellite Network | C45: AVC TC-4 25/5 Mbps | D45: Satellite | E45: =_xlfn._xlws.FILTER('Compliance Summary'!$E$86:$E$119,('Compliance Summary'!$C$86:$C$119='WAPC Price & Quantity'!C45)*('Compliance Summary'!$D$86:$D$119='WAPC Price & Quantity'!D45), "n/a") -> Satellite AVC TC-4 | F45: 27 | G45: 27 | H45: 27 | I45: 27 | K45: 0 | L45: 0 | M45: 0 | O45: 227642.86 | P45: 209631.48 | Q45: 164605.01 | R45: Monthly Recurring Charge
B46: 2.1 Bundled TC-2 Offers | C46: AVC TC-2 5/5 Mbps | D46: Fibre, FTTB, FTTN, FTTC, HFC | E46: =_xlfn._xlws.FILTER('Compliance Summary'!$E$86:$E$119,('Compliance Summary'!$C$86:$C$119='WAPC Price & Quantity'!C46)*('Compliance Summary'!$D$86:$D$119='WAPC Price & Quantity'!D46), "n/a") -> n/a | F46: 50 | G46: 51.2 | H46: 53.09 | I46: 54.58 | K46: 0.024 | L46: 0.0369140625 | M46: 0.02806554907 | O46: 114433.71 | P46: 99389.57 | Q46: 74089.21 | R46: Monthly Recurring Charge
B47: 2.1 Bundled TC-2 Offers | C47: AVC TC-2 10/10 Mbps | D47: Fibre, FTTB, FTTN, FTTC, HFC | E47: =_xlfn._xlws.FILTER('Compliance Summary'!$E$86:$E$119,('Compliance Summary'!$C$86:$C$119='WAPC Price & Quantity'!C47)*('Compliance Summary'!$D$86:$D$119='WAPC Price & Quantity'!D47), "n/a") -> n/a | F47: 131 | G47: 134.14 | H47: 139.11 | I47: 143 | K47: 0.02396946565 | L47: 0.0370508424 | M47: 0.02796348214 | O47: 78357.86 | P47: 51928.04 | Q47: 30652.4 | R47: Monthly Recurring Charge
B48: 2.1 Bundled TC-2 Offers | C48: AVC TC-2 20/20 Mbps | D48: Fibre, FTTB, FTTN, FTTC | E48: =_xlfn._xlws.FILTER('Compliance Summary'!$E$86:$E$119,('Compliance Summary'!$C$86:$C$119='WAPC Price & Quantity'!C48)*('Compliance Summary'!$D$86:$D$119='WAPC Price & Quantity'!D48), "n/a") -> n/a | F48: 172 | G48: 175 | H48: 175 | I48: 175 | K48: 0.01744186047 | L48: 0 | M48: 0 | O48: 42365.16 | P48: 21128.3 | Q48: 9484.98 | R48: Monthly Recurring Charge
B49: 2.1 Bundled TC-2 Offers | C49: AVC TC-2 30/30 Mbps | D49: Fibre | E49: =_xlfn._xlws.FILTER('Compliance Summary'!$E$86:$E$119,('Compliance Summary'!$C$86:$C$119='WAPC Price & Quantity'!C49)*('Compliance Summary'!$D$86:$D$119='WAPC Price & Quantity'!D49), "n/a") -> n/a | F49: 175 | G49: 175 | H49: 175 | I49: 175 | K49: 0 | L49: 0 | M49: 0 | O49: 2011.46 | P49: 1770.08 | Q49: 1148.9 | R49: Monthly Recurring Charge
B50: 2.1 Bundled TC-2 Offers | C50: AVC TC-2 40/40 Mbps | D50: Fibre | E50: =_xlfn._xlws.FILTER('Compliance Summary'!$E$86:$E$119,('Compliance Summary'!$C$86:$C$119='WAPC Price & Quantity'!C50)*('Compliance Summary'!$D$86:$D$119='WAPC Price & Quantity'!D50), "n/a") -> n/a | F50: 175 | G50: 175 | H50: 175 | I50: 175 | K50: 0 | L50: 0 | M50: 0 | O50: 7499.93 | P50: 7259.33 | Q50: 4654.53 | R50: Monthly Recurring Charge
B51: 2.1 Bundled TC-2 Offers | C51: AVC TC-2 50/50 Mbps | D51: Fibre | E51: =_xlfn._xlws.FILTER('Compliance Summary'!$E$86:$E$119,('Compliance Summary'!$C$86:$C$119='WAPC Price & Quantity'!C51)*('Compliance Summary'!$D$86:$D$119='WAPC Price & Quantity'!D51), "n/a") -> n/a | F51: 175 | G51: 175 | H51: 175 | I51: 175 | K51: 0 | L51: 0 | M51: 0 | O51: 9279.91 | P51: 9071.71 | Q51: 5825.53 | R51: Monthly Recurring Charge
B52: 2.1 Bundled TC-2 Offers | C52: AVC TC-2 60/60 Mbps | D52: Fibre | E52: =_xlfn._xlws.FILTER('Compliance Summary'!$E$86:$E$119,('Compliance Summary'!$C$86:$C$119='WAPC Price & Quantity'!C52)*('Compliance Summary'!$D$86:$D$119='WAPC Price & Quantity'!D52), "n/a") -> n/a | F52: 175 | G52: 175 | H52: 175 | I52: 175 | K52: 0 | L52: 0 | M52: 0 | O52: 550.95 | P52: 529.02 | Q52: 338.78 | R52: Monthly Recurring Charge
B53: 2.1 Bundled TC-2 Offers | C53: AVC TC-2 70/70 Mbps | D53: Fibre | E53: =_xlfn._xlws.FILTER('Compliance Summary'!$E$86:$E$119,('Compliance Summary'!$C$86:$C$119='WAPC Price & Quantity'!C53)*('Compliance Summary'!$D$86:$D$119='WAPC Price & Quantity'!D53), "n/a") -> n/a | F53: 175 | G53: 175 | H53: 175 | I53: 175 | K53: 0 | L53: 0 | M53: 0 | O53: 0 | P53: 0 | Q53: 0 | R53: Monthly Recurring Charge
B54: 2.1 Bundled TC-2 Offers | C54: AVC TC-2 80/80 Mbps | D54: Fibre | E54: =_xlfn._xlws.FILTER('Compliance Summary'!$E$86:$E$119,('Compliance Summary'!$C$86:$C$119='WAPC Price & Quantity'!C54)*('Compliance Summary'!$D$86:$D$119='WAPC Price & Quantity'!D54), "n/a") -> n/a | F54: 175 | G54: 175 | H54: 175 | I54: 175 | K54: 0 | L54: 0 | M54: 0 | O54: 36 | P54: 32.7 | Q54: 22.09 | R54: Monthly Recurring Charge
B55: 2.1 Bundled TC-2 Offers | C55: AVC TC-2 90/90 Mbps | D55: Fibre | E55: =_xlfn._xlws.FILTER('Compliance Summary'!$E$86:$E$119,('Compliance Summary'!$C$86:$C$119='WAPC Price & Quantity'!C55)*('Compliance Summary'!$D$86:$D$119='WAPC Price & Quantity'!D55), "n/a") -> n/a | F55: 175 | G55: 175 | H55: 175 | I55: 175 | K55: 0 | L55: 0 | M55: 0 | O55: 0 | P55: 0 | Q55: 0 | R55: Monthly Recurring Charge
B56: 2.1 Bundled TC-2 Offers | C56: AVC TC-2 100/100 Mbps | D56: Fibre | E56: =_xlfn._xlws.FILTER('Compliance Summary'!$E$86:$E$119,('Compliance Summary'!$C$86:$C$119='WAPC Price & Quantity'!C56)*('Compliance Summary'!$D$86:$D$119='WAPC Price & Quantity'!D56), "n/a") -> n/a | F56: 175 | G56: 175 | H56: 175 | I56: 175 | K56: 0 | L56: 0 | M56: 0 | O56: 2027.87 | P56: 100.2 | Q56: 0 | R56: Monthly Recurring Charge
B57: 2.2 Bundled TC-2 Offers: Smart Places | C57: Smart Places - AVC TC-2 5/5 Mbps | D57: Fibre | E57: =_xlfn._xlws.FILTER('Compliance Summary'!$E$86:$E$119,('Compliance Summary'!$C$86:$C$119='WAPC Price & Quantity'!C57)*('Compliance Summary'!$D$86:$D$119='WAPC Price & Quantity'!D57), "n/a") -> n/a | F57: 50 | G57: 51.2 | H57: 53.09 | I57: 54.58 | K57: 0.024 | L57: 0.0369140625 | M57: 0.02806554907 | O57: 60 | P57: 0 | Q57: 0 | R57: Monthly Recurring Charge | S57: 11
B58: 2.2 Bundled TC-2 Offers: Smart Places | C58: Smart Places - AVC TC-2 10/10 Mbps | D58: Fibre | E58: =_xlfn._xlws.FILTER('Compliance Summary'!$E$86:$E$119,('Compliance Summary'!$C$86:$C$119='WAPC Price & Quantity'!C58)*('Compliance Summary'!$D$86:$D$119='WAPC Price & Quantity'!D58), "n/a") -> n/a | F58: 131 | G58: 134.14 | H58: 139.11 | I58: 143 | K58: 0.02396946565 | L58: 0.0370508424 | M58: 0.02796348214 | O58: 0 | P58: 0 | Q58: 0 | R58: Monthly Recurring Charge | S58: 11
B59: 2.2 Bundled TC-2 Offers: Smart Places | C59: Smart Places - AVC TC-2 20/20 Mbps | D59: Fibre | E59: =_xlfn._xlws.FILTER('Compliance Summary'!$E$86:$E$119,('Compliance Summary'!$C$86:$C$119='WAPC Price & Quantity'!C59)*('Compliance Summary'!$D$86:$D$119='WAPC Price & Quantity'!D59), "n/a") -> n/a | F59: 172 | G59: 175 | H59: 175 | I59: 175 | K59: 0.01744186047 | L59: 0 | M59: 0 | O59: 12 | P59: 0 | Q59: 0 | R59: Monthly Recurring Charge | S59: 11
B60: 2.2 Bundled TC-2 Offers: Smart Places | C60: Smart Places - AVC TC-2 50/50 Mbps | D60: Fibre | E60: =_xlfn._xlws.FILTER('Compliance Summary'!$E$86:$E$119,('Compliance Summary'!$C$86:$C$119='WAPC Price & Quantity'!C60)*('Compliance Summary'!$D$86:$D$119='WAPC Price & Quantity'!D60), "n/a") -> n/a | F60: 175 | G60: 175 | H60: 175 | I60: 175 | K60: 0 | L60: 0 | M60: 0 | O60: 0 | P60: 0 | Q60: 0 | R60: Monthly Recurring Charge | S60: 11
B61: 2.3 Symmetric Access Capacity Offers (TC-1) | C61: AVC TC-1 0.15 Mbps | D61: Fibre, FTTB, FTTN, FTTC, HFC, Wireless, Satellite | E61: =_xlfn._xlws.FILTER('Compliance Summary'!$E$86:$E$119,('Compliance Summary'!$C$86:$C$119='WAPC Price & Quantity'!C61)*('Compliance Summary'!$D$86:$D$119='WAPC Price & Quantity'!D61), "n/a") -> n/a | F61: 10 | G61: 10 | H61: 10 | I61: 10 | K61: 0 | L61: 0 | M61: 0 | O61: 0 | P61: 0 | Q61: 0 | R61: Monthly Recurring Charge | S61: 4
B62: 2.3 Symmetric Access Capacity Offers (TC-1) | C62: AVC TC-1 0.3 Mbps | D62: Fibre, FTTB, FTTN, FTTC, HFC, Wireless | E62: =_xlfn._xlws.FILTER('Compliance Summary'!$E$86:$E$119,('Compliance Summary'!$C$86:$C$119='WAPC Price & Quantity'!C62)*('Compliance Summary'!$D$86:$D$119='WAPC Price & Quantity'!D62), "n/a") -> n/a | F62: 20 | G62: 18.5 | H62: 19.18 | I62: 19.72 | K62: -0.075 | L62: 0.03675675676 | M62: 0.02815432742 | O62: 599942.43 | P62: 491275.24 | Q62: 350786.71 | R62: Monthly Recurring Charge
B63: 2.3 Symmetric Access Capacity Offers (TC-1) | C63: AVC TC-1 0.5 Mbps | D63: Fibre, FTTB, FTTN, FTTC, HFC | E63: =_xlfn._xlws.FILTER('Compliance Summary'!$E$86:$E$119,('Compliance Summary'!$C$86:$C$119='WAPC Price & Quantity'!C63)*('Compliance Summary'!$D$86:$D$119='WAPC Price & Quantity'!D63), "n/a") -> n/a | F63: 33 | G63: 18.5 | H63: 19.18 | I63: 19.72 | K63: -0.4393939394 | L63: 0.03675675676 | M63: 0.02815432742 | O63: 110064.99 | P63: 81220.97 | Q63: 53013.92 | R63: Monthly Recurring Charge
B64: 2.3 Symmetric Access Capacity Offers (TC-1) | C64: AVC TC-1 1 Mbps | D64: Fibre, FTTB, FTTN, FTTC, HFC | E64: =_xlfn._xlws.FILTER('Compliance Summary'!$E$86:$E$119,('Compliance Summary'!$C$86:$C$119='WAPC Price & Quantity'!C64)*('Compliance Summary'!$D$86:$D$119='WAPC Price & Quantity'!D64), "n/a") -> n/a | F64: 66 | G64: 18.5 | H64: 19.18 | I64: 19.72 | K64: -0.7196969697 | L64: 0.03675675676 | M64: 0.02815432742 | O64: 50332.21 | P64: 37426.4 | Q64: 24677.57 | R64: Monthly Recurring Charge
B65: 2.3 Symmetric Access Capacity Offers (TC-1) | C65: AVC TC-1 2 Mbps | D65: Fibre, FTTB, FTTN, FTTC, HFC | E65: =_xlfn._xlws.FILTER('Compliance Summary'!$E$86:$E$119,('Compliance Summary'!$C$86:$C$119='WAPC Price & Quantity'!C65)*('Compliance Summary'!$D$86:$D$119='WAPC Price & Quantity'!D65), "n/a") -> n/a | F65: 132 | G65: 18.5 | H65: 19.18 | I65: 19.72 | K65: -0.8598484848 | L65: 0.03675675676 | M65: 0.02815432742 | O65: 597.3 | P65: 498.1 | Q65: 363.69 | R65: Monthly Recurring Charge
B66: 2.3 Symmetric Access Capacity Offers (TC-1) | C66: AVC TC-1 5 Mbps | D66: Fibre, FTTB, FTTN, FTTC, HFC | E66: =_xlfn._xlws.FILTER('Compliance Summary'!$E$86:$E$119,('Compliance Summary'!$C$86:$C$119='WAPC Price & Quantity'!C66)*('Compliance Summary'!$D$86:$D$119='WAPC Price & Quantity'!D66), "n/a") -> n/a | F66: 330 | G66: 60 | H66: 62.22 | I66: 63.96 | K66: -0.8181818182 | L66: 0.037 | M66: 0.02796528447 | O66: 310.59 | P66: 266.51 | Q66: 196.46 | R66: Monthly Recurring Charge
B67: 3.2 Connectivity Virtual Circuit Offers | C67: CVC TC-4 (Satellite) | D67: Satellite | E67: =_xlfn._xlws.FILTER('Compliance Summary'!$E$86:$E$119,('Compliance Summary'!$C$86:$C$119='WAPC Price & Quantity'!C67)*('Compliance Summary'!$D$86:$D$119='WAPC Price & Quantity'!D67), "n/a") -> Satellite CVC TC-4 | F67: 15.75 | G67: 15.75 | H67: 15.75 | I67: 15.75 | K67: 0 | L67: 0 | M67: 0 | O67: 134615.34 | P67: 114778.44 | Q67: 88747.71 | R67: Monthly Recurring Charge
B68: 3.2 Connectivity Virtual Circuit Offers | C68: CVC TC-1 | D68: Fibre, FTTB, FTTN, FTTC, HFC, Wireless, Satellite | E68: =_xlfn._xlws.FILTER('Compliance Summary'!$E$86:$E$119,('Compliance Summary'!$C$86:$C$119='WAPC Price & Quantity'!C68)*('Compliance Summary'!$D$86:$D$119='WAPC Price & Quantity'!D68), "n/a") -> n/a | F68: 17.5 | G68: 17.5 | H68: 17.5 | I68: 17.5 | K68: 0 | L68: 0 | M68: 0 | O68: 425264.05 | P68: 401306.08 | Q68: 359211.86 | R68: Monthly Recurring Charge
B69: 3.2 Connectivity Virtual Circuit Offers | C69: CVC TC-2 | D69: Fibre, FTTB, FTTN, FTTC, HFC | E69: =_xlfn._xlws.FILTER('Compliance Summary'!$E$86:$E$119,('Compliance Summary'!$C$86:$C$119='WAPC Price & Quantity'!C69)*('Compliance Summary'!$D$86:$D$119='WAPC Price & Quantity'!D69), "n/a") -> n/a | F69: 17.5 | G69: 17.5 | H69: 17.5 | I69: 17.5 | K69: 0 | L69: 0 | M69: 0 | O69: 0 | P69: 0 | Q69: 0 | R69: Monthly Recurring Charge
B70: 4 CVC Class Offers for the NBN Co Satellite Network | C70: CVC Class 0 | D70: Satellite | E70: =_xlfn._xlws.FILTER('Compliance Summary'!$E$86:$E$119,('Compliance Summary'!$C$86:$C$119='WAPC Price & Quantity'!C70)*('Compliance Summary'!$D$86:$D$119='WAPC Price & Quantity'!D70), "n/a") -> Satellite CVC TC-4 | F70: 0 | G70: 0 | H70: 0 | I70: 0 | K70: 0 | L70: 0 | M70: 0 | O70: 0 | P70: 0 | Q70: 0 | R70: Monthly Recurring Charge | S70: 10
B71: 4 CVC Class Offers for the NBN Co Satellite Network | C71: CVC Class 1 | D71: Satellite | E71: =_xlfn._xlws.FILTER('Compliance Summary'!$E$86:$E$119,('Compliance Summary'!$C$86:$C$119='WAPC Price & Quantity'!C71)*('Compliance Summary'!$D$86:$D$119='WAPC Price & Quantity'!D71), "n/a") -> Satellite CVC TC-4 | F71: 18 | G71: 18 | H71: 18 | I71: 18 | K71: 0 | L71: 0 | M71: 0 | O71: 492.53 | P71: 408 | Q71: 408 | R71: Monthly Recurring Charge
B72: 4 CVC Class Offers for the NBN Co Satellite Network | C72: CVC Class 2 | D72: Satellite | E72: =_xlfn._xlws.FILTER('Compliance Summary'!$E$86:$E$119,('Compliance Summary'!$C$86:$C$119='WAPC Price & Quantity'!C72)*('Compliance Summary'!$D$86:$D$119='WAPC Price & Quantity'!D72), "n/a") -> Satellite CVC TC-4 | F72: 40 | G72: 40 | H72: 40 | I72: 40 | K72: 0 | L72: 0 | M72: 0 | O72: 5719.76 | P72: 3325.31 | Q72: 1219.9 | R72: Monthly Recurring Charge
B73: 5.1 Network to Network Interface Offers | C73: NNI 1000BaseLX - per NNI Bearer - Recurring | D73: All | E73: =_xlfn._xlws.FILTER('Compliance Summary'!$E$86:$E$119,('Compliance Summary'!$C$86:$C$119='WAPC Price & Quantity'!C73)*('Compliance Summary'!$D$86:$D$119='WAPC Price & Quantity'!D73), "n/a") -> n/a | F73: 100 | G73: 100 | H73: 103.7 | I73: 106.6 | K73: 0 | L73: 0.037 | M73: 0.02796528447 | O73: 3147.25 | P73: 2069.21 | Q73: 1007.21 | R73: Monthly Recurring Charge
B74: 5.1 Network to Network Interface Offers | C74: NNI 10GBaseLR - per NNI Bearer - Recurring | D74: All | E74: =_xlfn._xlws.FILTER('Compliance Summary'!$E$86:$E$119,('Compliance Summary'!$C$86:$C$119='WAPC Price & Quantity'!C74)*('Compliance Summary'!$D$86:$D$119='WAPC Price & Quantity'!D74), "n/a") -> n/a | F74: 400 | G74: 375 | H74: 388.88 | I74: 399.76 | K74: -0.0625 | L74: 0.03701333333 | M74: 0.02797778235 | O74: 105253.12 | P74: 101364 | Q74: 101208 | R74: Monthly Recurring Charge
B75: 5.1 Network to Network Interface Offers | C75: NNI 100GBaseLR4 - per NNI Bearer - Recurring | D75: All | E75: =_xlfn._xlws.FILTER('Compliance Summary'!$E$86:$E$119,('Compliance Summary'!$C$86:$C$119='WAPC Price & Quantity'!C75)*('Compliance Summary'!$D$86:$D$119='WAPC Price & Quantity'!D75), "n/a") -> n/a | F75: 2400 | G75: 2250 | H75: 2333.25 | I75: 2398.58 | K75: -0.0625 | L75: 0.037 | M75: 0.02799957141 | O75: 2947.27 | P75: 4160.2 | Q75: 5183.2 | R75: Monthly Recurring Charge
B76: 5.1 Network to Network Interface Offers | C76: NNI 1000BaseEX - per NNI Bearer - Recurring | D76: All | E76: =_xlfn._xlws.FILTER('Compliance Summary'!$E$86:$E$119,('Compliance Summary'!$C$86:$C$119='WAPC Price & Quantity'!C76)*('Compliance Summary'!$D$86:$D$119='WAPC Price & Quantity'!D76), "n/a") -> n/a | F76: 125 | G76: 125 | H76: 129.63 | I76: 133.25 | K76: 0 | L76: 0.03704 | M76: 0.0279256345 | O76: 12 | P76: 12 | Q76: 12 | R76: Monthly Recurring Charge
B77: 5.1 Network to Network Interface Offers | C77: NNI 10GBaseER - per NNI Bearer - Recurring | D77: All | E77: =_xlfn._xlws.FILTER('Compliance Summary'!$E$86:$E$119,('Compliance Summary'!$C$86:$C$119='WAPC Price & Quantity'!C77)*('Compliance Summary'!$D$86:$D$119='WAPC Price & Quantity'!D77), "n/a") -> n/a | F77: 500 | G77: 470 | H77: 487.39 | I77: 501.04 | K77: -0.06 | L77: 0.037 | M77: 0.02800631937 | O77: 2880.59 | P77: 2696.4 | Q77: 2840.4 | R77: Monthly Recurring Charge
B78: 5.1 Network to Network Interface Offers | C78: NNI 100GBaseER4 - per NNI Bearer - Recurring | D78: All | E78: =_xlfn._xlws.FILTER('Compliance Summary'!$E$86:$E$119,('Compliance Summary'!$C$86:$C$119='WAPC Price & Quantity'!C78)*('Compliance Summary'!$D$86:$D$119='WAPC Price & Quantity'!D78), "n/a") -> n/a | F78: 3000 | G78: 2800 | H78: 2903.6 | I78: 2984.9 | K78: -0.06666666667 | L78: 0.037 | M78: 0.02799972448 | O78: 529.15 | P78: 564 | Q78: 564 | R78: Monthly Recurring Charge
B79: 5.1 Network to Network Interface Offers | C79: V-NNI | D79: Fibre, FTTB, FTTN, FTTC, HFC, Wireless | E79: =_xlfn._xlws.FILTER('Compliance Summary'!$E$86:$E$119,('Compliance Summary'!$C$86:$C$119='WAPC Price & Quantity'!C79)*('Compliance Summary'!$D$86:$D$119='WAPC Price & Quantity'!D79), "n/a") -> n/a | F79: 65 | G79: 30 | H79: 31.11 | I79: 31.98 | K79: -0.5384615385 | L79: 0.037 | M79: 0.02796528447 | O79: 21800.32 | P79: 22325.57 | Q79: 22613.57 | R79: Monthly Recurring Charge
B80: 5.1 Network to Network Interface Offers | C80: NNI Link | D80: Fibre, FTTB, FTTN, FTTC, HFC, Wireless | E80: =_xlfn._xlws.FILTER('Compliance Summary'!$E$86:$E$119,('Compliance Summary'!$C$86:$C$119='WAPC Price & Quantity'!C80)*('Compliance Summary'!$D$86:$D$119='WAPC Price & Quantity'!D80), "n/a") -> n/a | F80: 0 | G80: 0 | H80: 0 | I80: 0 | K80: 0 | L80: 0 | M80: 0 | O80: 24339.06 | P80: 22325.57 | Q80: 22613.57 | R80: Monthly Recurring Charge
B81: 5.2 10G NNI Starter Offers | C81: NNI 10GBaseLR (in single chassis configuration or as one of a pair in a chassis diverse configuration) – per NNI Bearer | D81: All | E81: =_xlfn._xlws.FILTER('Compliance Summary'!$E$86:$E$119,('Compliance Summary'!$C$86:$C$119='WAPC Price & Quantity'!C81)*('Compliance Summary'!$D$86:$D$119='WAPC Price & Quantity'!D81), "n/a") -> n/a | F81: 200 | G81: 187.5 | H81: 194.44 | I81: 199.88 | K81: =IF(F81>0,G81/F81-1,0) -> -0.0625 | L81: =IF(G81>0,H81/G81-1,0) -> 0.03701333333 | M81: =IF(H81>0,I81/H81-1,0) -> 0.02797778235 | O81: 6911.84 | P81: 8684.8 | Q81: 8684.8 | R81: Monthly Recurring Charge
B82: 5.2 10G NNI Starter Offers | C82: NNI 10GBaseER (in single chassis configuration or as one of a pair in a chassis diverse configuration) – per NNI Bearer | D82: All | E82: =_xlfn._xlws.FILTER('Compliance Summary'!$E$86:$E$119,('Compliance Summary'!$C$86:$C$119='WAPC Price & Quantity'!C82)*('Compliance Summary'!$D$86:$D$119='WAPC Price & Quantity'!D82), "n/a") -> n/a | F82: 250 | G82: 235 | H82: 243.7 | I82: 250.52 | K82: -0.06 | L82: 0.0370212766 | M82: 0.02798522774 | O82: 1016.58 | P82: 1300.4 | Q82: 1300.4 | R82: Monthly Recurring Charge
B83: 6. Second UNI-V and AVC Offer | C83: Second UNI-V and AVC offer | D83: Fibre | E83: =_xlfn._xlws.FILTER('Compliance Summary'!$E$86:$E$119,('Compliance Summary'!$C$86:$C$119='WAPC Price & Quantity'!C83)*('Compliance Summary'!$D$86:$D$119='WAPC Price & Quantity'!D83), "n/a") -> n/a | F83: 17.5 | G83: 17.5 | H83: 17.5 | I83: 17.5 | K83: 0 | L83: 0 | M83: 0 | O83: 18121 | P83: 17758.58 | Q83: 17403.41 | R83: Monthly Recurring Charge
B84: 7.1 Enhanced Fault Service Level Offers | C84: Enhanced SLA - 12 | D84: Fibre, FTTB, FTTN, FTTC, HFC | E84: =_xlfn._xlws.FILTER('Compliance Summary'!$E$86:$E$119,('Compliance Summary'!$C$86:$C$119='WAPC Price & Quantity'!C84)*('Compliance Summary'!$D$86:$D$119='WAPC Price & Quantity'!D84), "n/a") -> n/a | F84: 15 | G84: 15 | H84: 15 | I84: 15 | K84: 0 | L84: 0 | M84: 0 | O84: 129713.1 | P84: 96965.73 | Q84: 36004.02 | R84: Monthly Recurring Charge
B85: 7.1 Enhanced Fault Service Level Offers | C85: Enhanced SLA - 12 (24/7) | D85: Fibre, FTTB, FTTN, FTTC, HFC | E85: =_xlfn._xlws.FILTER('Compliance Summary'!$E$86:$E$119,('Compliance Summary'!$C$86:$C$119='WAPC Price & Quantity'!C85)*('Compliance Summary'!$D$86:$D$119='WAPC Price & Quantity'!D85), "n/a") -> n/a | F85: 15 | G85: 15 | H85: 15 | I85: 15 | K85: 0 | L85: 0 | M85: 0 | O85: 396190.36 | P85: 490601.3 | Q85: 686520.51 | R85: Monthly Recurring Charge
B86: 7.1 Enhanced Fault Service Level Offers | C86: Enhanced SLA - 8 | D86: Fibre, FTTB, FTTN, FTTC, HFC | E86: =_xlfn._xlws.FILTER('Compliance Summary'!$E$86:$E$119,('Compliance Summary'!$C$86:$C$119='WAPC Price & Quantity'!C86)*('Compliance Summary'!$D$86:$D$119='WAPC Price & Quantity'!D86), "n/a") -> n/a | F86: 25 | G86: 25.6 | H86: 26.55 | I86: 27.29 | K86: 0.024 | L86: 0.037109375 | M86: 0.02787193974 | O86: 8216.55 | P86: 3199.72 | Q86: 25.13 | R86: Monthly Recurring Charge
B87: 7.1 Enhanced Fault Service Level Offers | C87: Enhanced SLA - 8 (24/7) | D87: Fibre, FTTB, FTTN, FTTC, HFC | E87: =_xlfn._xlws.FILTER('Compliance Summary'!$E$86:$E$119,('Compliance Summary'!$C$86:$C$119='WAPC Price & Quantity'!C87)*('Compliance Summary'!$D$86:$D$119='WAPC Price & Quantity'!D87), "n/a") -> n/a | F87: 55 | G87: 56.32 | H87: 58.4 | I87: 60.04 | K87: 0.024 | L87: 0.03693181818 | M87: 0.02808219178 | O87: 14582.86 | P87: 20663 | Q87: 10231.57 | R87: Monthly Recurring Charge
B88: 7.1 Enhanced Fault Service Level Offers | C88: Enhanced SLA - 6 | D88: Fibre, FTTB, FTTN, FTTC, HFC | E88: =_xlfn._xlws.FILTER('Compliance Summary'!$E$86:$E$119,('Compliance Summary'!$C$86:$C$119='WAPC Price & Quantity'!C88)*('Compliance Summary'!$D$86:$D$119='WAPC Price & Quantity'!D88), "n/a") -> n/a | F88: 32.5 | G88: 33.28 | H88: 34.51 | I88: 35.48 | K88: 0.024 | L88: 0.03695913462 | M88: 0.02810779484 | O88: 137.65 | P88: 57.89 | Q88: 0.45 | R88: Monthly Recurring Charge
B89: 7.1 Enhanced Fault Service Level Offers | C89: Enhanced SLA - 6 (24/7) | D89: Fibre, FTTB, FTTN, FTTC, HFC | E89: =_xlfn._xlws.FILTER('Compliance Summary'!$E$86:$E$119,('Compliance Summary'!$C$86:$C$119='WAPC Price & Quantity'!C89)*('Compliance Summary'!$D$86:$D$119='WAPC Price & Quantity'!D89), "n/a") -> n/a | F89: 65 | G89: 66.56 | H89: 69.02 | I89: 70.96 | K89: 0.024 | L89: 0.03695913462 | M89: 0.02810779484 | O89: 337.12 | P89: 136.83 | Q89: 1.07 | R89: Monthly Recurring Charge
B90: 7.1 Enhanced Fault Service Level Offers | C90: Enhanced SLA - 4 | D90: Fibre, FTTB, FTTN, FTTC, HFC | E90: =_xlfn._xlws.FILTER('Compliance Summary'!$E$86:$E$119,('Compliance Summary'!$C$86:$C$119='WAPC Price & Quantity'!C90)*('Compliance Summary'!$D$86:$D$119='WAPC Price & Quantity'!D90), "n/a") -> n/a | F90: 40 | G90: 40.96 | H90: 42.48 | I90: 43.66 | K90: 0.024 | L90: 0.037109375 | M90: 0.02777777778 | O90: 4184.05 | P90: 3403.86 | Q90: 1285.39 | R90: Monthly Recurring Charge
B91: 7.1 Enhanced Fault Service Level Offers | C91: Enhanced SLA - 4 (24/7) | D91: Fibre, FTTB, FTTN, FTTC, HFC | E91: =_xlfn._xlws.FILTER('Compliance Summary'!$E$86:$E$119,('Compliance Summary'!$C$86:$C$119='WAPC Price & Quantity'!C91)*('Compliance Summary'!$D$86:$D$119='WAPC Price & Quantity'!D91), "n/a") -> n/a | F91: 25 | G91: 25 | H91: 25 | I91: 25 | K91: 0 | L91: 0 | M91: 0 | O91: 73722.94 | P91: 130983.67 | Q91: 207211.43 | R91: Monthly Recurring Charge
B92: 7.2 Enhanced Fault Service Level Offers | C92: Enhanced (90 Day) - 12 (24/7) Fault Service Levels | D92: Fibre, FTTB, FTTN, FTTC, HFC | E92: =_xlfn._xlws.FILTER('Compliance Summary'!$E$86:$E$119,('Compliance Summary'!$C$86:$C$119='WAPC Price & Quantity'!C92)*('Compliance Summary'!$D$86:$D$119='WAPC Price & Quantity'!D92), "n/a") -> n/a | F92: 150 | G92: 150 | H92: 150 | I92: 150 | K92: 0 | L92: 0 | M92: 0 | O92: 409 | P92: 1323.27 | Q92: 700.54 | R92: Non-Recurring Charge
B93: 7.3 Enhanced Fault Service Level Offers: Smart Places | C93: Smart Places - Enhanced SLA - 12 | D93: Fibre | E93: =_xlfn._xlws.FILTER('Compliance Summary'!$E$86:$E$119,('Compliance Summary'!$C$86:$C$119='WAPC Price & Quantity'!C93)*('Compliance Summary'!$D$86:$D$119='WAPC Price & Quantity'!D93), "n/a") -> n/a | F93: 15 | G93: 15 | H93: 15 | I93: 15 | K93: 0 | L93: 0 | M93: 0 | O93: 0 | P93: 0 | Q93: 0 | R93: Monthly Recurring Charge | S93: 14
B94: 7.3 Enhanced Fault Service Level Offers: Smart Places | C94: Smart Places - Enhanced SLA - 12 (24/7) | D94: Fibre | E94: =_xlfn._xlws.FILTER('Compliance Summary'!$E$86:$E$119,('Compliance Summary'!$C$86:$C$119='WAPC Price & Quantity'!C94)*('Compliance Summary'!$D$86:$D$119='WAPC Price & Quantity'!D94), "n/a") -> n/a | F94: 15 | G94: 15 | H94: 15 | I94: 15 | K94: 0 | L94: 0 | M94: 0 | O94: 0 | P94: 0 | Q94: 0 | R94: Monthly Recurring Charge | S94: 14
B95: 7.3 Enhanced Fault Service Level Offers: Smart Places | C95: Smart Places - Enhanced SLA - 8 | D95: Fibre | E95: =_xlfn._xlws.FILTER('Compliance Summary'!$E$86:$E$119,('Compliance Summary'!$C$86:$C$119='WAPC Price & Quantity'!C95)*('Compliance Summary'!$D$86:$D$119='WAPC Price & Quantity'!D95), "n/a") -> n/a | F95: 25 | G95: 25.6 | H95: 26.55 | I95: 27.29 | K95: 0.024 | L95: 0.037109375 | M95: 0.02787193974 | O95: 0 | P95: 0 | Q95: 0 | R95: Monthly Recurring Charge | S95: 14
B96: 7.3 Enhanced Fault Service Level Offers: Smart Places | C96: Smart places - Enhanced SLA - 8 (24/7) | D96: Fibre | E96: =_xlfn._xlws.FILTER('Compliance Summary'!$E$86:$E$119,('Compliance Summary'!$C$86:$C$119='WAPC Price & Quantity'!C96)*('Compliance Summary'!$D$86:$D$119='WAPC Price & Quantity'!D96), "n/a") -> n/a | F96: 55 | G96: 56.32 | H96: 58.4 | I96: 60.04 | K96: 0.024 | L96: 0.03693181818 | M96: 0.02808219178 | O96: 0 | P96: 0 | Q96: 0 | R96: Monthly Recurring Charge | S96: 14
B97: 8.1 Installations and activations – NBN Co Networks other than the NBN Co Satellite Network | C97: Initial Standard Installation | D97: Fibre | E97: =_xlfn._xlws.FILTER('Compliance Summary'!$E$86:$E$119,('Compliance Summary'!$C$86:$C$119='WAPC Price & Quantity'!C97)*('Compliance Summary'!$D$86:$D$119='WAPC Price & Quantity'!D97), "n/a") -> n/a | F97: 0 | G97: 0 | H97: 0 | I97: 0 | K97: 0 | L97: 0 | M97: 0 | O97: 160759 | P97: 175544.49 | Q97: 190329.98 | R97: Non-Recurring Charge
B98: 8.1 Installations and activations – NBN Co Networks other than the NBN Co Satellite Network | C98: Initial Standard Installation | D98: FTTB, FTTN, FTTC, HFC, Wireless | E98: =_xlfn._xlws.FILTER('Compliance Summary'!$E$86:$E$119,('Compliance Summary'!$C$86:$C$119='WAPC Price & Quantity'!C98)*('Compliance Summary'!$D$86:$D$119='WAPC Price & Quantity'!D98), "n/a") -> n/a | F98: 0 | G98: 0 | H98: 0 | I98: 0 | K98: 0 | L98: 0 | M98: 0 | O98: 103643 | P98: 71439.66 | Q98: 39024.32 | R98: Non-Recurring Charge
B99: 8.1 Installations and activations – NBN Co Networks other than the NBN Co Satellite Network | C99: After Hours Installation | D99: Fibre, FTTB, FTTN, FTTC, HFC | E99: =_xlfn._xlws.FILTER('Compliance Summary'!$E$86:$E$119,('Compliance Summary'!$C$86:$C$119='WAPC Price & Quantity'!C99)*('Compliance Summary'!$D$86:$D$119='WAPC Price & Quantity'!D99), "n/a") -> n/a | F99: 150 | G99: 150 | H99: 150 | I99: 150 | K99: 0 | L99: 0 | M99: 0 | O99: 2 | P99: 0 | Q99: 0 | R99: Non-Recurring Charge | S99: 12
B100: 8.1 Installations and activations – NBN Co Networks other than the NBN Co Satellite Network | C100: Fibre upgrade installation | D100: Fibre | E100: =_xlfn._xlws.FILTER('Compliance Summary'!$E$86:$E$119,('Compliance Summary'!$C$86:$C$119='WAPC Price & Quantity'!C100)*('Compliance Summary'!$D$86:$D$119='WAPC Price & Quantity'!D100), "n/a") -> n/a | F100: 200 | G100: 200 | H100: 200 | I100: 200 | K100: 0 | L100: 0 | M100: 0 | O100: 315542 | P100: 505648.51 | Q100: 621760.36 | R100: Non-Recurring Charge
B101: 8.1 Installations and activations – NBN Co Networks other than the NBN Co Satellite Network | C101: W-NTD Upgrade Installation | D101: Wireless | E101: =_xlfn._xlws.FILTER('Compliance Summary'!$E$86:$E$119,('Compliance Summary'!$C$86:$C$119='WAPC Price & Quantity'!C101)*('Compliance Summary'!$D$86:$D$119='WAPC Price & Quantity'!D101), "n/a") -> n/a | F101: 200 | G101: 200 | H101: 200 | I101: 200 | K101: 0 | L101: 0 | M101: 0 | O101: 2033 | P101: 2134.65 | Q101: 2241.38 | R101: Non-Recurring Charge
B102: 8.1 Installations and activations – NBN Co Networks other than the NBN Co Satellite Network | C102: Access Component Reactivation | D102: Fibre, FTTB, FTTN, FTTC, HFC, Wireless | E102: =_xlfn._xlws.FILTER('Compliance Summary'!$E$86:$E$119,('Compliance Summary'!$C$86:$C$119='WAPC Price & Quantity'!C102)*('Compliance Summary'!$D$86:$D$119='WAPC Price & Quantity'!D102), "n/a") -> n/a | F102: 5 | G102: 5 | H102: 5 | I102: 5 | K102: 0 | L102: 0 | M102: 0 | O102: 1244936 | P102: 1405627.4 | Q102: 1431138.47 | R102: Non-Recurring Charge
B103: 8.1 Installations and activations – NBN Co Networks other than the NBN Co Satellite Network | C103: CVC Set-up & Activation | D103: Fibre, FTTB, FTTN, FTTC, HFC, Wireless | E103: =_xlfn._xlws.FILTER('Compliance Summary'!$E$86:$E$119,('Compliance Summary'!$C$86:$C$119='WAPC Price & Quantity'!C103)*('Compliance Summary'!$D$86:$D$119='WAPC Price & Quantity'!D103), "n/a") -> n/a | F103: 0 | G103: 0 | H103: 0 | I103: 0 | K103: 0 | L103: 0 | M103: 0 | O103: 1454 | P103: 0 | Q103: 0 | R103: Non-Recurring Charge | S103: 10
B104: 8.1 Installations and activations – NBN Co Networks other than the NBN Co Satellite Network | C104: NNI 1000BaseLX - Set-up & Activation | D104: Fibre, FTTB, FTTN, FTTC, HFC, Wireless | E104: =_xlfn._xlws.FILTER('Compliance Summary'!$E$86:$E$119,('Compliance Summary'!$C$86:$C$119='WAPC Price & Quantity'!C104)*('Compliance Summary'!$D$86:$D$119='WAPC Price & Quantity'!D104), "n/a") -> n/a | F104: 1000 | G104: 1000 | H104: 1037 | I104: 1066.04 | K104: 0 | L104: 0.037 | M104: 0.02800385728 | O104: 5 | P104: 0 | Q104: 0 | R104: Non-Recurring Charge | S104: 12
B105: 8.1 Installations and activations – NBN Co Networks other than the NBN Co Satellite Network | C105: NNI 10GBaseLR - Set-up & Activation | D105: Fibre, FTTB, FTTN, FTTC, HFC, Wireless | E105: =_xlfn._xlws.FILTER('Compliance Summary'!$E$86:$E$119,('Compliance Summary'!$C$86:$C$119='WAPC Price & Quantity'!C105)*('Compliance Summary'!$D$86:$D$119='WAPC Price & Quantity'!D105), "n/a") -> n/a | F105: 3000 | G105: 3000 | H105: 3111 | I105: 3198.11 | K105: 0 | L105: 0.037 | M105: 0.02800064288 | O105: 717 | P105: 516 | Q105: 477 | R105: Non-Recurring Charge
B106: 8.1 Installations and activations – NBN Co Networks other than the NBN Co Satellite Network | C106: NNI 100GBaseLR4 - Set-up & Activation | D106: Fibre, FTTB, FTTN, FTTC, HFC, Wireless | E106: =_xlfn._xlws.FILTER('Compliance Summary'!$E$86:$E$119,('Compliance Summary'!$C$86:$C$119='WAPC Price & Quantity'!C106)*('Compliance Summary'!$D$86:$D$119='WAPC Price & Quantity'!D106), "n/a") -> n/a | F106: 20000 | G106: 20000 | H106: 20740 | I106: 21320.72 | K106: 0 | L106: 0.037 | M106: 0.028 | O106: 92 | P106: 105 | Q106: 54 | R106: Non-Recurring Charge
B107: 8.1 Installations and activations – NBN Co Networks other than the NBN Co Satellite Network | C107: NNI 1000BaseEX - Set-up & Activation | D107: Fibre, FTTB, FTTN, FTTC, HFC, Wireless | E107: =_xlfn._xlws.FILTER('Compliance Summary'!$E$86:$E$119,('Compliance Summary'!$C$86:$C$119='WAPC Price & Quantity'!C107)*('Compliance Summary'!$D$86:$D$119='WAPC Price & Quantity'!D107), "n/a") -> n/a | F107: 2000 | G107: 2000 | H107: 2074 | I107: 2132.07 | K107: 0 | L107: 0.037 | M107: 0.02799903568 | O107: 0 | P107: 0 | Q107: 0 | R107: Non-Recurring Charge
B108: 8.1 Installations and activations – NBN Co Networks other than the NBN Co Satellite Network | C108: NNI 10GBaseER - Set-up & Activation | D108: Fibre, FTTB, FTTN, FTTC, HFC, Wireless | E108: =_xlfn._xlws.FILTER('Compliance Summary'!$E$86:$E$119,('Compliance Summary'!$C$86:$C$119='WAPC Price & Quantity'!C108)*('Compliance Summary'!$D$86:$D$119='WAPC Price & Quantity'!D108), "n/a") -> n/a | F108: 4000 | G108: 4000 | H108: 4148 | I108: 4264.14 | K108: 0 | L108: 0.037 | M108: 0.02799903568 | O108: 39 | P108: 12 | Q108: 12 | R108: Non-Recurring Charge
B109: 8.1 Installations and activations – NBN Co Networks other than the NBN Co Satellite Network | C109: NNI 100GBaseER4 - Set-up & Activation | D109: Fibre, FTTB, FTTN, FTTC, HFC, Wireless | E109: =_xlfn._xlws.FILTER('Compliance Summary'!$E$86:$E$119,('Compliance Summary'!$C$86:$C$119='WAPC Price & Quantity'!C109)*('Compliance Summary'!$D$86:$D$119='WAPC Price & Quantity'!D109), "n/a") -> n/a | F109: 24000 | G109: 24000 | H109: 24888 | I109: 25584.86 | K109: 0 | L109: 0.037 | M109: 0.02799983928 | O109: 9 | P109: 0 | Q109: 0 | R109: Non-Recurring Charge | S109: 12
B110: 8.1 Installations and activations – NBN Co Networks other than the NBN Co Satellite Network | C110: NNI Link Activation | D110: Fibre, FTTB, FTTN, FTTC, HFC, Wireless | E110: =_xlfn._xlws.FILTER('Compliance Summary'!$E$86:$E$119,('Compliance Summary'!$C$86:$C$119='WAPC Price & Quantity'!C110)*('Compliance Summary'!$D$86:$D$119='WAPC Price & Quantity'!D110), "n/a") -> n/a | F110: 0 | G110: 0 | H110: 0 | I110: 0 | K110: 0 | L110: 0 | M110: 0 | O110: 361 | P110: 0 | Q110: 0 | R110: Non-Recurring Charge | S110: 10
B111: 8.1 Installations and activations – NBN Co Networks other than the NBN Co Satellite Network | C111: V-NNI Activation | D111: Fibre, FTTB, FTTN, FTTC, HFC, Wireless | E111: =_xlfn._xlws.FILTER('Compliance Summary'!$E$86:$E$119,('Compliance Summary'!$C$86:$C$119='WAPC Price & Quantity'!C111)*('Compliance Summary'!$D$86:$D$119='WAPC Price & Quantity'!D111), "n/a") -> n/a | F111: 250 | G111: 250 | H111: 259.25 | I111: 266.51 | K111: 0 | L111: 0.037 | M111: 0.02800385728 | O111: 338 | P111: 60 | Q111: 60 | R111: Non-Recurring Charge
B112: 8.1 Installations and activations – NBN Co Networks other than the NBN Co Satellite Network | C112: Service Qualification Enquiry | D112: Fibre, FTTB, FTTN, FTTC, HFC, Wireless | E112: =_xlfn._xlws.FILTER('Compliance Summary'!$E$86:$E$119,('Compliance Summary'!$C$86:$C$119='WAPC Price & Quantity'!C112)*('Compliance Summary'!$D$86:$D$119='WAPC Price & Quantity'!D112), "n/a") -> n/a | F112: 0 | G112: 0 | H112: 0 | I112: 0 | K112: 0 | L112: 0 | M112: 0 | O112: 0 | P112: 0 | Q112: 0 | R112: Non-Recurring Charge | S112: 10
B113: 8.2 Installations and activations – Smart Places | C113: Smart Places - Initial Standard Installation | D113: Fibre | E113: =_xlfn._xlws.FILTER('Compliance Summary'!$E$86:$E$119,('Compliance Summary'!$C$86:$C$119='WAPC Price & Quantity'!C113)*('Compliance Summary'!$D$86:$D$119='WAPC Price & Quantity'!D113), "n/a") -> n/a | F113: 0 | G113: 0 | H113: 0 | I113: 0 | K113: 0 | L113: 0 | M113: 0 | O113: 0 | P113: 0 | Q113: 0 | R113: Non-Recurring Charge | S113: 10
B114: 8.2 Installations and activations – Smart Places | C114: Smart Places - Access Component Reactivation | D114: Fibre | E114: =_xlfn._xlws.FILTER('Compliance Summary'!$E$86:$E$119,('Compliance Summary'!$C$86:$C$119='WAPC Price & Quantity'!C114)*('Compliance Summary'!$D$86:$D$119='WAPC Price & Quantity'!D114), "n/a") -> n/a | F114: 5 | G114: 5 | H114: 5 | I114: 5 | K114: 0 | L114: 0 | M114: 0 | O114: 0 | P114: 0 | Q114: 0 | R114: Non-Recurring Charge | S114: 14
B115: 8.2 Installations and activations – Smart Places | C115: Smart Places - CVC Set-up & Activation | D115: Fibre | E115: =_xlfn._xlws.FILTER('Compliance Summary'!$E$86:$E$119,('Compliance Summary'!$C$86:$C$119='WAPC Price & Quantity'!C115)*('Compliance Summary'!$D$86:$D$119='WAPC Price & Quantity'!D115), "n/a") -> n/a | F115: 0 | G115: 0 | H115: 0 | I115: 0 | K115: 0 | L115: 0 | M115: 0 | O115: 0 | P115: 0 | Q115: 0 | R115: Non-Recurring Charge | S115: 10
B116: 8.2 Installations and activations – Smart Places | C116: Smart Places - NNI 1000BaseLX - Set-up & Activation | D116: Fibre | E116: =_xlfn._xlws.FILTER('Compliance Summary'!$E$86:$E$119,('Compliance Summary'!$C$86:$C$119='WAPC Price & Quantity'!C116)*('Compliance Summary'!$D$86:$D$119='WAPC Price & Quantity'!D116), "n/a") -> n/a | F116: 1000 | G116: 1000 | H116: 1037 | I116: 1066.04 | K116: 0 | L116: 0.037 | M116: 0.02800385728 | O116: 0 | P116: 0 | Q116: 0 | R116: Non-Recurring Charge | S116: 14
B117: 8.2 Installations and activations – Smart Places | C117: Smart Places - NNI 10GBaseLR - Set-up & Activation | D117: Fibre | E117: =_xlfn._xlws.FILTER('Compliance Summary'!$E$86:$E$119,('Compliance Summary'!$C$86:$C$119='WAPC Price & Quantity'!C117)*('Compliance Summary'!$D$86:$D$119='WAPC Price & Quantity'!D117), "n/a") -> n/a | F117: 3000 | G117: 3000 | H117: 3111 | I117: 3198.11 | K117: 0 | L117: 0.037 | M117: 0.02800064288 | O117: 0 | P117: 0 | Q117: 0 | R117: Non-Recurring Charge | S117: 14
B118: 8.2 Installations and activations – Smart Places | C118: Smart Places - NNI 100GBaseLR4 - Set-up & Activation | D118: Fibre | E118: =_xlfn._xlws.FILTER('Compliance Summary'!$E$86:$E$119,('Compliance Summary'!$C$86:$C$119='WAPC Price & Quantity'!C118)*('Compliance Summary'!$D$86:$D$119='WAPC Price & Quantity'!D118), "n/a") -> n/a | F118: 20000 | G118: 20000 | H118: 20740 | I118: 21320.72 | K118: 0 | L118: 0.037 | M118: 0.028 | O118: 0 | P118: 0 | Q118: 0 | R118: Non-Recurring Charge | S118: 14
B119: 8.2 Installations and activations – Smart Places | C119: Smart Places - NNI 1000BaseEX - Set-up & Activation | D119: Fibre | E119: =_xlfn._xlws.FILTER('Compliance Summary'!$E$86:$E$119,('Compliance Summary'!$C$86:$C$119='WAPC Price & Quantity'!C119)*('Compliance Summary'!$D$86:$D$119='WAPC Price & Quantity'!D119), "n/a") -> n/a | F119: 2000 | G119: 2000 | H119: 2074 | I119: 2132.07 | K119: 0 | L119: 0.037 | M119: 0.02799903568 | O119: 0 | P119: 0 | Q119: 0 | R119: Non-Recurring Charge | S119: 14
B120: 8.2 Installations and activations – Smart Places | C120: Smart Places - NNI 10GBaseER - Set-up & Activation | D120: Fibre | E120: =_xlfn._xlws.FILTER('Compliance Summary'!$E$86:$E$119,('Compliance Summary'!$C$86:$C$119='WAPC Price & Quantity'!C120)*('Compliance Summary'!$D$86:$D$119='WAPC Price & Quantity'!D120), "n/a") -> n/a | F120: 4000 | G120: 4000 | H120: 4148 | I120: 4264.14 | K120: 0 | L120: 0.037 | M120: 0.02799903568 | O120: 0 | P120: 0 | Q120: 0 | R120: Non-Recurring Charge | S120: 14
B121: 8.2 Installations and activations – Smart Places | C121: Smart Places - NNI 100GBaseER4 - Set-up & Activation | D121: Fibre | E121: =_xlfn._xlws.FILTER('Compliance Summary'!$E$86:$E$119,('Compliance Summary'!$C$86:$C$119='WAPC Price & Quantity'!C121)*('Compliance Summary'!$D$86:$D$119='WAPC Price & Quantity'!D121), "n/a") -> n/a | F121: 24000 | G121: 24000 | H121: 24888 | I121: 25584.86 | K121: 0 | L121: 0.037 | M121: 0.02799983928 | O121: 0 | P121: 0 | Q121: 0 | R121: Non-Recurring Charge | S121: 14
B122: 8.2 Installations and activations – Smart Places | C122: Smart Places - NNI Link Activation | D122: Fibre | E122: =_xlfn._xlws.FILTER('Compliance Summary'!$E$86:$E$119,('Compliance Summary'!$C$86:$C$119='WAPC Price & Quantity'!C122)*('Compliance Summary'!$D$86:$D$119='WAPC Price & Quantity'!D122), "n/a") -> n/a | F122: 0 | G122: 0 | H122: 0 | I122: 0 | K122: 0 | L122: 0 | M122: 0 | O122: 0 | P122: 0 | Q122: 0 | R122: Non-Recurring Charge | S122: 10
B123: 8.2 Installations and activations – Smart Places | C123: Smart Places - Virtual NNI Activation | D123: Fibre | E123: =_xlfn._xlws.FILTER('Compliance Summary'!$E$86:$E$119,('Compliance Summary'!$C$86:$C$119='WAPC Price & Quantity'!C123)*('Compliance Summary'!$D$86:$D$119='WAPC Price & Quantity'!D123), "n/a") -> n/a | F123: 250 | G123: 250 | H123: 259.25 | I123: 266.51 | K123: 0 | L123: 0.037 | M123: 0.02800385728 | O123: 0 | P123: 0 | Q123: 0 | R123: Non-Recurring Charge | S123: 14
B124: 8.3 Installations and activations – NBN Co Satellite Network | C124: Initial Standard Installation (excluding any additional incidental charges which may apply for Limited Access Areas) | D124: Satellite, Sky Muster Plus | E124: =_xlfn._xlws.FILTER('Compliance Summary'!$E$86:$E$119,('Compliance Summary'!$C$86:$C$119='WAPC Price & Quantity'!C124)*('Compliance Summary'!$D$86:$D$119='WAPC Price & Quantity'!D124), "n/a") -> n/a | F124: 0 | G124: 0 | H124: 0 | I124: 0 | K124: 0 | L124: 0 | M124: 0 | O124: 213 | P124: 0 | Q124: 0 | R124: Non-Recurring Charge | S124: 10
B125: 8.3 Installations and activations – NBN Co Satellite Network | C125: Access Component Reactivation (excluding any additional incidental charges which may apply for Limited Access Areas) | D125: Satellite, Sky Muster Plus | E125: =_xlfn._xlws.FILTER('Compliance Summary'!$E$86:$E$119,('Compliance Summary'!$C$86:$C$119='WAPC Price & Quantity'!C125)*('Compliance Summary'!$D$86:$D$119='WAPC Price & Quantity'!D125), "n/a") -> n/a | F125: 5 | G125: 5 | H125: 5 | I125: 5 | K125: 0 | L125: 0 | M125: 0 | O125: 0 | P125: 0 | Q125: 0 | R125: Non-Recurring Charge | S125: 14
B126: 8.3 Installations and activations – NBN Co Satellite Network | C126: Subsequent Installation in Urban Area, Major Rural Area, Minor Rural Area or Remote Area - 0.8m NTD outdoor unit dish | D126: Satellite, Sky Muster Plus | E126: =_xlfn._xlws.FILTER('Compliance Summary'!$E$86:$E$119,('Compliance Summary'!$C$86:$C$119='WAPC Price & Quantity'!C126)*('Compliance Summary'!$D$86:$D$119='WAPC Price & Quantity'!D126), "n/a") -> n/a | F126: 692 | G126: 692 | H126: 692 | I126: 692 | K126: 0 | L126: 0 | M126: 0 | O126: 0 | P126: 0 | Q126: 0 | R126: Non-Recurring Charge
B127: 8.3 Installations and activations – NBN Co Satellite Network | C127: Subsequent Installation in Urban Area, Major Rural Area, Minor Rural Area or Remote Area - 1.2m NTD outdoor unit dish | D127: Satellite, Sky Muster Plus | E127: =_xlfn._xlws.FILTER('Compliance Summary'!$E$86:$E$119,('Compliance Summary'!$C$86:$C$119='WAPC Price & Quantity'!C127)*('Compliance Summary'!$D$86:$D$119='WAPC Price & Quantity'!D127), "n/a") -> n/a | F127: 1057 | G127: 1057 | H127: 1057 | I127: 1057 | K127: 0 | L127: 0 | M127: 0 | O127: 0 | P127: 0 | Q127: 0 | R127: Non-Recurring Charge
B128: 8.3 Installations and activations – NBN Co Satellite Network | C128: Subsequent Installation in Urban Area, Major Rural Area, Minor Rural Area or Remote Area - 1.8m NTD outdoor unit dish | D128: Satellite, Sky Muster Plus | E128: =_xlfn._xlws.FILTER('Compliance Summary'!$E$86:$E$119,('Compliance Summary'!$C$86:$C$119='WAPC Price & Quantity'!C128)*('Compliance Summary'!$D$86:$D$119='WAPC Price & Quantity'!D128), "n/a") -> n/a | F128: 2226 | G128: 2226 | H128: 2226 | I128: 2226 | K128: 0 | L128: 0 | M128: 0 | O128: 0 | P128: 0 | Q128: 0 | R128: Non-Recurring Charge
B129: 8.3 Installations and activations – NBN Co Satellite Network | C129: Subsequent Installation in Isolated Area - 0.8m NTD outdoor unit dish | D129: Satellite, Sky Muster Plus | E129: =_xlfn._xlws.FILTER('Compliance Summary'!$E$86:$E$119,('Compliance Summary'!$C$86:$C$119='WAPC Price & Quantity'!C129)*('Compliance Summary'!$D$86:$D$119='WAPC Price & Quantity'!D129), "n/a") -> n/a | F129: 1559 | G129: 1559 | H129: 1559 | I129: 1559 | K129: 0 | L129: 0 | M129: 0 | O129: 0 | P129: 0 | Q129: 0 | R129: Non-Recurring Charge
B130: 8.3 Installations and activations – NBN Co Satellite Network | C130: Subsequent Installation in Isolated Area - 1.2m NTD outdoor unit dish | D130: Satellite, Sky Muster Plus | E130: =_xlfn._xlws.FILTER('Compliance Summary'!$E$86:$E$119,('Compliance Summary'!$C$86:$C$119='WAPC Price & Quantity'!C130)*('Compliance Summary'!$D$86:$D$119='WAPC Price & Quantity'!D130), "n/a") -> n/a | F130: 1751 | G130: 1751 | H130: 1751 | I130: 1751 | K130: 0 | L130: 0 | M130: 0 | O130: 0 | P130: 0 | Q130: 0 | R130: Non-Recurring Charge
B131: 8.3 Installations and activations – NBN Co Satellite Network | C131: Subsequent Installation in Isolated Area - 1.8m NTD outdoor unit dish | D131: Satellite, Sky Muster Plus | E131: =_xlfn._xlws.FILTER('Compliance Summary'!$E$86:$E$119,('Compliance Summary'!$C$86:$C$119='WAPC Price & Quantity'!C131)*('Compliance Summary'!$D$86:$D$119='WAPC Price & Quantity'!D131), "n/a") -> n/a | F131: 3732 | G131: 3732 | H131: 3732 | I131: 3732 | K131: 0 | L131: 0 | M131: 0 | O131: 0 | P131: 0 | Q131: 0 | R131: Non-Recurring Charge
B132: 8.3 Installations and activations – NBN Co Satellite Network | C132: CVC Set-up & Activation | D132: Satellite | E132: =_xlfn._xlws.FILTER('Compliance Summary'!$E$86:$E$119,('Compliance Summary'!$C$86:$C$119='WAPC Price & Quantity'!C132)*('Compliance Summary'!$D$86:$D$119='WAPC Price & Quantity'!D132), "n/a") -> n/a | F132: 0 | G132: 0 | H132: 0 | I132: 0 | K132: 0 | L132: 0 | M132: 0 | O132: 0 | P132: 0 | Q132: 0 | R132: Non-Recurring Charge
B133: 8.3 Installations and activations – NBN Co Satellite Network | C133: NNI 1000BaseLX - Set-up & Activation | D133: Satellite | E133: =_xlfn._xlws.FILTER('Compliance Summary'!$E$86:$E$119,('Compliance Summary'!$C$86:$C$119='WAPC Price & Quantity'!C133)*('Compliance Summary'!$D$86:$D$119='WAPC Price & Quantity'!D133), "n/a") -> n/a | F133: 1000 | G133: 1000 | H133: 1037 | I133: 1066.04 | K133: 0 | L133: 0.037 | M133: 0.02800385728 | O133: 0 | P133: 0 | Q133: 0 | R133: Non-Recurring Charge | S133: 14
B134: 8.3 Installations and activations – NBN Co Satellite Network | C134: NNI 10GBaseLR - Set-up & Activation | D134: Satellite | E134: =_xlfn._xlws.FILTER('Compliance Summary'!$E$86:$E$119,('Compliance Summary'!$C$86:$C$119='WAPC Price & Quantity'!C134)*('Compliance Summary'!$D$86:$D$119='WAPC Price & Quantity'!D134), "n/a") -> n/a | F134: 3000 | G134: 3000 | H134: 3111 | I134: 3198.11 | K134: 0 | L134: 0.037 | M134: 0.02800064288 | O134: 0 | P134: 0 | Q134: 0 | R134: Non-Recurring Charge | S134: 14
B135: 8.3 Installations and activations – NBN Co Satellite Network | C135: NNI 1000BaseEX - Set-up & Activation | D135: Satellite | E135: =_xlfn._xlws.FILTER('Compliance Summary'!$E$86:$E$119,('Compliance Summary'!$C$86:$C$119='WAPC Price & Quantity'!C135)*('Compliance Summary'!$D$86:$D$119='WAPC Price & Quantity'!D135), "n/a") -> n/a | F135: 2000 | G135: 2000 | H135: 2074 | I135: 2132.07 | K135: 0 | L135: 0.037 | M135: 0.02799903568 | O135: 0 | P135: 0 | Q135: 0 | R135: Non-Recurring Charge | S135: 14
B136: 8.3 Installations and activations – NBN Co Satellite Network | C136: NNI 10GBaseER - Set-up & Activation | D136: Satellite | E136: =_xlfn._xlws.FILTER('Compliance Summary'!$E$86:$E$119,('Compliance Summary'!$C$86:$C$119='WAPC Price & Quantity'!C136)*('Compliance Summary'!$D$86:$D$119='WAPC Price & Quantity'!D136), "n/a") -> n/a | F136: 4000 | G136: 4000 | H136: 4148 | I136: 4264.14 | K136: 0 | L136: 0.037 | M136: 0.02799903568 | O136: 0 | P136: 0 | Q136: 0 | R136: Non-Recurring Charge | S136: 14
B137: 8.4 Service modifications – NBN Co Networks other than the NBN Co Satellite Network | C137: Access Component Modification (no attendance at Premises required) | D137: Fibre, FTTB, FTTN, FTTC, HFC, Wireless | E137: =_xlfn._xlws.FILTER('Compliance Summary'!$E$86:$E$119,('Compliance Summary'!$C$86:$C$119='WAPC Price & Quantity'!C137)*('Compliance Summary'!$D$86:$D$119='WAPC Price & Quantity'!D137), "n/a") -> n/a | F137: 0 | G137: 0 | H137: 0 | I137: 0 | K137: 0 | L137: 0 | M137: 0 | O137: 0 | P137: 0 | Q137: 0 | R137: Non-Recurring Charge | S137: 10
B138: 8.4 Service modifications – NBN Co Networks other than the NBN Co Satellite Network | C138: CVC Modification | D138: Fibre, FTTB, FTTN, FTTC, HFC, Wireless | E138: =_xlfn._xlws.FILTER('Compliance Summary'!$E$86:$E$119,('Compliance Summary'!$C$86:$C$119='WAPC Price & Quantity'!C138)*('Compliance Summary'!$D$86:$D$119='WAPC Price & Quantity'!D138), "n/a") -> n/a | F138: 0 | G138: 0 | H138: 0 | I138: 0 | K138: 0 | L138: 0 | M138: 0 | O138: 0 | P138: 0 | Q138: 0 | R138: Non-Recurring Charge | S138: 10
B139: 8.4 Service modifications – NBN Co Networks other than the NBN Co Satellite Network | C139: NNI Modification | D139: Fibre, FTTB, FTTN, FTTC, HFC, Wireless | E139: =_xlfn._xlws.FILTER('Compliance Summary'!$E$86:$E$119,('Compliance Summary'!$C$86:$C$119='WAPC Price & Quantity'!C139)*('Compliance Summary'!$D$86:$D$119='WAPC Price & Quantity'!D139), "n/a") -> n/a | F139: 0 | G139: 0 | H139: 0 | I139: 0 | K139: 0 | L139: 0 | M139: 0 | O139: 0 | P139: 0 | Q139: 0 | R139: Non-Recurring Charge | S139: 10
B140: 8.4 Service modifications – NBN Co Networks other than the NBN Co Satellite Network | C140: NNI Link Modification | D140: Fibre, FTTB, FTTN, FTTC, HFC, Wireless | E140: =_xlfn._xlws.FILTER('Compliance Summary'!$E$86:$E$119,('Compliance Summary'!$C$86:$C$119='WAPC Price & Quantity'!C140)*('Compliance Summary'!$D$86:$D$119='WAPC Price & Quantity'!D140), "n/a") -> n/a | F140: 0 | G140: 0 | H140: 0 | I140: 0 | K140: 0 | L140: 0 | M140: 0 | O140: 0 | P140: 0 | Q140: 0 | R140: Non-Recurring Charge | S140: 10
B141: 8.5 Service modifications – Smart Places | C141: Smart Places - Access Component Modification (no attendance at Smart Location required) | D141: Fibre | E141: =_xlfn._xlws.FILTER('Compliance Summary'!$E$86:$E$119,('Compliance Summary'!$C$86:$C$119='WAPC Price & Quantity'!C141)*('Compliance Summary'!$D$86:$D$119='WAPC Price & Quantity'!D141), "n/a") -> n/a | F141: 0 | G141: 0 | H141: 0 | I141: 0 | K141: 0 | L141: 0 | M141: 0 | O141: 0 | P141: 0 | Q141: 0 | R141: Non-Recurring Charge | S141: 10
B142: 8.5 Service modifications – Smart Places | C142: Smart Places - CVC Modification | D142: Fibre | E142: =_xlfn._xlws.FILTER('Compliance Summary'!$E$86:$E$119,('Compliance Summary'!$C$86:$C$119='WAPC Price & Quantity'!C142)*('Compliance Summary'!$D$86:$D$119='WAPC Price & Quantity'!D142), "n/a") -> n/a | F142: 0 | G142: 0 | H142: 0 | I142: 0 | K142: 0 | L142: 0 | M142: 0 | O142: 0 | P142: 0 | Q142: 0 | R142: Non-Recurring Charge | S142: 10
B143: 8.5 Service modifications – Smart Places | C143: Smart Places - NNI Modification | D143: Fibre | E143: =_xlfn._xlws.FILTER('Compliance Summary'!$E$86:$E$119,('Compliance Summary'!$C$86:$C$119='WAPC Price & Quantity'!C143)*('Compliance Summary'!$D$86:$D$119='WAPC Price & Quantity'!D143), "n/a") -> n/a | F143: 0 | G143: 0 | H143: 0 | I143: 0 | K143: 0 | L143: 0 | M143: 0 | O143: 0 | P143: 0 | Q143: 0 | R143: Non-Recurring Charge | S143: 10
B144: 8.5 Service modifications – Smart Places | C144: Smart Places - NNI Link Modification | D144: Fibre | E144: =_xlfn._xlws.FILTER('Compliance Summary'!$E$86:$E$119,('Compliance Summary'!$C$86:$C$119='WAPC Price & Quantity'!C144)*('Compliance Summary'!$D$86:$D$119='WAPC Price & Quantity'!D144), "n/a") -> n/a | F144: 0 | G144: 0 | H144: 0 | I144: 0 | K144: 0 | L144: 0 | M144: 0 | O144: 0 | P144: 0 | Q144: 0 | R144: Non-Recurring Charge | S144: 10
B145: 8.6 Service modifications – NBN Co Satellite Network | C145: Equipment Modification (NTD indoor unit) (excluding any additional incidental charges which may apply for Limited Access Areas) | D145: Satellite, Sky Muster Plus | E145: =_xlfn._xlws.FILTER('Compliance Summary'!$E$86:$E$119,('Compliance Summary'!$C$86:$C$119='WAPC Price & Quantity'!C145)*('Compliance Summary'!$D$86:$D$119='WAPC Price & Quantity'!D145), "n/a") -> n/a | F145: 420 | G145: 420 | H145: 420 | I145: 420 | K145: =IF(F145>0,G145/F145-1,0) -> 0 | L145: =IF(G145>0,H145/G145-1,0) -> 0 | M145: =IF(H145>0,I145/H145-1,0) -> 0 | O145: 0 | P145: 0 | Q145: 0 | R145: Non-Recurring Charge | S145: 9
B146: 8.6 Service modifications – NBN Co Satellite Network | C146: Access Component Modification (no attendance at Premises required) | D146: Satellite, Sky Muster Plus | E146: =_xlfn._xlws.FILTER('Compliance Summary'!$E$86:$E$119,('Compliance Summary'!$C$86:$C$119='WAPC Price & Quantity'!C146)*('Compliance Summary'!$D$86:$D$119='WAPC Price & Quantity'!D146), "n/a") -> n/a | F146: 0 | G146: 0 | H146: 0 | I146: 0 | K146: 0 | L146: 0 | M146: 0 | O146: 0 | P146: 0 | Q146: 0 | R146: Non-Recurring Charge | S146: 10
B147: 8.6 Service modifications – NBN Co Satellite Network | C147: CVC Modification | D147: Satellite | E147: =_xlfn._xlws.FILTER('Compliance Summary'!$E$86:$E$119,('Compliance Summary'!$C$86:$C$119='WAPC Price & Quantity'!C147)*('Compliance Summary'!$D$86:$D$119='WAPC Price & Quantity'!D147), "n/a") -> n/a | F147: 0 | G147: 0 | H147: 0 | I147: 0 | K147: 0 | L147: 0 | M147: 0 | O147: 0 | P147: 0 | Q147: 0 | R147: Non-Recurring Charge | S147: 10
B148: 8.6 Service modifications – NBN Co Satellite Network | C148: NNI Modification | D148: Satellite | E148: =_xlfn._xlws.FILTER('Compliance Summary'!$E$86:$E$119,('Compliance Summary'!$C$86:$C$119='WAPC Price & Quantity'!C148)*('Compliance Summary'!$D$86:$D$119='WAPC Price & Quantity'!D148), "n/a") -> n/a | F148: 0 | G148: 0 | H148: 0 | I148: 0 | K148: 0 | L148: 0 | M148: 0 | O148: 0 | P148: 0 | Q148: 0 | R148: Non-Recurring Charge | S148: 10
B149: 8.6 Service modifications – NBN Co Satellite Network | C149: Equipment Modification (NTD outdoor unit) in Urban Area, Major Rural Area, Minor Rural Area or Remote Area - 0.8m NTD outdoor unit dish | D149: Satellite, Sky Muster Plus | E149: =_xlfn._xlws.FILTER('Compliance Summary'!$E$86:$E$119,('Compliance Summary'!$C$86:$C$119='WAPC Price & Quantity'!C149)*('Compliance Summary'!$D$86:$D$119='WAPC Price & Quantity'!D149), "n/a") -> n/a | F149: 754 | G149: 754 | H149: 754 | I149: 754 | K149: 0 | L149: 0 | M149: 0 | O149: 0 | P149: 0 | Q149: 0 | R149: Non-Recurring Charge | S149: 9
B150: 8.6 Service modifications – NBN Co Satellite Network | C150: Equipment Modification (NTD outdoor unit) in Urban Area, Major Rural Area, Minor Rural Area or Remote Area - 1.2m NTD outdoor unit dish | D150: Satellite, Sky Muster Plus | E150: =_xlfn._xlws.FILTER('Compliance Summary'!$E$86:$E$119,('Compliance Summary'!$C$86:$C$119='WAPC Price & Quantity'!C150)*('Compliance Summary'!$D$86:$D$119='WAPC Price & Quantity'!D150), "n/a") -> n/a | F150: 1119 | G150: 1119 | H150: 1119 | I150: 1119 | K150: 0 | L150: 0 | M150: 0 | O150: 0 | P150: 0 | Q150: 0 | R150: Non-Recurring Charge | S150: 9
B151: 8.6 Service modifications – NBN Co Satellite Network | C151: Equipment Modification (NTD outdoor unit) in Urban Area, Major Rural Area, Minor Rural Area or Remote Area - 1.8m NTD outdoor unit dish | D151: Satellite, Sky Muster Plus | E151: =_xlfn._xlws.FILTER('Compliance Summary'!$E$86:$E$119,('Compliance Summary'!$C$86:$C$119='WAPC Price & Quantity'!C151)*('Compliance Summary'!$D$86:$D$119='WAPC Price & Quantity'!D151), "n/a") -> n/a | F151: 2288 | G151: 2288 | H151: 2288 | I151: 2288 | K151: 0 | L151: 0 | M151: 0 | O151: 0 | P151: 0 | Q151: 0 | R151: Non-Recurring Charge | S151: 9
B152: 8.6 Service modifications – NBN Co Satellite Network | C152: Equipment Modification (NTD outdoor unit) in Isolated Area - 0.8m NTD outdoor unit dish | D152: Satellite, Sky Muster Plus | E152: =_xlfn._xlws.FILTER('Compliance Summary'!$E$86:$E$119,('Compliance Summary'!$C$86:$C$119='WAPC Price & Quantity'!C152)*('Compliance Summary'!$D$86:$D$119='WAPC Price & Quantity'!D152), "n/a") -> n/a | F152: 1621 | G152: 1621 | H152: 1621 | I152: 1621 | K152: 0 | L152: 0 | M152: 0 | O152: 0 | P152: 0 | Q152: 0 | R152: Non-Recurring Charge | S152: 9
B153: 8.6 Service modifications – NBN Co Satellite Network | C153: Equipment Modification (NTD outdoor unit) in Isolated Area - 1.2m NTD outdoor unit dish | D153: Satellite, Sky Muster Plus | E153: =_xlfn._xlws.FILTER('Compliance Summary'!$E$86:$E$119,('Compliance Summary'!$C$86:$C$119='WAPC Price & Quantity'!C153)*('Compliance Summary'!$D$86:$D$119='WAPC Price & Quantity'!D153), "n/a") -> n/a | F153: 1812 | G153: 1812 | H153: 1812 | I153: 1812 | K153: 0 | L153: 0 | M153: 0 | O153: 0 | P153: 0 | Q153: 0 | R153: Non-Recurring Charge | S153: 9
B154: 8.6 Service modifications – NBN Co Satellite Network | C154: Equipment Modification (NTD outdoor unit) in Isolated Area - 1.8m NTD outdoor unit dish | D154: Satellite, Sky Muster Plus | E154: =_xlfn._xlws.FILTER('Compliance Summary'!$E$86:$E$119,('Compliance Summary'!$C$86:$C$119='WAPC Price & Quantity'!C154)*('Compliance Summary'!$D$86:$D$119='WAPC Price & Quantity'!D154), "n/a") -> n/a | F154: 3793 | G154: 3793 | H154: 3793 | I154: 3793 | K154: 0 | L154: 0 | M154: 0 | O154: 0 | P154: 0 | Q154: 0 | R154: Non-Recurring Charge | S154: 9
B155: 8.6 Service modifications – NBN Co Satellite Network | C155: Equipment Modification (NTD indoor and outdoor unit) in Urban Area, Major Rural Area, Minor Rural Area or Remote Area - 0.8m NTD outdoor unit dish | D155: Satellite, Sky Muster Plus | E155: =_xlfn._xlws.FILTER('Compliance Summary'!$E$86:$E$119,('Compliance Summary'!$C$86:$C$119='WAPC Price & Quantity'!C155)*('Compliance Summary'!$D$86:$D$119='WAPC Price & Quantity'!D155), "n/a") -> n/a | F155: 783 | G155: 783 | H155: 783 | I155: 783 | K155: 0 | L155: 0 | M155: 0 | O155: 0 | P155: 0 | Q155: 0 | R155: Non-Recurring Charge | S155: 9
B156: 8.6 Service modifications – NBN Co Satellite Network | C156: Equipment Modification (NTD indoor and outdoor unit) in Urban Area, Major Rural Area, Minor Rural Area or Remote Area - 1.2m NTD outdoor unit dish | D156: Satellite, Sky Muster Plus | E156: =_xlfn._xlws.FILTER('Compliance Summary'!$E$86:$E$119,('Compliance Summary'!$C$86:$C$119='WAPC Price & Quantity'!C156)*('Compliance Summary'!$D$86:$D$119='WAPC Price & Quantity'!D156), "n/a") -> n/a | F156: 1149 | G156: 1149 | H156: 1149 | I156: 1149 | K156: 0 | L156: 0 | M156: 0 | O156: 0 | P156: 0 | Q156: 0 | R156: Non-Recurring Charge | S156: 9
B157: 8.6 Service modifications – NBN Co Satellite Network | C157: Equipment Modification (NTD indoor and outdoor unit) in Urban Area, Major Rural Area, Minor Rural Area or Remote Area - 1.8m NTD outdoor unit dish | D157: Satellite, Sky Muster Plus | E157: =_xlfn._xlws.FILTER('Compliance Summary'!$E$86:$E$119,('Compliance Summary'!$C$86:$C$119='WAPC Price & Quantity'!C157)*('Compliance Summary'!$D$86:$D$119='WAPC Price & Quantity'!D157), "n/a") -> n/a | F157: 2317 | G157: 2317 | H157: 2317 | I157: 2317 | K157: 0 | L157: 0 | M157: 0 | O157: 0 | P157: 0 | Q157: 0 | R157: Non-Recurring Charge | S157: 9
B158: 8.6 Service modifications – NBN Co Satellite Network | C158: Equipment Modification (NTD indoor and outdoor unit) in Isolated Area - 0.8m NTD outdoor unit dish | D158: Satellite, Sky Muster Plus | E158: =_xlfn._xlws.FILTER('Compliance Summary'!$E$86:$E$119,('Compliance Summary'!$C$86:$C$119='WAPC Price & Quantity'!C158)*('Compliance Summary'!$D$86:$D$119='WAPC Price & Quantity'!D158), "n/a") -> n/a | F158: 1650 | G158: 1650 | H158: 1650 | I158: 1650 | K158: 0 | L158: 0 | M158: 0 | O158: 0 | P158: 0 | Q158: 0 | R158: Non-Recurring Charge | S158: 9
B159: 8.6 Service modifications – NBN Co Satellite Network | C159: Equipment Modification (NTD indoor and outdoor unit) in Isolated Area - 1.2m NTD outdoor unit dish | D159: Satellite, Sky Muster Plus | E159: =_xlfn._xlws.FILTER('Compliance Summary'!$E$86:$E$119,('Compliance Summary'!$C$86:$C$119='WAPC Price & Quantity'!C159)*('Compliance Summary'!$D$86:$D$119='WAPC Price & Quantity'!D159), "n/a") -> n/a | F159: 1842 | G159: 1842 | H159: 1842 | I159: 1842 | K159: 0 | L159: 0 | M159: 0 | O159: 0 | P159: 0 | Q159: 0 | R159: Non-Recurring Charge | S159: 9
B160: 8.6 Service modifications – NBN Co Satellite Network | C160: Equipment Modification (NTD indoor and outdoor unit) in Isolated Area - 1.8m NTD outdoor unit dish | D160: Satellite, Sky Muster Plus | E160: =_xlfn._xlws.FILTER('Compliance Summary'!$E$86:$E$119,('Compliance Summary'!$C$86:$C$119='WAPC Price & Quantity'!C160)*('Compliance Summary'!$D$86:$D$119='WAPC Price & Quantity'!D160), "n/a") -> n/a | F160: 3823 | G160: 3823 | H160: 3823 | I160: 3823 | K160: 0 | L160: 0 | M160: 0 | O160: 0 | P160: 0 | Q160: 0 | R160: Non-Recurring Charge | S160: 9
B161: 8.7 Service management – NBN Co Networks other than the NBN Co Satellite Network | C161: No Fault Found (No Truck Roll Required) | D161: Fibre, Wireless | E161: =_xlfn._xlws.FILTER('Compliance Summary'!$E$86:$E$119,('Compliance Summary'!$C$86:$C$119='WAPC Price & Quantity'!C161)*('Compliance Summary'!$D$86:$D$119='WAPC Price & Quantity'!D161), "n/a") -> n/a | F161: 50 | G161: 50 | H161: 50 | I161: 50 | K161: 0 | L161: 0 | M161: 0 | O161: 0 | P161: 0 | Q161: 0 | R161: Non-Recurring Charge | S161: 9
B162: 8.7 Service management – NBN Co Networks other than the NBN Co Satellite Network | C162: No Fault Found (No Truck Roll Required) | D162: FTTB, FTTN, FTTC | E162: =_xlfn._xlws.FILTER('Compliance Summary'!$E$86:$E$119,('Compliance Summary'!$C$86:$C$119='WAPC Price & Quantity'!C162)*('Compliance Summary'!$D$86:$D$119='WAPC Price & Quantity'!D162), "n/a") -> n/a | F162: 50 | G162: 50 | H162: 50 | I162: 50 | K162: 0 | L162: 0 | M162: 0 | O162: 0 | P162: 0 | Q162: 0 | R162: Non-Recurring Charge | S162: 9
B163: 8.7 Service management – NBN Co Networks other than the NBN Co Satellite Network | C163: No Fault Found (No Truck Roll Required) | D163: HFC | E163: =_xlfn._xlws.FILTER('Compliance Summary'!$E$86:$E$119,('Compliance Summary'!$C$86:$C$119='WAPC Price & Quantity'!C163)*('Compliance Summary'!$D$86:$D$119='WAPC Price & Quantity'!D163), "n/a") -> n/a | F163: 50 | G163: 50 | H163: 50 | I163: 50 | K163: 0 | L163: 0 | M163: 0 | O163: 0 | P163: 0 | Q163: 0 | R163: Non-Recurring Charge | S163: 9
B164: 8.7 Service management – NBN Co Networks other than the NBN Co Satellite Network | C164: Late Cancellation (Site Visit Required) | D164: Fibre, Wireless | E164: =_xlfn._xlws.FILTER('Compliance Summary'!$E$86:$E$119,('Compliance Summary'!$C$86:$C$119='WAPC Price & Quantity'!C164)*('Compliance Summary'!$D$86:$D$119='WAPC Price & Quantity'!D164), "n/a") -> n/a | F164: 0 | G164: 0 | H164: 0 | I164: 0 | K164: 0 | L164: 0 | M164: 0 | O164: 0 | P164: 0 | Q164: 0 | R164: Non-Recurring Charge | S164: 10
B165: 8.7 Service management – NBN Co Networks other than the NBN Co Satellite Network | C165: Late Cancellation (Site Visit Required) | D165: FTTB, FTTN, FTTC | E165: =_xlfn._xlws.FILTER('Compliance Summary'!$E$86:$E$119,('Compliance Summary'!$C$86:$C$119='WAPC Price & Quantity'!C165)*('Compliance Summary'!$D$86:$D$119='WAPC Price & Quantity'!D165), "n/a") -> n/a | F165: 75 | G165: 75 | H165: 75 | I165: 75 | K165: 0 | L165: 0 | M165: 0 | O165: 0 | P165: 0 | Q165: 0 | R165: Non-Recurring Charge | S165: 9
B166: 8.7 Service management – NBN Co Networks other than the NBN Co Satellite Network | C166: Late Cancellation (Site Visit Required) | D166: HFC | E166: =_xlfn._xlws.FILTER('Compliance Summary'!$E$86:$E$119,('Compliance Summary'!$C$86:$C$119='WAPC Price & Quantity'!C166)*('Compliance Summary'!$D$86:$D$119='WAPC Price & Quantity'!D166), "n/a") -> n/a | F166: 75 | G166: 75 | H166: 75 | I166: 75 | K166: 0 | L166: 0 | M166: 0 | O166: 0 | P166: 0 | Q166: 0 | R166: Non-Recurring Charge | S166: 9
B167: 8.7 Service management – NBN Co Networks other than the NBN Co Satellite Network | C167: First Missed Appointment | D167: Fibre, Wireless | E167: =_xlfn._xlws.FILTER('Compliance Summary'!$E$86:$E$119,('Compliance Summary'!$C$86:$C$119='WAPC Price & Quantity'!C167)*('Compliance Summary'!$D$86:$D$119='WAPC Price & Quantity'!D167), "n/a") -> n/a | F167: 0 | G167: 0 | H167: 0 | I167: 0 | K167: 0 | L167: 0 | M167: 0 | O167: 0 | P167: 0 | Q167: 0 | R167: Non-Recurring Charge | S167: 10
B168: 8.7 Service management – NBN Co Networks other than the NBN Co Satellite Network | C168: First Missed Appointment | D168: FTTB, FTTN, FTTC | E168: =_xlfn._xlws.FILTER('Compliance Summary'!$E$86:$E$119,('Compliance Summary'!$C$86:$C$119='WAPC Price & Quantity'!C168)*('Compliance Summary'!$D$86:$D$119='WAPC Price & Quantity'!D168), "n/a") -> n/a | F168: 50 | G168: 50 | H168: 50 | I168: 50 | K168: 0 | L168: 0 | M168: 0 | O168: 0 | P168: 0 | Q168: 0 | R168: Non-Recurring Charge | S168: 9
B169: 8.7 Service management – NBN Co Networks other than the NBN Co Satellite Network | C169: First Missed Appointment | D169: HFC | E169: =_xlfn._xlws.FILTER('Compliance Summary'!$E$86:$E$119,('Compliance Summary'!$C$86:$C$119='WAPC Price & Quantity'!C169)*('Compliance Summary'!$D$86:$D$119='WAPC Price & Quantity'!D169), "n/a") -> n/a | F169: 50 | G169: 50 | H169: 50 | I169: 50 | K169: 0 | L169: 0 | M169: 0 | O169: 0 | P169: 0 | Q169: 0 | R169: Non-Recurring Charge | S169: 9
B170: 8.7 Service management – NBN Co Networks other than the NBN Co Satellite Network | C170: Subsequent Missed Appointment | D170: Fibre, Wireless | E170: =_xlfn._xlws.FILTER('Compliance Summary'!$E$86:$E$119,('Compliance Summary'!$C$86:$C$119='WAPC Price & Quantity'!C170)*('Compliance Summary'!$D$86:$D$119='WAPC Price & Quantity'!D170), "n/a") -> n/a | F170: 0 | G170: 0 | H170: 0 | I170: 0 | K170: 0 | L170: 0 | M170: 0 | O170: 0 | P170: 0 | Q170: 0 | R170: Non-Recurring Charge | S170: 10
B171: 8.7 Service management – NBN Co Networks other than the NBN Co Satellite Network | C171: Subsequent Missed Appointment | D171: FTTB, FTTN, FTTC | E171: =_xlfn._xlws.FILTER('Compliance Summary'!$E$86:$E$119,('Compliance Summary'!$C$86:$C$119='WAPC Price & Quantity'!C171)*('Compliance Summary'!$D$86:$D$119='WAPC Price & Quantity'!D171), "n/a") -> n/a | F171: 75 | G171: 75 | H171: 75 | I171: 75 | K171: 0 | L171: 0 | M171: 0 | O171: 0 | P171: 0 | Q171: 0 | R171: Non-Recurring Charge | S171: 9
B172: 8.7 Service management – NBN Co Networks other than the NBN Co Satellite Network | C172: Subsequent Missed Appointment | D172: HFC | E172: =_xlfn._xlws.FILTER('Compliance Summary'!$E$86:$E$119,('Compliance Summary'!$C$86:$C$119='WAPC Price & Quantity'!C172)*('Compliance Summary'!$D$86:$D$119='WAPC Price & Quantity'!D172), "n/a") -> n/a | F172: 75 | G172: 75 | H172: 75 | I172: 75 | K172: 0 | L172: 0 | M172: 0 | O172: 0 | P172: 0 | Q172: 0 | R172: Non-Recurring Charge | S172: 9
B173: 8.7 Service management – NBN Co Networks other than the NBN Co Satellite Network | C173: Co-ordinated Appointment (Day) | D173: Fibre | E173: =_xlfn._xlws.FILTER('Compliance Summary'!$E$86:$E$119,('Compliance Summary'!$C$86:$C$119='WAPC Price & Quantity'!C173)*('Compliance Summary'!$D$86:$D$119='WAPC Price & Quantity'!D173), "n/a") -> n/a | F173: 200 | G173: 200 | H173: 200 | I173: 200 | K173: 0 | L173: 0 | M173: 0 | O173: 3 | P173: 0 | Q173: 0 | R173: Non-Recurring Charge | S173: 12
B174: 8.7 Service management – NBN Co Networks other than the NBN Co Satellite Network | C174: Co-ordinated Appointment (Day) | D174: FTTB, FTTN, FTTC | E174: =_xlfn._xlws.FILTER('Compliance Summary'!$E$86:$E$119,('Compliance Summary'!$C$86:$C$119='WAPC Price & Quantity'!C174)*('Compliance Summary'!$D$86:$D$119='WAPC Price & Quantity'!D174), "n/a") -> n/a | F174: 200 | G174: 200 | H174: 200 | I174: 200 | K174: 0 | L174: 0 | M174: 0 | O174: 0 | P174: 0 | Q174: 0 | R174: Non-Recurring Charge | S174: 12
B175: 8.7 Service management – NBN Co Networks other than the NBN Co Satellite Network | C175: Co-ordinated Appointment (Day) | D175: HFC | E175: =_xlfn._xlws.FILTER('Compliance Summary'!$E$86:$E$119,('Compliance Summary'!$C$86:$C$119='WAPC Price & Quantity'!C175)*('Compliance Summary'!$D$86:$D$119='WAPC Price & Quantity'!D175), "n/a") -> n/a | F175: 200 | G175: 200 | H175: 200 | I175: 200 | K175: 0 | L175: 0 | M175: 0 | O175: 0 | P175: 0 | Q175: 0 | R175: Non-Recurring Charge | S175: 12
B176: 8.7 Service management – NBN Co Networks other than the NBN Co Satellite Network | C176: Co-ordinated Appointment (Night) | D176: Fibre | E176: =_xlfn._xlws.FILTER('Compliance Summary'!$E$86:$E$119,('Compliance Summary'!$C$86:$C$119='WAPC Price & Quantity'!C176)*('Compliance Summary'!$D$86:$D$119='WAPC Price & Quantity'!D176), "n/a") -> n/a | F176: 300 | G176: 300 | H176: 300 | I176: 300 | K176: 0 | L176: 0 | M176: 0 | O176: 0 | P176: 0 | Q176: 0 | R176: Non-Recurring Charge | S176: 12
B177: 8.7 Service management – NBN Co Networks other than the NBN Co Satellite Network | C177: Co-ordinated Appointment (Night) | D177: FTTB, FTTN, FTTC | E177: =_xlfn._xlws.FILTER('Compliance Summary'!$E$86:$E$119,('Compliance Summary'!$C$86:$C$119='WAPC Price & Quantity'!C177)*('Compliance Summary'!$D$86:$D$119='WAPC Price & Quantity'!D177), "n/a") -> n/a | F177: 300 | G177: 300 | H177: 300 | I177: 300 | K177: 0 | L177: 0 | M177: 0 | O177: 0 | P177: 0 | Q177: 0 | R177: Non-Recurring Charge | S177: 12
B178: 8.7 Service management – NBN Co Networks other than the NBN Co Satellite Network | C178: Co-ordinated Appointment (Night) | D178: HFC | E178: =_xlfn._xlws.FILTER('Compliance Summary'!$E$86:$E$119,('Compliance Summary'!$C$86:$C$119='WAPC Price & Quantity'!C178)*('Compliance Summary'!$D$86:$D$119='WAPC Price & Quantity'!D178), "n/a") -> n/a | F178: 300 | G178: 300 | H178: 300 | I178: 300 | K178: 0 | L178: 0 | M178: 0 | O178: 0 | P178: 0 | Q178: 0 | R178: Non-Recurring Charge | S178: 12
B179: 8.7 Service management – NBN Co Networks other than the NBN Co Satellite Network | C179: Late Cancellation (After Hours Installation Appointment) | D179: Fibre | E179: =_xlfn._xlws.FILTER('Compliance Summary'!$E$86:$E$119,('Compliance Summary'!$C$86:$C$119='WAPC Price & Quantity'!C179)*('Compliance Summary'!$D$86:$D$119='WAPC Price & Quantity'!D179), "n/a") -> n/a | F179: 150 | G179: 150 | H179: 150 | I179: 150 | K179: 0 | L179: 0 | M179: 0 | O179: 0 | P179: 0 | Q179: 0 | R179: Non-Recurring Charge | S179: 12
B180: 8.7 Service management – NBN Co Networks other than the NBN Co Satellite Network | C180: Late Cancellation (After Hours Installation Appointment) | D180: FTTB, FTTN, FTTC | E180: =_xlfn._xlws.FILTER('Compliance Summary'!$E$86:$E$119,('Compliance Summary'!$C$86:$C$119='WAPC Price & Quantity'!C180)*('Compliance Summary'!$D$86:$D$119='WAPC Price & Quantity'!D180), "n/a") -> n/a | F180: 150 | G180: 150 | H180: 150 | I180: 150 | K180: 0 | L180: 0 | M180: 0 | O180: 0 | P180: 0 | Q180: 0 | R180: Non-Recurring Charge | S180: 12
B181: 8.7 Service management – NBN Co Networks other than the NBN Co Satellite Network | C181: Late Cancellation (Co-ordinated Appointment) (Day) | D181: Fibre | E181: =_xlfn._xlws.FILTER('Compliance Summary'!$E$86:$E$119,('Compliance Summary'!$C$86:$C$119='WAPC Price & Quantity'!C181)*('Compliance Summary'!$D$86:$D$119='WAPC Price & Quantity'!D181), "n/a") -> n/a | F181: 200 | G181: 200 | H181: 200 | I181: 200 | K181: 0 | L181: 0 | M181: 0 | O181: 5 | P181: 0 | Q181: 0 | R181: Non-Recurring Charge | S181: 12
B182: 8.7 Service management – NBN Co Networks other than the NBN Co Satellite Network | C182: Late Cancellation (Co-ordinated Appointment) (Day) | D182: FTTB, FTTN, FTTC | E182: =_xlfn._xlws.FILTER('Compliance Summary'!$E$86:$E$119,('Compliance Summary'!$C$86:$C$119='WAPC Price & Quantity'!C182)*('Compliance Summary'!$D$86:$D$119='WAPC Price & Quantity'!D182), "n/a") -> n/a | F182: 200 | G182: 200 | H182: 200 | I182: 200 | K182: 0 | L182: 0 | M182: 0 | O182: 0 | P182: 0 | Q182: 0 | R182: Non-Recurring Charge | S182: 12
B183: 8.7 Service management – NBN Co Networks other than the NBN Co Satellite Network | C183: Late Cancellation (Co-ordinated Appointment) (Day) | D183: HFC | E183: =_xlfn._xlws.FILTER('Compliance Summary'!$E$86:$E$119,('Compliance Summary'!$C$86:$C$119='WAPC Price & Quantity'!C183)*('Compliance Summary'!$D$86:$D$119='WAPC Price & Quantity'!D183), "n/a") -> n/a | F183: 200 | G183: 200 | H183: 200 | I183: 200 | K183: 0 | L183: 0 | M183: 0 | O183: 0 | P183: 0 | Q183: 0 | R183: Non-Recurring Charge | S183: 12
B184: 8.7 Service management – NBN Co Networks other than the NBN Co Satellite Network | C184: Late Cancellation (Co-ordinated Appointment) (Night) | D184: Fibre | E184: =_xlfn._xlws.FILTER('Compliance Summary'!$E$86:$E$119,('Compliance Summary'!$C$86:$C$119='WAPC Price & Quantity'!C184)*('Compliance Summary'!$D$86:$D$119='WAPC Price & Quantity'!D184), "n/a") -> n/a | F184: 300 | G184: 300 | H184: 300 | I184: 300 | K184: 0 | L184: 0 | M184: 0 | O184: 0 | P184: 0 | Q184: 0 | R184: Non-Recurring Charge | S184: 12
B185: 8.7 Service management – NBN Co Networks other than the NBN Co Satellite Network | C185: Late Cancellation (Co-ordinated Appointment) (Night) | D185: FTTB, FTTN, FTTC | E185: =_xlfn._xlws.FILTER('Compliance Summary'!$E$86:$E$119,('Compliance Summary'!$C$86:$C$119='WAPC Price & Quantity'!C185)*('Compliance Summary'!$D$86:$D$119='WAPC Price & Quantity'!D185), "n/a") -> n/a | F185: 300 | G185: 300 | H185: 300 | I185: 300 | K185: 0 | L185: 0 | M185: 0 | O185: 0 | P185: 0 | Q185: 0 | R185: Non-Recurring Charge | S185: 12
B186: 8.7 Service management – NBN Co Networks other than the NBN Co Satellite Network | C186: Late Cancellation (Co-ordinated Appointment) (Night) | D186: HFC | E186: =_xlfn._xlws.FILTER('Compliance Summary'!$E$86:$E$119,('Compliance Summary'!$C$86:$C$119='WAPC Price & Quantity'!C186)*('Compliance Summary'!$D$86:$D$119='WAPC Price & Quantity'!D186), "n/a") -> n/a | F186: 300 | G186: 300 | H186: 300 | I186: 300 | K186: 0 | L186: 0 | M186: 0 | O186: 0 | P186: 0 | Q186: 0 | R186: Non-Recurring Charge | S186: 12
B187: 8.7 Service management – NBN Co Networks other than the NBN Co Satellite Network | C187: Missed Appointment (After Hours Installation Appointment) | D187: Fibre | E187: =_xlfn._xlws.FILTER('Compliance Summary'!$E$86:$E$119,('Compliance Summary'!$C$86:$C$119='WAPC Price & Quantity'!C187)*('Compliance Summary'!$D$86:$D$119='WAPC Price & Quantity'!D187), "n/a") -> n/a | F187: 150 | G187: 150 | H187: 150 | I187: 150 | K187: 0 | L187: 0 | M187: 0 | O187: 0 | P187: 0 | Q187: 0 | R187: Non-Recurring Charge | S187: 12
B188: 8.7 Service management – NBN Co Networks other than the NBN Co Satellite Network | C188: Missed Appointment (After Hours Installation Appointment) | D188: FTTB, FTTN, FTTC | E188: =_xlfn._xlws.FILTER('Compliance Summary'!$E$86:$E$119,('Compliance Summary'!$C$86:$C$119='WAPC Price & Quantity'!C188)*('Compliance Summary'!$D$86:$D$119='WAPC Price & Quantity'!D188), "n/a") -> n/a | F188: 150 | G188: 150 | H188: 150 | I188: 150 | K188: 0 | L188: 0 | M188: 0 | O188: 0 | P188: 0 | Q188: 0 | R188: Non-Recurring Charge | S188: 12
B189: 8.7 Service management – NBN Co Networks other than the NBN Co Satellite Network | C189: Missed Appointment (Co-ordinated Appointment) (Day) | D189: Fibre | E189: =_xlfn._xlws.FILTER('Compliance Summary'!$E$86:$E$119,('Compliance Summary'!$C$86:$C$119='WAPC Price & Quantity'!C189)*('Compliance Summary'!$D$86:$D$119='WAPC Price & Quantity'!D189), "n/a") -> n/a | F189: 200 | G189: 200 | H189: 200 | I189: 200 | K189: 0 | L189: 0 | M189: 0 | O189: 2 | P189: 0 | Q189: 0 | R189: Non-Recurring Charge | S189: 12
B190: 8.7 Service management – NBN Co Networks other than the NBN Co Satellite Network | C190: Missed Appointment (Co-ordinated Appointment) (Day) | D190: FTTB, FTTN, FTTC | E190: =_xlfn._xlws.FILTER('Compliance Summary'!$E$86:$E$119,('Compliance Summary'!$C$86:$C$119='WAPC Price & Quantity'!C190)*('Compliance Summary'!$D$86:$D$119='WAPC Price & Quantity'!D190), "n/a") -> n/a | F190: 200 | G190: 200 | H190: 200 | I190: 200 | K190: 0 | L190: 0 | M190: 0 | O190: 0 | P190: 0 | Q190: 0 | R190: Non-Recurring Charge | S190: 12
B191: 8.7 Service management – NBN Co Networks other than the NBN Co Satellite Network | C191: Missed Appointment (Co-ordinated Appointment) (Day) | D191: HFC | E191: =_xlfn._xlws.FILTER('Compliance Summary'!$E$86:$E$119,('Compliance Summary'!$C$86:$C$119='WAPC Price & Quantity'!C191)*('Compliance Summary'!$D$86:$D$119='WAPC Price & Quantity'!D191), "n/a") -> n/a | F191: 200 | G191: 200 | H191: 200 | I191: 200 | K191: 0 | L191: 0 | M191: 0 | O191: 0 | P191: 0 | Q191: 0 | R191: Non-Recurring Charge | S191: 12
B192: 8.7 Service management – NBN Co Networks other than the NBN Co Satellite Network | C192: Missed Appointment (Co-ordinated Appointment) (Night) | D192: Fibre | E192: =_xlfn._xlws.FILTER('Compliance Summary'!$E$86:$E$119,('Compliance Summary'!$C$86:$C$119='WAPC Price & Quantity'!C192)*('Compliance Summary'!$D$86:$D$119='WAPC Price & Quantity'!D192), "n/a") -> n/a | F192: 300 | G192: 300 | H192: 300 | I192: 300 | K192: 0 | L192: 0 | M192: 0 | O192: 0 | P192: 0 | Q192: 0 | R192: Non-Recurring Charge | S192: 12
B193: 8.7 Service management – NBN Co Networks other than the NBN Co Satellite Network | C193: Missed Appointment (Co-ordinated Appointment) (Night) | D193: FTTB, FTTN, FTTC | E193: =_xlfn._xlws.FILTER('Compliance Summary'!$E$86:$E$119,('Compliance Summary'!$C$86:$C$119='WAPC Price & Quantity'!C193)*('Compliance Summary'!$D$86:$D$119='WAPC Price & Quantity'!D193), "n/a") -> n/a | F193: 300 | G193: 300 | H193: 300 | I193: 300 | K193: 0 | L193: 0 | M193: 0 | O193: 0 | P193: 0 | Q193: 0 | R193: Non-Recurring Charge | S193: 12
B194: 8.7 Service management – NBN Co Networks other than the NBN Co Satellite Network | C194: Missed Appointment (Co-ordinated Appointment) (Night) | D194: HFC | E194: =_xlfn._xlws.FILTER('Compliance Summary'!$E$86:$E$119,('Compliance Summary'!$C$86:$C$119='WAPC Price & Quantity'!C194)*('Compliance Summary'!$D$86:$D$119='WAPC Price & Quantity'!D194), "n/a") -> n/a | F194: 300 | G194: 300 | H194: 300 | I194: 300 | K194: 0 | L194: 0 | M194: 0 | O194: 0 | P194: 0 | Q194: 0 | R194: Non-Recurring Charge | S194: 12
B195: 8.7 Service management – NBN Co Networks other than the NBN Co Satellite Network | C195: Voiceband Reinstatement | D195: FTTB, FTTN | E195: =_xlfn._xlws.FILTER('Compliance Summary'!$E$86:$E$119,('Compliance Summary'!$C$86:$C$119='WAPC Price & Quantity'!C195)*('Compliance Summary'!$D$86:$D$119='WAPC Price & Quantity'!D195), "n/a") -> n/a | F195: 250 | G195: 250 | H195: 250 | I195: 250 | K195: 0 | L195: 0 | M195: 0 | O195: 0 | P195: 0 | Q195: 0 | R195: Non-Recurring Charge | S195: 12
B196: 8.7 Service management – NBN Co Networks other than the NBN Co Satellite Network | C196: Transition Reversal | D196: FTTB, FTTN, FTTC | E196: =_xlfn._xlws.FILTER('Compliance Summary'!$E$86:$E$119,('Compliance Summary'!$C$86:$C$119='WAPC Price & Quantity'!C196)*('Compliance Summary'!$D$86:$D$119='WAPC Price & Quantity'!D196), "n/a") -> n/a | F196: 250 | G196: 250 | H196: 250 | I196: 250 | K196: 0 | L196: 0 | M196: 0 | O196: 0 | P196: 0 | Q196: 0 | R196: Non-Recurring Charge | S196: 12
B197: 8.8 Service management – Smart Places | C197: Smart Places - No Fault Found (No Truck Roll Required) | D197: Fibre | E197: =_xlfn._xlws.FILTER('Compliance Summary'!$E$86:$E$119,('Compliance Summary'!$C$86:$C$119='WAPC Price & Quantity'!C197)*('Compliance Summary'!$D$86:$D$119='WAPC Price & Quantity'!D197), "n/a") -> n/a | F197: 50 | G197: 50 | H197: 50 | I197: 50 | K197: 0 | L197: 0 | M197: 0 | O197: 0 | P197: 0 | Q197: 0 | R197: Non-Recurring Charge | S197: 9
B198: 8.8 Service management – Smart Places | C198: Smart Places - First Missed Appointment (Trouble Ticket Appointment) | D198: Fibre | E198: =_xlfn._xlws.FILTER('Compliance Summary'!$E$86:$E$119,('Compliance Summary'!$C$86:$C$119='WAPC Price & Quantity'!C198)*('Compliance Summary'!$D$86:$D$119='WAPC Price & Quantity'!D198), "n/a") -> n/a | F198: 0 | G198: 0 | H198: 0 | I198: 0 | K198: 0 | L198: 0 | M198: 0 | O198: 0 | P198: 0 | Q198: 0 | R198: Non-Recurring Charge | S198: 10
B199: 8.8 Service management – Smart Places | C199: Smart Places - Subsequent Missed Appointment (Trouble Ticket Appointment) | D199: Fibre | E199: =_xlfn._xlws.FILTER('Compliance Summary'!$E$86:$E$119,('Compliance Summary'!$C$86:$C$119='WAPC Price & Quantity'!C199)*('Compliance Summary'!$D$86:$D$119='WAPC Price & Quantity'!D199), "n/a") -> n/a | F199: 0 | G199: 0 | H199: 0 | I199: 0 | K199: 0 | L199: 0 | M199: 0 | O199: 0 | P199: 0 | Q199: 0 | R199: Non-Recurring Charge | S199: 10
B200: 8.8 Service management – Smart Places | C200: Smart Places - Co-ordinated Appointment (Day) | D200: Fibre | E200: =_xlfn._xlws.FILTER('Compliance Summary'!$E$86:$E$119,('Compliance Summary'!$C$86:$C$119='WAPC Price & Quantity'!C200)*('Compliance Summary'!$D$86:$D$119='WAPC Price & Quantity'!D200), "n/a") -> n/a | F200: 200 | G200: 200 | H200: 200 | I200: 200 | K200: 0 | L200: 0 | M200: 0 | O200: 0 | P200: 0 | Q200: 0 | R200: Non-Recurring Charge | S200: 9
B201: 8.8 Service management – Smart Places | C201: Smart Places - Co-ordinated Appointment (After Hours) | D201: Fibre | E201: =_xlfn._xlws.FILTER('Compliance Summary'!$E$86:$E$119,('Compliance Summary'!$C$86:$C$119='WAPC Price & Quantity'!C201)*('Compliance Summary'!$D$86:$D$119='WAPC Price & Quantity'!D201), "n/a") -> n/a | F201: 300 | G201: 300 | H201: 300 | I201: 300 | K201: 0 | L201: 0 | M201: 0 | O201: 0 | P201: 0 | Q201: 0 | R201: Non-Recurring Charge | S201: 9
B202: 8.8 Service management – Smart Places | C202: Smart Places - Late Cancellation (Smart Places Co-ordinated Appointment) (Day) | D202: Fibre | E202: =_xlfn._xlws.FILTER('Compliance Summary'!$E$86:$E$119,('Compliance Summary'!$C$86:$C$119='WAPC Price & Quantity'!C202)*('Compliance Summary'!$D$86:$D$119='WAPC Price & Quantity'!D202), "n/a") -> n/a | F202: 200 | G202: 200 | H202: 200 | I202: 200 | K202: 0 | L202: 0 | M202: 0 | O202: 0 | P202: 0 | Q202: 0 | R202: Non-Recurring Charge | S202: 9
B203: 8.8 Service management – Smart Places | C203: Smart Places - Late Cancellation (Smart Places Co-ordinated Appointment) (After Hours) | D203: Fibre | E203: =_xlfn._xlws.FILTER('Compliance Summary'!$E$86:$E$119,('Compliance Summary'!$C$86:$C$119='WAPC Price & Quantity'!C203)*('Compliance Summary'!$D$86:$D$119='WAPC Price & Quantity'!D203), "n/a") -> n/a | F203: 300 | G203: 300 | H203: 300 | I203: 300 | K203: 0 | L203: 0 | M203: 0 | O203: 0 | P203: 0 | Q203: 0 | R203: Non-Recurring Charge
B204: 8.8 Service management – Smart Places | C204: Smart Places - Missed Appointment (Smart Places Co-ordinated Appointment) (Day) | D204: Fibre | E204: =_xlfn._xlws.FILTER('Compliance Summary'!$E$86:$E$119,('Compliance Summary'!$C$86:$C$119='WAPC Price & Quantity'!C204)*('Compliance Summary'!$D$86:$D$119='WAPC Price & Quantity'!D204), "n/a") -> n/a | F204: 200 | G204: 200 | H204: 200 | I204: 200 | K204: 0 | L204: 0 | M204: 0 | O204: 0 | P204: 0 | Q204: 0 | R204: Non-Recurring Charge | S204: 9
B205: 8.8 Service management – Smart Places | C205: Smart Places - Missed Appointment (Smart Places Co-ordinated Appointment) (After Hours) | D205: Fibre | E205: =_xlfn._xlws.FILTER('Compliance Summary'!$E$86:$E$119,('Compliance Summary'!$C$86:$C$119='WAPC Price & Quantity'!C205)*('Compliance Summary'!$D$86:$D$119='WAPC Price & Quantity'!D205), "n/a") -> n/a | F205: 300 | G205: 300 | H205: 300 | I205: 300 | K205: 0 | L205: 0 | M205: 0 | O205: 0 | P205: 0 | Q205: 0 | R205: Non-Recurring Charge
B206: 8.9 Service management – NBN Co Satellite Network | C206: No Fault Found (No Truck Roll Required) | D206: Satellite, Sky Muster Plus | E206: =_xlfn._xlws.FILTER('Compliance Summary'!$E$86:$E$119,('Compliance Summary'!$C$86:$C$119='WAPC Price & Quantity'!C206)*('Compliance Summary'!$D$86:$D$119='WAPC Price & Quantity'!D206), "n/a") -> n/a | F206: 50 | G206: 50 | H206: 50 | I206: 50 | K206: 0 | L206: 0 | M206: 0 | O206: 0 | P206: 0 | Q206: 0 | R206: Non-Recurring Charge | S206: 9
B207: 8.9 Service management – NBN Co Satellite Network | C207: No Fault Found (Truck Roll Required) (excluding any additional incidental charges which may apply for Limited Access Areas) | D207: Satellite, Sky Muster Plus | E207: =_xlfn._xlws.FILTER('Compliance Summary'!$E$86:$E$119,('Compliance Summary'!$C$86:$C$119='WAPC Price & Quantity'!C207)*('Compliance Summary'!$D$86:$D$119='WAPC Price & Quantity'!D207), "n/a") -> n/a | F207: 420 | G207: 420 | H207: 420 | I207: 420 | K207: 0 | L207: 0 | M207: 0 | O207: 0 | P207: 0 | Q207: 0 | R207: Non-Recurring Charge | S207: 9
B208: 8.9 Service management – NBN Co Satellite Network | C208: Late Cancellation (Site Visit Required) in Urban Area or Major Rural Area | D208: Satellite, Sky Muster Plus | E208: =_xlfn._xlws.FILTER('Compliance Summary'!$E$86:$E$119,('Compliance Summary'!$C$86:$C$119='WAPC Price & Quantity'!C208)*('Compliance Summary'!$D$86:$D$119='WAPC Price & Quantity'!D208), "n/a") -> n/a | F208: 150 | G208: 150 | H208: 150 | I208: 150 | K208: 0 | L208: 0 | M208: 0 | O208: 0 | P208: 0 | Q208: 0 | R208: Non-Recurring Charge | S208: 9
... 89 more rows

Sheet WAPC Inputs
B1: Cell colour meanings
B2: Input cell
B3: Calculation cell
B5: WAPC Inputs
B7: Financial Year (t) | C7: FY26
B9: WAPC allowance | C9: =C7 -> FY26 | D9: ="FY"&RIGHT($C9,2)+1 -> FY27 | E9: ="FY"&RIGHT($C9,2)+2 -> FY28
C10: Actual | D10: Forecast | E10: Forecast
B11: Actual CPI based on December Quarter CPI published in Financial Year t − 1 published by the Australian Bureau of Statistics on 29 January 2025 for the 12 months to 31 December 2024, sourced from: https://www.abs.gov.au/statistics/economy/price-indexes-and-inflation/consumer-price-index-australia/dec-quarter-2024 Forecast CPI based on Statement on Monetary Policy published by the Reserve Bank of Australia on 18 February 2025, sourced from: https://www.rba.gov.au/publications/smp/2025/feb/pdf/statement-on-monetary-policy-2025-02.pdf | C11: 0.024 | D11: 0.037 | E11: 0.028
B13: X-factor | C13: 0 | D13: 0 | E13: 0
B14: Cost pass-through adjustment factor | C14: ='WAPC Inputs'!C31 -> 0 | D14: ='WAPC Inputs'!D31 -> 0 | E14: ='WAPC Inputs'!E31 -> 0
B15: Excess adjustment factor | C15: ='WAPC Inputs'!C43 -> 0 | D15: ='WAPC Inputs'!D43 -> 0 | E15: ='WAPC Inputs'!E43 -> 0
B17: WAPC allowance | C17: =(1+C11)*(1-C13)*(1+C14)*(1+C15)-1 -> 0.024 | D17: =(1+D11)*(1-D13)*(1+D14)*(1+D15)-1 -> 0.037 | E17: =(1+E11)*(1-E13)*(1+E14)*(1+E15)-1 -> 0.028
B19: Cost pass-through adjustment factor | C19: ='WAPC Inputs'!C9 -> FY26 | D19: ='WAPC Inputs'!D9 -> FY27 | E19: ='WAPC Inputs'!E9 -> FY28
B20: Note: Values for FY26, FY27, and FY28 below are 'n/a' as there were no cost pass through events in Financial Year t − 1. | C20: =C10 -> Actual | D20: =D10 -> Forecast | E20: =E10 -> Forecast
B22: Input to cost pass-through adjustment factor in Financial Year t − 1 | C22: 0 | D22: =C29 -> 0 | E22: =D29 -> 0
B24: Total cost pass-through amount for Financial Year t | C24: n/a | D24: n/a | E24: n/a
B25: CPI | C25: =INDEX('WAPC Inputs'!$C$11:$E$11,,MATCH('WAPC Inputs'!C19,'WAPC Inputs'!$C$9:$E$9,0)) -> 0.024 | D25: =INDEX('WAPC Inputs'!$C$11:$E$11,,MATCH('WAPC Inputs'!D19,'WAPC Inputs'!$C$9:$E$9,0)) -> 0.037 | E25: =INDEX('WAPC Inputs'!$C$11:$E$11,,MATCH('WAPC Inputs'!E19,'WAPC Inputs'!$C$9:$E$9,0)) -> 0.028
B26: X-factor | C26: =INDEX('WAPC Inputs'!$C$13:$E$13,,MATCH('WAPC Inputs'!C19,'WAPC Inputs'!$C$9:$E$9,0)) -> 0 | D26: =INDEX('WAPC Inputs'!$C$13:$E$13,,MATCH('WAPC Inputs'!D19,'WAPC Inputs'!$C$9:$E$9,0)) -> 0 | E26: =INDEX('WAPC Inputs'!$C$13:$E$13,,MATCH('WAPC Inputs'!E19,'WAPC Inputs'!$C$9:$E$9,0)) -> 0
B27: Excess adjustment factor | C27: =C43 -> 0 | D27: =D43 -> 0 | E27: =E43 -> 0
B28: Notional revenue in previous year | C28: n/a | D28: n/a | E28: n/a
B29: Input to cost pass-through adjustment factor in respect of current year | C29: =IF(C28="n/a", 0, (IF((1+C25)*(1-C26)*(1+C27)*C28=0, 0, C24/((1+C25)*(1-C26)*(1+C27)*C28)))) -> 0 | D29: =IF(D28="n/a", 0, (IF((1+D25)*(1-D26)*(1+D27)*D28=0, 0, D24/((1+D25)*(1-D26)*(1+D27)*D28)))) -> 0 | E29: 0
B31: Cost pass-through adjustment factor | C31: =(1+C29)/(1+C22)-1 -> 0 | D31: =(1+D29)/(1+D22)-1 -> 0 | E31: 0
B33: Excess adjustment factor | C33: =C19 -> FY26 | D33: FY27 | E33: FY28
B34: Note: Values for FY26 below are 'n/a' as the excess adjustment factor is not applicable for this year: see clause 2D.2.6(a) of the SAU. | C34: =C10 -> Actual | D34: Forecast | E34: Forecast
B36: CPI (t − 2) | C36: n/a | D36: 0.041 | E36: 0.024
B37: X-factor (t − 2) | C37: n/a | D37: 0 | E37: 0
B38: Cost pass-through adjustment factor (t − 2) | C38: n/a | D38: 0 | E38: 0
B39: Excess adjustment factor (t − 2) | C39: n/a | D39: 0 | E39: 0
B41: WAP ratio (t − 2) | C41: n/a | D41: 1.040414589 | E41: 1.023521961
B43: Excess adjustment factor | C43: =IF(C41="n/a",0,(MIN(0,IF(C41=0,0,((1+C36)*(1-C37)*(1+C38)*(1+C39))/C41-1)))) -> 0 | D43: =IF(D41="n/a",0,(MIN(0,IF(D41=0,0,((1+D36)*(1-D37)*(1+D38)*(1+D39))/D41-1)))) -> 0 | E43: =IF(E41="n/a",0,(MIN(0,IF(E41=0,0,((1+E36)*(1-E37)*(1+E38)*(1+E39))/E41-1)))) -> 0

Sheet FY25 ACC
B1: Cell colour meanings
B2: Input cell
B3: Calculation cell
B5: Calculation of the Average Combined Charges for the period 1 July 2024 to 31 March 2025
B6: Note 1: The Average Daily AVC Overage Charge is calculated for each Bundled TC-4 Offer Group, where the Bundled TC-4 Offer Groups are (i) 12/1 Mbps (Basic Bundled Offer); (ii) 12/1 Mbps (Non-Basic Bundled Offer), 25/5 Mbps and 25/10 Mbps; and (iii) 50/20 Mbps and Up to 100/Up to 20 Mbps. Note 2: The Average Combined Charges for 1 July 2024 - 31 March 2025 are an input to the calculation of the FY25 ACC for the Bundled TC-4 Offers. Refer to the FY25-27 FACC tab. Note 3: There are separate offers for each of the 12/1 Mbps (Basic Bundled Offer), 12/1 Mbps (Non-Basic Bundled Offer), 25/5 Mbps, 25/10 Mbps, and 50/20 Mbps speed tiers on each relevant access technology, as well as a separate offer for the Up to 100/Up to 20 Mbps bandwidth profile. The calculations shown in the table below group each of the individual offers across their respective access technologies, since these have the same Bundled Price and Daily Combined Charge, and are within the same Bundled TC-4 Offer Group for which an Average Daily AVC Overage Charge is calculated. For example, the 12/1 Mbps (Basic Bundled Offer) item reflects the 12/1 Mbps (Basic Bundled Offer) on the FTTP, FTTB, FTTN, FTTC, and HFC access technologies.
C17: Bundled TC-4 Offer
C18: 12/1 Mbps (Basic Bundled Offer) | D18: 12/1 Mbps (Non-Basic Bundled Offer) | E18: 25/5 Mbps and 25/10 Mbps | F18: 50/20 and Up to 100/Up to 20 Mbps
B19: Average Combined Charge (1 July 2024 - 31 March 2025) | C19: =ROUND(SUM($E$27:$E$300)/COUNT($B$27:$B$300),2) -> 12.01 | D19: =ROUND(SUM($H$27:$H$300)/COUNT($B$27:$B$300),2) -> 32.54 | E19: =ROUND(SUM($K$27:$K$300)/COUNT($B$27:$B$300),2) -> 33.93 | F19: =ROUND(SUM($N$27:$N$300)/COUNT($B$27:$B$300),2) -> 53.59
B22: Calculation of the Daily Combined Charge (1 July 2024 - 31 March 2025)
C24: Bundled TC-4 Offer
C25: 12/1 Mbps (Basic Bundled Offer) | F25: 12/1 Mbps (Non-Basic Bundled Offer) | I25: 25/5 Mbps and 25/10 Mbps | L25: 50/20 Mbps and Up to 100/Up to 20 Mbps
B26: Date | C26: Bundled Price | D26: Average Daily AVC Overage Charge | E26: Daily Combined Charge | F26: Bundled Price | G26: Average Daily AVC Overage Charge | H26: Daily Combined Charge | I26: Bundled Price | J26: Average Daily AVC Overage Charge | K26: Daily Combined Charge | L26: Bundled Price | M26: Average Daily AVC Overage Charge | N26: Daily Combined Charge
B27: 2024-07-01 | C27: 12 | D27: 0.01 | E27: =SUM(C27:D27) -> 12.01 | F27: 26.85 | G27: 5.85 | H27: =SUM(F27:G27) -> 32.7 | I27: 28.24 | J27: 5.85 | K27: =SUM(I27:J27) -> 34.09 | L27: 52.52 | M27: 1.1 | N27: =SUM(L27:M27) -> 53.62
B28: 2024-07-02 | C28: 12 | D28: 0.01 | E28: =SUM(C28:D28) -> 12.01 | F28: 26.85 | G28: 5.77 | H28: =SUM(F28:G28) -> 32.62 | I28: 28.24 | J28: 5.77 | K28: =SUM(I28:J28) -> 34.01 | L28: 52.52 | M28: 1.08 | N28: =SUM(L28:M28) -> 53.6
B29: 2024-07-03 | C29: 12 | D29: 0.01 | E29: 12.01 | F29: 26.85 | G29: 5.68 | H29: 32.53 | I29: 28.24 | J29: 5.68 | K29: 33.92 | L29: 52.52 | M29: 1.06 | N29: 53.58
B30: 2024-07-04 | C30: 12 | D30: 0.01 | E30: 12.01 | F30: 26.85 | G30: 5.79 | H30: 32.64 | I30: 28.24 | J30: 5.79 | K30: 34.03 | L30: 52.52 | M30: 1.1 | N30: 53.62
B31: 2024-07-05 | C31: 12 | D31: 0.01 | E31: 12.01 | F31: 26.85 | G31: 5.8 | H31: 32.65 | I31: 28.24 | J31: 5.8 | K31: 34.04 | L31: 52.52 | M31: 1.11 | N31: 53.63
B32: 2024-07-06 | C32: 12 | D32: 0.01 | E32: 12.01 | F32: 26.85 | G32: 6.18 | H32: 33.03 | I32: 28.24 | J32: 6.18 | K32: 34.42 | L32: 52.52 | M32: 1.18 | N32: 53.7
B33: 2024-07-07 | C33: 12 | D33: 0.01 | E33: 12.01 | F33: 26.85 | G33: 5.93 | H33: 32.78 | I33: 28.24 | J33: 5.93 | K33: 34.17 | L33: 52.52 | M33: 1.14 | N33: 53.66
B34: 2024-07-08 | C34: 12 | D34: 0.01 | E34: 12.01 | F34: 26.85 | G34: 5.75 | H34: 32.6 | I34: 28.24 | J34: 5.75 | K34: 33.99 | L34: 52.52 | M34: 1.08 | N34: 53.6
B35: 2024-07-09 | C35: 12 | D35: 0.01 | E35: 12.01 | F35: 26.85 | G35: 5.66 | H35: 32.51 | I35: 28.24 | J35: 5.66 | K35: 33.9 | L35: 52.52 | M35: 1.06 | N35: 53.58
B36: 2024-07-10 | C36: 12 | D36: 0.01 | E36: 12.01 | F36: 26.85 | G36: 5.74 | H36: 32.59 | I36: 28.24 | J36: 5.74 | K36: 33.98 | L36: 52.52 | M36: 1.07 | N36: 53.59
B37: 2024-07-11 | C37: 12 | D37: 0.01 | E37: 12.01 | F37: 26.85 | G37: 5.78 | H37: 32.63 | I37: 28.24 | J37: 5.78 | K37: 34.02 | L37: 52.52 | M37: 1.09 | N37: 53.61
B38: 2024-07-12 | C38: 12 | D38: 0.01 | E38: 12.01 | F38: 26.85 | G38: 5.7 | H38: 32.55 | I38: 28.24 | J38: 5.7 | K38: 33.94 | L38: 52.52 | M38: 1.08 | N38: 53.6
B39: 2024-07-13 | C39: 12 | D39: 0 | E39: 12 | F39: 26.85 | G39: 6.1 | H39: 32.95 | I39: 28.24 | J39: 6.1 | K39: 34.34 | L39: 52.52 | M39: 1.15 | N39: 53.67
B40: 2024-07-14 | C40: 12 | D40: 0.01 | E40: 12.01 | F40: 26.85 | G40: 5.87 | H40: 32.72 | I40: 28.24 | J40: 5.87 | K40: 34.11 | L40: 52.52 | M40: 1.12 | N40: 53.64
B41: 2024-07-15 | C41: 12 | D41: 0.01 | E41: 12.01 | F41: 26.85 | G41: 5.71 | H41: 32.56 | I41: 28.24 | J41: 5.71 | K41: 33.95 | L41: 52.52 | M41: 1.06 | N41: 53.58
B42: 2024-07-16 | C42: 12 | D42: 0.01 | E42: 12.01 | F42: 26.85 | G42: 5.67 | H42: 32.52 | I42: 28.24 | J42: 5.67 | K42: 33.91 | L42: 52.52 | M42: 1.05 | N42: 53.57
B43: 2024-07-17 | C43: 12 | D43: 0.01 | E43: 12.01 | F43: 26.85 | G43: 5.46 | H43: 32.31 | I43: 28.24 | J43: 5.46 | K43: 33.7 | L43: 52.52 | M43: 1.04 | N43: 53.56
B44: 2024-07-18 | C44: 12 | D44: 0.01 | E44: 12.01 | F44: 26.85 | G44: 5.72 | H44: 32.57 | I44: 28.24 | J44: 5.72 | K44: 33.96 | L44: 52.52 | M44: 1.06 | N44: 53.58
B45: 2024-07-19 | C45: 12 | D45: 0 | E45: 12 | F45: 26.85 | G45: 5.85 | H45: 32.7 | I45: 28.24 | J45: 5.85 | K45: 34.09 | L45: 52.52 | M45: 1.12 | N45: 53.64
B46: 2024-07-20 | C46: 12 | D46: 0 | E46: 12 | F46: 26.85 | G46: 6.1 | H46: 32.95 | I46: 28.24 | J46: 6.1 | K46: 34.34 | L46: 52.52 | M46: 1.18 | N46: 53.7
B47: 2024-07-21 | C47: 12 | D47: 0.01 | E47: 12.01 | F47: 26.85 | G47: 6.12 | H47: 32.97 | I47: 28.24 | J47: 6.12 | K47: 34.36 | L47: 52.52 | M47: 1.2 | N47: 53.72
B48: 2024-07-22 | C48: 12 | D48: 0.01 | E48: 12.01 | F48: 26.85 | G48: 5.78 | H48: 32.63 | I48: 28.24 | J48: 5.78 | K48: 34.02 | L48: 52.52 | M48: 1.07 | N48: 53.59
B49: 2024-07-23 | C49: 12 | D49: 0.01 | E49: 12.01 | F49: 26.85 | G49: 5.89 | H49: 32.74 | I49: 28.24 | J49: 5.89 | K49: 34.13 | L49: 52.52 | M49: 1.13 | N49: 53.65
B50: 2024-07-24 | C50: 12 | D50: 0.01 | E50: 12.01 | F50: 26.85 | G50: 5.67 | H50: 32.52 | I50: 28.24 | J50: 5.67 | K50: 33.91 | L50: 52.52 | M50: 1.05 | N50: 53.57
B51: 2024-07-25 | C51: 12 | D51: 0.01 | E51: 12.01 | F51: 26.85 | G51: 5.63 | H51: 32.48 | I51: 28.24 | J51: 5.63 | K51: 33.87 | L51: 52.52 | M51: 1.05 | N51: 53.57
B52: 2024-07-26 | C52: 12 | D52: 0 | E52: 12 | F52: 26.85 | G52: 5.72 | H52: 32.57 | I52: 28.24 | J52: 5.72 | K52: 33.96 | L52: 52.52 | M52: 1.11 | N52: 53.63
B53: 2024-07-27 | C53: 12 | D53: 0 | E53: 12 | F53: 26.85 | G53: 6 | H53: 32.85 | I53: 28.24 | J53: 6 | K53: 34.24 | L53: 52.52 | M53: 1.18 | N53: 53.7
B54: 2024-07-28 | C54: 12 | D54: 0.01 | E54: 12.01 | F54: 26.85 | G54: 6.32 | H54: 33.17 | I54: 28.24 | J54: 6.32 | K54: 34.56 | L54: 52.52 | M54: 1.28 | N54: 53.8
B55: 2024-07-29 | C55: 12 | D55: 0.01 | E55: 12.01 | F55: 26.85 | G55: 6.14 | H55: 32.99 | I55: 28.24 | J55: 6.14 | K55: 34.38 | L55: 52.52 | M55: 1.2 | N55: 53.72
B56: 2024-07-30 | C56: 12 | D56: 0.01 | E56: 12.01 | F56: 26.85 | G56: 6.02 | H56: 32.87 | I56: 28.24 | J56: 6.02 | K56: 34.26 | L56: 52.52 | M56: 1.17 | N56: 53.69
B57: 2024-07-31 | C57: 12 | D57: 0.01 | E57: 12.01 | F57: 26.85 | G57: 5.91 | H57: 32.76 | I57: 28.24 | J57: 5.91 | K57: 34.15 | L57: 52.52 | M57: 1.14 | N57: 53.66
B58: 2024-08-01 | C58: 12 | D58: 0.01 | E58: 12.01 | F58: 26.85 | G58: 5.85 | H58: 32.7 | I58: 28.24 | J58: 5.85 | K58: 34.09 | L58: 52.52 | M58: 1.14 | N58: 53.66
B59: 2024-08-02 | C59: 12 | D59: 0 | E59: 12 | F59: 26.85 | G59: 6 | H59: 32.85 | I59: 28.24 | J59: 6 | K59: 34.24 | L59: 52.52 | M59: 1.19 | N59: 53.71
B60: 2024-08-03 | C60: 12 | D60: 0 | E60: 12 | F60: 26.85 | G60: 6.08 | H60: 32.93 | I60: 28.24 | J60: 6.08 | K60: 34.32 | L60: 52.52 | M60: 1.19 | N60: 53.71
B61: 2024-08-04 | C61: 12 | D61: 0.01 | E61: 12.01 | F61: 26.85 | G61: 6.16 | H61: 33.01 | I61: 28.24 | J61: 6.16 | K61: 34.4 | L61: 52.52 | M61: 1.23 | N61: 53.75
B62: 2024-08-05 | C62: 12 | D62: 0.01 | E62: 12.01 | F62: 26.85 | G62: 5.97 | H62: 32.82 | I62: 28.24 | J62: 5.97 | K62: 34.21 | L62: 52.52 | M62: 1.15 | N62: 53.67
B63: 2024-08-06 | C63: 12 | D63: 0.01 | E63: 12.01 | F63: 26.85 | G63: 6.05 | H63: 32.9 | I63: 28.24 | J63: 6.05 | K63: 34.29 | L63: 52.52 | M63: 1.19 | N63: 53.71
B64: 2024-08-07 | C64: 12 | D64: 0.01 | E64: 12.01 | F64: 26.85 | G64: 5.8 | H64: 32.65 | I64: 28.24 | J64: 5.8 | K64: 34.04 | L64: 52.52 | M64: 1.12 | N64: 53.64
B65: 2024-08-08 | C65: 12 | D65: 0.01 | E65: 12.01 | F65: 26.85 | G65: 5.82 | H65: 32.67 | I65: 28.24 | J65: 5.82 | K65: 34.06 | L65: 52.52 | M65: 1.12 | N65: 53.64
B66: 2024-08-09 | C66: 12 | D66: 0 | E66: 12 | F66: 26.85 | G66: 5.89 | H66: 32.74 | I66: 28.24 | J66: 5.89 | K66: 34.13 | L66: 52.52 | M66: 1.16 | N66: 53.68
B67: 2024-08-10 | C67: 12 | D67: 0 | E67: 12 | F67: 26.85 | G67: 6.07 | H67: 32.92 | I67: 28.24 | J67: 6.07 | K67: 34.31 | L67: 52.52 | M67: 1.18 | N67: 53.7
B68: 2024-08-11 | C68: 12 | D68: 0.01 | E68: 12.01 | F68: 26.85 | G68: 5.99 | H68: 32.84 | I68: 28.24 | J68: 5.99 | K68: 34.23 | L68: 52.52 | M68: 1.18 | N68: 53.7
B69: 2024-08-12 | C69: 12 | D69: 0.01 | E69: 12.01 | F69: 26.85 | G69: 5.56 | H69: 32.41 | I69: 28.24 | J69: 5.56 | K69: 33.8 | L69: 52.52 | M69: 1.04 | N69: 53.56
B70: 2024-08-13 | C70: 12 | D70: 0.01 | E70: 12.01 | F70: 26.85 | G70: 5.63 | H70: 32.48 | I70: 28.24 | J70: 5.63 | K70: 33.87 | L70: 52.52 | M70: 1.04 | N70: 53.56
B71: 2024-08-14 | C71: 12 | D71: 0.01 | E71: 12.01 | F71: 26.85 | G71: 5.63 | H71: 32.48 | I71: 28.24 | J71: 5.63 | K71: 33.87 | L71: 52.52 | M71: 1.04 | N71: 53.56
B72: 2024-08-15 | C72: 12 | D72: 0.01 | E72: 12.01 | F72: 26.85 | G72: 5.73 | H72: 32.58 | I72: 28.24 | J72: 5.73 | K72: 33.97 | L72: 52.52 | M72: 1.08 | N72: 53.6
B73: 2024-08-16 | C73: 12 | D73: 0.01 | E73: 12.01 | F73: 26.85 | G73: 5.94 | H73: 32.79 | I73: 28.24 | J73: 5.94 | K73: 34.18 | L73: 52.52 | M73: 1.15 | N73: 53.67
B74: 2024-08-17 | C74: 12 | D74: 0 | E74: 12 | F74: 26.85 | G74: 6.05 | H74: 32.9 | I74: 28.24 | J74: 6.05 | K74: 34.29 | L74: 52.52 | M74: 1.16 | N74: 53.68
B75: 2024-08-18 | C75: 12 | D75: 0.01 | E75: 12.01 | F75: 26.85 | G75: 5.8 | H75: 32.65 | I75: 28.24 | J75: 5.8 | K75: 34.04 | L75: 52.52 | M75: 1.11 | N75: 53.63
B76: 2024-08-19 | C76: 12 | D76: 0.01 | E76: 12.01 | F76: 26.85 | G76: 5.54 | H76: 32.39 | I76: 28.24 | J76: 5.54 | K76: 33.78 | L76: 52.52 | M76: 1.02 | N76: 53.54
B77: 2024-08-20 | C77: 12 | D77: 0.01 | E77: 12.01 | F77: 26.85 | G77: 5.5 | H77: 32.35 | I77: 28.24 | J77: 5.5 | K77: 33.74 | L77: 52.52 | M77: 1.01 | N77: 53.53
B78: 2024-08-21 | C78: 12 | D78: 0.01 | E78: 12.01 | F78: 26.85 | G78: 5.45 | H78: 32.3 | I78: 28.24 | J78: 5.45 | K78: 33.69 | L78: 52.52 | M78: 1 | N78: 53.52
B79: 2024-08-22 | C79: 12 | D79: 0.01 | E79: 12.01 | F79: 26.85 | G79: 5.57 | H79: 32.42 | I79: 28.24 | J79: 5.57 | K79: 33.81 | L79: 52.52 | M79: 1.03 | N79: 53.55
B80: 2024-08-23 | C80: 12 | D80: 0.01 | E80: 12.01 | F80: 26.85 | G80: 5.8 | H80: 32.65 | I80: 28.24 | J80: 5.8 | K80: 34.04 | L80: 52.52 | M80: 1.1 | N80: 53.62
B81: 2024-08-24 | C81: 12 | D81: 0 | E81: 12 | F81: 26.85 | G81: 5.86 | H81: 32.71 | I81: 28.24 | J81: 5.86 | K81: 34.1 | L81: 52.52 | M81: 1.11 | N81: 53.63
B82: 2024-08-25 | C82: 12 | D82: 0.01 | E82: 12.01 | F82: 26.85 | G82: 5.97 | H82: 32.82 | I82: 28.24 | J82: 5.97 | K82: 34.21 | L82: 52.52 | M82: 1.16 | N82: 53.68
B83: 2024-08-26 | C83: 12 | D83: 0.01 | E83: 12.01 | F83: 26.85 | G83: 5.51 | H83: 32.36 | I83: 28.24 | J83: 5.51 | K83: 33.75 | L83: 52.52 | M83: 1.01 | N83: 53.53
B84: 2024-08-27 | C84: 12 | D84: 0.01 | E84: 12.01 | F84: 26.85 | G84: 5.47 | H84: 32.32 | I84: 28.24 | J84: 5.47 | K84: 33.71 | L84: 52.52 | M84: 1 | N84: 53.52
B85: 2024-08-28 | C85: 12 | D85: 0.01 | E85: 12.01 | F85: 26.85 | G85: 5.54 | H85: 32.39 | I85: 28.24 | J85: 5.54 | K85: 33.78 | L85: 52.52 | M85: 1.01 | N85: 53.53
B86: 2024-08-29 | C86: 12 | D86: 0.01 | E86: 12.01 | F86: 26.85 | G86: 5.71 | H86: 32.56 | I86: 28.24 | J86: 5.71 | K86: 33.95 | L86: 52.52 | M86: 1.08 | N86: 53.6
B87: 2024-08-30 | C87: 12 | D87: 0 | E87: 12 | F87: 26.85 | G87: 5.77 | H87: 32.62 | I87: 28.24 | J87: 5.77 | K87: 34.01 | L87: 52.52 | M87: 1.09 | N87: 53.61
B88: 2024-08-31 | C88: 12 | D88: 0 | E88: 12 | F88: 26.85 | G88: 5.79 | H88: 32.64 | I88: 28.24 | J88: 5.79 | K88: 34.03 | L88: 52.52 | M88: 1.1 | N88: 53.62
B89: 2024-09-01 | C89: 12 | D89: 0.01 | E89: 12.01 | F89: 26.85 | G89: 5.7 | H89: 32.55 | I89: 28.24 | J89: 5.7 | K89: 33.94 | L89: 52.52 | M89: 1.09 | N89: 53.61
B90: 2024-09-02 | C90: 12 | D90: 0.01 | E90: 12.01 | F90: 26.85 | G90: 5.57 | H90: 32.42 | I90: 28.24 | J90: 5.57 | K90: 33.81 | L90: 52.52 | M90: 1.04 | N90: 53.56
B91: 2024-09-03 | C91: 12 | D91: 0.01 | E91: 12.01 | F91: 26.85 | G91: 5.5 | H91: 32.35 | I91: 28.24 | J91: 5.5 | K91: 33.74 | L91: 52.52 | M91: 1.01 | N91: 53.53
B92: 2024-09-04 | C92: 12 | D92: 0.01 | E92: =SUM(C92:D92) -> 12.01 | F92: 26.85 | G92: 5.68 | H92: =SUM(F92:G92) -> 32.53 | I92: 28.24 | J92: 5.68 | K92: =SUM(I92:J92) -> 33.92 | L92: 52.52 | M92: 1.07 | N92: =SUM(L92:M92) -> 53.59
B93: 2024-09-05 | C93: 12 | D93: 0.01 | E93: 12.01 | F93: 26.85 | G93: 5.75 | H93: 32.6 | I93: 28.24 | J93: 5.75 | K93: 33.99 | L93: 52.52 | M93: 1.09 | N93: 53.61
B94: 2024-09-06 | C94: 12 | D94: 0.01 | E94: 12.01 | F94: 26.85 | G94: 5.73 | H94: 32.58 | I94: 28.24 | J94: 5.73 | K94: 33.97 | L94: 52.52 | M94: 1.1 | N94: 53.62
B95: 2024-09-07 | C95: 12 | D95: 0 | E95: 12 | F95: 26.85 | G95: 5.74 | H95: 32.59 | I95: 28.24 | J95: 5.74 | K95: 33.98 | L95: 52.52 | M95: 1.09 | N95: 53.61
B96: 2024-09-08 | C96: 12 | D96: 0.01 | E96: 12.01 | F96: 26.85 | G96: 5.7 | H96: 32.55 | I96: 28.24 | J96: 5.7 | K96: 33.94 | L96: 52.52 | M96: 1.1 | N96: 53.62
B97: 2024-09-09 | C97: 12 | D97: 0.01 | E97: 12.01 | F97: 26.85 | G97: 5.55 | H97: 32.4 | I97: 28.24 | J97: 5.55 | K97: 33.79 | L97: 52.52 | M97: 1.03 | N97: 53.55
B98: 2024-09-10 | C98: 12 | D98: 0.01 | E98: 12.01 | F98: 26.85 | G98: 5.54 | H98: =SUM(F98:G98) -> 32.39 | I98: 28.24 | J98: 5.54 | K98: 33.78 | L98: 52.52 | M98: 1.02 | N98: 53.54
B99: 2024-09-11 | C99: 12 | D99: 0.01 | E99: 12.01 | F99: 26.85 | G99: 5.52 | H99: 32.37 | I99: 28.24 | J99: 5.52 | K99: 33.76 | L99: 52.52 | M99: 1.02 | N99: 53.54
B100: 2024-09-12 | C100: 12 | D100: 0.01 | E100: 12.01 | F100: 26.85 | G100: 5.58 | H100: 32.43 | I100: 28.24 | J100: 5.58 | K100: 33.82 | L100: 52.52 | M100: 1.04 | N100: 53.56
B101: 2024-09-13 | C101: 12 | D101: 0 | E101: 12 | F101: 26.85 | G101: 5.6 | H101: 32.45 | I101: 28.24 | J101: 5.6 | K101: 33.84 | L101: 52.52 | M101: 1.09 | N101: 53.61
B102: 2024-09-14 | C102: 12 | D102: 0 | E102: 12 | F102: 26.85 | G102: 5.71 | H102: 32.56 | I102: 28.24 | J102: 5.71 | K102: 33.95 | L102: 52.52 | M102: 1.11 | N102: 53.63
B103: 2024-09-15 | C103: 12 | D103: 0.01 | E103: 12.01 | F103: 26.85 | G103: 5.77 | H103: 32.62 | I103: 28.24 | J103: 5.77 | K103: 34.01 | L103: 52.52 | M103: 1.11 | N103: 53.63
B104: 2024-09-16 | C104: 12 | D104: 0.01 | E104: 12.01 | F104: 26.85 | G104: 5.55 | H104: 32.4 | I104: 28.24 | J104: 5.55 | K104: 33.79 | L104: 52.52 | M104: 1.02 | N104: 53.54
B105: 2024-09-17 | C105: 12 | D105: 0.01 | E105: 12.01 | F105: 26.85 | G105: 5.68 | H105: 32.53 | I105: 28.24 | J105: 5.68 | K105: 33.92 | L105: 52.52 | M105: 1.08 | N105: 53.6
B106: 2024-09-18 | C106: 12 | D106: 0.01 | E106: 12.01 | F106: 26.85 | G106: 5.61 | H106: 32.46 | I106: 28.24 | J106: 5.61 | K106: 33.85 | L106: 52.52 | M106: 1.04 | N106: 53.56
B107: 2024-09-19 | C107: 12 | D107: 0.01 | E107: 12.01 | F107: 26.85 | G107: 5.66 | H107: 32.51 | I107: 28.24 | J107: 5.66 | K107: 33.9 | L107: 52.52 | M107: 1.05 | N107: 53.57
B108: 2024-09-20 | C108: 12 | D108: 0.01 | E108: 12.01 | F108: 26.85 | G108: 5.66 | H108: 32.51 | I108: 28.24 | J108: 5.66 | K108: 33.9 | L108: 52.52 | M108: 1.1 | N108: 53.62
B109: 2024-09-21 | C109: 12 | D109: 0 | E109: 12 | F109: 26.85 | G109: 5.67 | H109: 32.52 | I109: 28.24 | J109: 5.67 | K109: 33.91 | L109: 52.52 | M109: 1.08 | N109: 53.6
B110: 2024-09-22 | C110: 12 | D110: 0.01 | E110: 12.01 | F110: 26.85 | G110: 5.72 | H110: 32.57 | I110: 28.24 | J110: 5.72 | K110: 33.96 | L110: 52.52 | M110: 1.09 | N110: 53.61
B111: 2024-09-23 | C111: 12 | D111: 0.01 | E111: 12.01 | F111: 26.85 | G111: 5.56 | H111: 32.41 | I111: 28.24 | J111: 5.56 | K111: 33.8 | L111: 52.52 | M111: 1.03 | N111: 53.55
B112: 2024-09-24 | C112: 12 | D112: 0.01 | E112: 12.01 | F112: 26.85 | G112: 5.59 | H112: 32.44 | I112: 28.24 | J112: 5.59 | K112: 33.83 | L112: 52.52 | M112: 1.03 | N112: 53.55
B113: 2024-09-25 | C113: 12 | D113: 0.01 | E113: 12.01 | F113: 26.85 | G113: 5.64 | H113: 32.49 | I113: 28.24 | J113: 5.64 | K113: 33.88 | L113: 52.52 | M113: 1.05 | N113: 53.57
B114: 2024-09-26 | C114: 12 | D114: 0.01 | E114: 12.01 | F114: 26.85 | G114: 5.55 | H114: 32.4 | I114: 28.24 | J114: 5.55 | K114: 33.79 | L114: 52.52 | M114: 1.03 | N114: 53.55
B115: 2024-09-27 | C115: 12 | D115: 0.01 | E115: 12.01 | F115: 26.85 | G115: 5.72 | H115: 32.57 | I115: 28.24 | J115: 5.72 | K115: 33.96 | L115: 52.52 | M115: 1.09 | N115: 53.61
B116: 2024-09-28 | C116: 12 | D116: 0 | E116: 12 | F116: 26.85 | G116: 5.66 | H116: 32.51 | I116: 28.24 | J116: 5.66 | K116: 33.9 | L116: 52.52 | M116: 1.07 | N116: 53.59
B117: 2024-09-29 | C117: 12 | D117: 0.01 | E117: 12.01 | F117: 26.85 | G117: 5.84 | H117: 32.69 | I117: 28.24 | J117: 5.84 | K117: 34.08 | L117: 52.52 | M117: 1.12 | N117: 53.64
B118: 2024-09-30 | C118: 12 | D118: 0.01 | E118: 12.01 | F118: 26.85 | G118: 5.64 | H118: 32.49 | I118: 28.24 | J118: 5.64 | K118: 33.88 | L118: 52.52 | M118: 1.05 | N118: 53.57
B119: 2024-10-01 | C119: 12 | D119: 0.01 | E119: 12.01 | F119: 26.85 | G119: 5.72 | H119: 32.57 | I119: 28.24 | J119: 5.72 | K119: 33.96 | L119: 52.52 | M119: 1.08 | N119: 53.6
B120: 2024-10-02 | C120: 12 | D120: 0 | E120: 12 | F120: 26.85 | G120: 5.7 | H120: 32.55 | I120: 28.24 | J120: 5.7 | K120: 33.94 | L120: 52.52 | M120: 1.06 | N120: 53.58
B121: 2024-10-03 | C121: 12 | D121: 0.01 | E121: 12.01 | F121: 26.85 | G121: 5.53 | H121: 32.38 | I121: 28.24 | J121: 5.53 | K121: 33.77 | L121: 52.52 | M121: 1.02 | N121: 53.54
B122: 2024-10-04 | C122: 12 | D122: 0.01 | E122: 12.01 | F122: 26.85 | G122: 5.6 | H122: 32.45 | I122: 28.24 | J122: 5.6 | K122: 33.84 | L122: 52.52 | M122: 1.02 | N122: 53.54
B123: 2024-10-05 | C123: 12 | D123: 0 | E123: 12 | F123: 26.85 | G123: 5.53 | H123: 32.38 | I123: 28.24 | J123: 5.53 | K123: 33.77 | L123: 52.52 | M123: 1.01 | N123: 53.53
B124: 2024-10-06 | C124: 12 | D124: 0.01 | E124: 12.01 | F124: 26.85 | G124: 5.42 | H124: 32.27 | I124: 28.24 | J124: 5.42 | K124: 33.66 | L124: 52.52 | M124: 1.03 | N124: 53.55
B125: 2024-10-07 | C125: 12 | D125: 0.01 | E125: 12.01 | F125: 26.85 | G125: 5.67 | H125: 32.52 | I125: 28.24 | J125: 5.67 | K125: 33.91 | L125: 52.52 | M125: 1.06 | N125: 53.58
B126: 2024-10-08 | C126: 12 | D126: 0.01 | E126: 12.01 | F126: 26.85 | G126: 5.67 | H126: 32.52 | I126: 28.24 | J126: 5.67 | K126: 33.91 | L126: 52.52 | M126: 1.04 | N126: 53.56
B127: 2024-10-09 | C127: 12 | D127: 0.01 | E127: 12.01 | F127: 26.85 | G127: 5.77 | H127: 32.62 | I127: 28.24 | J127: 5.77 | K127: 34.01 | L127: 52.52 | M127: 1.07 | N127: 53.59
B128: 2024-10-10 | C128: 12 | D128: 0.01 | E128: 12.01 | F128: 26.85 | G128: 5.55 | H128: 32.4 | I128: 28.24 | J128: 5.55 | K128: 33.79 | L128: 52.52 | M128: 1.02 | N128: 53.54
B129: 2024-10-11 | C129: 12 | D129: 0.01 | E129: 12.01 | F129: 26.85 | G129: 5.56 | H129: 32.41 | I129: 28.24 | J129: 5.56 | K129: 33.8 | L129: 52.52 | M129: 1.02 | N129: 53.54
B130: 2024-10-12 | C130: 12 | D130: 0 | E130: 12 | F130: 26.85 | G130: 5.7 | H130: 32.55 | I130: 28.24 | J130: 5.7 | K130: 33.94 | L130: 52.52 | M130: 1.06 | N130: 53.58
B131: 2024-10-13 | C131: 12 | D131: 0.01 | E131: 12.01 | F131: 26.85 | G131: 5.74 | H131: 32.59 | I131: 28.24 | J131: 5.74 | K131: 33.98 | L131: 52.52 | M131: 1.08 | N131: 53.6
B132: 2024-10-14 | C132: 12 | D132: 0.01 | E132: 12.01 | F132: 26.85 | G132: 5.54 | H132: 32.39 | I132: 28.24 | J132: 5.54 | K132: 33.78 | L132: 52.52 | M132: 1.02 | N132: 53.54
B133: 2024-10-15 | C133: 12 | D133: 0.01 | E133: 12.01 | F133: 26.85 | G133: 5.55 | H133: 32.4 | I133: 28.24 | J133: 5.55 | K133: 33.79 | L133: 52.52 | M133: 1.01 | N133: 53.53
B134: 2024-10-16 | C134: 12 | D134: 0.01 | E134: 12.01 | F134: 26.85 | G134: 5.48 | H134: 32.33 | I134: 28.24 | J134: 5.48 | K134: 33.72 | L134: 52.52 | M134: 1 | N134: 53.52
B135: 2024-10-17 | C135: 12 | D135: 0.01 | E135: 12.01 | F135: 26.85 | G135: 5.45 | H135: 32.3 | I135: 28.24 | J135: 5.45 | K135: 33.69 | L135: 52.52 | M135: 1 | N135: 53.52
B136: 2024-10-18 | C136: 12 | D136: 0.01 | E136: 12.01 | F136: 26.85 | G136: 5.72 | H136: 32.57 | I136: 28.24 | J136: 5.72 | K136: 33.96 | L136: 52.52 | M136: 1.08 | N136: 53.6
B137: 2024-10-19 | C137: 12 | D137: 0 | E137: 12 | F137: 26.85 | G137: 5.56 | H137: 32.41 | I137: 28.24 | J137: 5.56 | K137: 33.8 | L137: 52.52 | M137: 1.03 | N137: 53.55
B138: 2024-10-20 | C138: 12 | D138: 0.01 | E138: 12.01 | F138: 26.85 | G138: 5.68 | H138: 32.53 | I138: 28.24 | J138: 5.68 | K138: 33.92 | L138: 52.52 | M138: 1.07 | N138: 53.59
B139: 2024-10-21 | C139: 12 | D139: 0.01 | E139: 12.01 | F139: 26.85 | G139: 5.49 | H139: 32.34 | I139: 28.24 | J139: 5.49 | K139: 33.73 | L139: 52.52 | M139: 1.01 | N139: 53.53
B140: 2024-10-22 | C140: 12 | D140: 0.01 | E140: 12.01 | F140: 26.85 | G140: 5.46 | H140: 32.31 | I140: 28.24 | J140: 5.46 | K140: 33.7 | L140: 52.52 | M140: 0.99 | N140: 53.51
B141: 2024-10-23 | C141: 12 | D141: 0.01 | E141: 12.01 | F141: 26.85 | G141: 5.57 | H141: 32.42 | I141: 28.24 | J141: 5.57 | K141: 33.81 | L141: 52.52 | M141: 1.01 | N141: 53.53
B142: 2024-10-24 | C142: 12 | D142: 0.01 | E142: 12.01 | F142: 26.85 | G142: 5.56 | H142: 32.41 | I142: 28.24 | J142: 5.56 | K142: 33.8 | L142: 52.52 | M142: 1.02 | N142: 53.54
B143: 2024-10-25 | C143: 12 | D143: 0.01 | E143: 12.01 | F143: 26.85 | G143: 5.67 | H143: 32.52 | I143: 28.24 | J143: 5.67 | K143: 33.91 | L143: 52.52 | M143: 1.07 | N143: 53.59
B144: 2024-10-26 | C144: 12 | D144: 0 | E144: 12 | F144: 26.85 | G144: 5.53 | H144: 32.38 | I144: 28.24 | J144: 5.53 | K144: 33.77 | L144: 52.52 | M144: 1.02 | N144: 53.54
B145: 2024-10-27 | C145: 12 | D145: 0.01 | E145: 12.01 | F145: 26.85 | G145: 5.69 | H145: 32.54 | I145: 28.24 | J145: 5.69 | K145: 33.93 | L145: 52.52 | M145: 1.08 | N145: 53.6
B146: 2024-10-28 | C146: 12 | D146: 0.01 | E146: 12.01 | F146: 26.85 | G146: 5.61 | H146: 32.46 | I146: 28.24 | J146: 5.61 | K146: 33.85 | L146: 52.52 | M146: 1.03 | N146: 53.55
B147: 2024-10-29 | C147: 12 | D147: 0.01 | E147: 12.01 | F147: 26.85 | G147: 5.51 | H147: 32.36 | I147: 28.24 | J147: 5.51 | K147: 33.75 | L147: 52.52 | M147: 1 | N147: 53.52
B148: 2024-10-30 | C148: 12 | D148: 0.01 | E148: 12.01 | F148: 26.85 | G148: 5.57 | H148: 32.42 | I148: 28.24 | J148: 5.57 | K148: 33.81 | L148: 52.52 | M148: 1 | N148: 53.52
B149: 2024-10-31 | C149: 12 | D149: 0.01 | E149: 12.01 | F149: 26.85 | G149: 5.4 | H149: 32.25 | I149: 28.24 | J149: 5.4 | K149: 33.64 | L149: 52.52 | M149: 0.98 | N149: 53.5
B150: 2024-11-01 | C150: 12 | D150: 0.01 | E150: 12.01 | F150: 26.85 | G150: 5.51 | H150: 32.36 | I150: 28.24 | J150: 5.51 | K150: 33.75 | L150: 52.52 | M150: 1.01 | N150: 53.53
B151: 2024-11-02 | C151: 12 | D151: 0.01 | E151: 12.01 | F151: 26.85 | G151: 5.5 | H151: 32.35 | I151: 28.24 | J151: 5.5 | K151: 33.74 | L151: 52.52 | M151: 1.06 | N151: 53.58
B152: 2024-11-03 | C152: 12 | D152: 0.01 | E152: 12.01 | F152: 26.85 | G152: 5.73 | H152: 32.58 | I152: 28.24 | J152: 5.73 | K152: 33.97 | L152: 52.52 | M152: 1.07 | N152: 53.59
B153: 2024-11-04 | C153: 12 | D153: 0.01 | E153: 12.01 | F153: 26.85 | G153: 5.65 | H153: 32.5 | I153: 28.24 | J153: 5.65 | K153: 33.89 | L153: 52.52 | M153: 1.05 | N153: 53.57
B154: 2024-11-05 | C154: 12 | D154: 0.01 | E154: 12.01 | F154: 26.85 | G154: 5.55 | H154: 32.4 | I154: 28.24 | J154: 5.55 | K154: 33.79 | L154: 52.52 | M154: 1.02 | N154: 53.54
B155: 2024-11-06 | C155: 12 | D155: 0.01 | E155: 12.01 | F155: 26.85 | G155: 5.53 | H155: 32.38 | I155: 28.24 | J155: 5.53 | K155: 33.77 | L155: 52.52 | M155: 0.99 | N155: 53.51
B156: 2024-11-07 | C156: 12 | D156: 0.01 | E156: =SUM(C156:D156) -> 12.01 | F156: 26.85 | G156: 5.63 | H156: =SUM(F156:G156) -> 32.48 | I156: 28.24 | J156: 5.63 | K156: =SUM(I156:J156) -> 33.87 | L156: 52.52 | M156: 1.03 | N156: =SUM(L156:M156) -> 53.55
B157: 2024-11-08 | C157: 12 | D157: 0.01 | E157: 12.01 | F157: 26.85 | G157: 5.57 | H157: 32.42 | I157: 28.24 | J157: 5.57 | K157: 33.81 | L157: 52.52 | M157: 1.03 | N157: 53.55
B158: 2024-11-09 | C158: 12 | D158: 0.01 | E158: 12.01 | F158: 26.85 | G158: 5.55 | H158: 32.4 | I158: 28.24 | J158: 5.55 | K158: 33.79 | L158: 52.52 | M158: 1.02 | N158: 53.54
B159: 2024-11-10 | C159: 12 | D159: 0.01 | E159: 12.01 | F159: 26.85 | G159: 5.62 | H159: 32.47 | I159: 28.24 | J159: 5.62 | K159: 33.86 | L159: 52.52 | M159: 1.06 | N159: 53.58
B160: 2024-11-11 | C160: 12 | D160: 0.01 | E160: 12.01 | F160: 26.85 | G160: 5.6 | H160: 32.45 | I160: 28.24 | J160: 5.6 | K160: 33.84 | L160: 52.52 | M160: 1.03 | N160: 53.55
B161: 2024-11-12 | C161: 12 | D161: 0.01 | E161: 12.01 | F161: 26.85 | G161: 5.54 | H161: 32.39 | I161: 28.24 | J161: 5.54 | K161: 33.78 | L161: 52.52 | M161: 1 | N161: 53.52
B162: 2024-11-13 | C162: 12 | D162: 0.01 | E162: 12.01 | F162: 26.85 | G162: 5.81 | H162: 32.66 | I162: 28.24 | J162: 5.81 | K162: 34.05 | L162: 52.52 | M162: 1.1 | N162: 53.62
B163: 2024-11-14 | C163: 12 | D163: 0.01 | E163: 12.01 | F163: 26.85 | G163: 5.65 | H163: 32.5 | I163: 28.24 | J163: 5.65 | K163: 33.89 | L163: 52.52 | M163: 1.04 | N163: 53.56
B164: 2024-11-15 | C164: 12 | D164: 0.01 | E164: 12.01 | F164: 26.85 | G164: 5.57 | H164: 32.42 | I164: 28.24 | J164: 5.57 | K164: 33.81 | L164: 52.52 | M164: 1.05 | N164: 53.57
B165: 2024-11-16 | C165: 12 | D165: 0.01 | E165: 12.01 | F165: 26.85 | G165: 5.71 | H165: 32.56 | I165: 28.24 | J165: 5.71 | K165: 33.95 | L165: 52.52 | M165: 1.23 | N165: 53.75
B166: 2024-11-17 | C166: 12 | D166: 0.01 | E166: 12.01 | F166: 26.85 | G166: 5.82 | H166: 32.67 | I166: 28.24 | J166: 5.82 | K166: 34.06 | L166: 52.52 | M166: 1.1 | N166: 53.62
B167: 2024-11-18 | C167: 12 | D167: 0.01 | E167: 12.01 | F167: 26.85 | G167: 5.71 | H167: 32.56 | I167: 28.24 | J167: 5.71 | K167: 33.95 | L167: 52.52 | M167: 1.06 | N167: 53.58
B168: 2024-11-19 | C168: 12 | D168: 0.01 | E168: 12.01 | F168: 26.85 | G168: 5.57 | H168: 32.42 | I168: 28.24 | J168: 5.57 | K168: 33.81 | L168: 52.52 | M168: 1.03 | N168: 53.55
B169: 2024-11-20 | C169: 12 | D169: 0.01 | E169: 12.01 | F169: 26.85 | G169: 5.74 | H169: 32.59 | I169: 28.24 | J169: 5.74 | K169: 33.98 | L169: 52.52 | M169: 1.06 | N169: 53.58
B170: 2024-11-21 | C170: 12 | D170: 0.01 | E170: 12.01 | F170: 26.85 | G170: 5.7 | H170: 32.55 | I170: 28.24 | J170: 5.7 | K170: 33.94 | L170: 52.52 | M170: 1.07 | N170: 53.59
B171: 2024-11-22 | C171: 12 | D171: 0.01 | E171: 12.01 | F171: 26.85 | G171: 5.64 | H171: 32.49 | I171: 28.24 | J171: 5.64 | K171: 33.88 | L171: 52.52 | M171: 1.05 | N171: 53.57
B172: 2024-11-23 | C172: 12 | D172: 0 | E172: 12 | F172: 26.85 | G172: 5.63 | H172: 32.48 | I172: 28.24 | J172: 5.63 | K172: 33.87 | L172: 52.52 | M172: 1.05 | N172: 53.57
B173: 2024-11-24 | C173: 12 | D173: 0.01 | E173: 12.01 | F173: 26.85 | G173: 6.02 | H173: 32.87 | I173: 28.24 | J173: 6.02 | K173: 34.26 | L173: 52.52 | M173: 1.15 | N173: 53.67
B174: 2024-11-25 | C174: 12 | D174: 0.01 | E174: 12.01 | F174: 26.85 | G174: 5.9 | H174: 32.75 | I174: 28.24 | J174: 5.9 | K174: 34.14 | L174: 52.52 | M174: 1.09 | N174: 53.61
B175: 2024-11-26 | C175: 12 | D175: 0.01 | E175: 12.01 | F175: 26.85 | G175: 5.7 | H175: 32.55 | I175: 28.24 | J175: 5.7 | K175: 33.94 | L175: 52.52 | M175: 1.04 | N175: 53.56
B176: 2024-11-27 | C176: 12 | D176: 0.01 | E176: 12.01 | F176: 26.85 | G176: 5.67 | H176: 32.52 | I176: 28.24 | J176: 5.67 | K176: 33.91 | L176: 52.52 | M176: 1.03 | N176: 53.55
B177: 2024-11-28 | C177: 12 | D177: 0.01 | E177: 12.01 | F177: 26.85 | G177: 5.48 | H177: 32.33 | I177: 28.24 | J177: 5.48 | K177: 33.72 | L177: 52.52 | M177: 0.99 | N177: 53.51
B178: 2024-11-29 | C178: 12 | D178: 0.01 | E178: 12.01 | F178: 26.85 | G178: 5.43 | H178: 32.28 | I178: 28.24 | J178: 5.43 | K178: 33.67 | L178: 52.52 | M178: 1 | N178: 53.52
B179: 2024-11-30 | C179: 12 | D179: 0.01 | E179: 12.01 | F179: 26.85 | G179: 5.6 | H179: 32.45 | I179: 28.24 | J179: 5.6 | K179: 33.84 | L179: 52.52 | M179: 1.03 | N179: 53.55
B180: 2024-12-01 | C180: 12 | D180: 0.01 | E180: 12.01 | F180: 26.85 | G180: 5.62 | H180: 32.47 | I180: 28.24 | J180: 5.62 | K180: 33.86 | L180: 52.52 | M180: 1.09 | N180: 53.61
B181: 2024-12-02 | C181: 12 | D181: 0.01 | E181: 12.01 | F181: 26.85 | G181: 5.64 | H181: 32.49 | I181: 28.24 | J181: 5.64 | K181: 33.88 | L181: 52.52 | M181: 1.04 | N181: 53.56
B182: 2024-12-03 | C182: 12 | D182: 0.01 | E182: 12.01 | F182: 26.85 | G182: 5.64 | H182: 32.49 | I182: 28.24 | J182: 5.64 | K182: 33.88 | L182: 52.52 | M182: 1.02 | N182: 53.54
B183: 2024-12-04 | C183: 12 | D183: 0.01 | E183: 12.01 | F183: 26.85 | G183: 5.52 | H183: 32.37 | I183: 28.24 | J183: 5.52 | K183: 33.76 | L183: 52.52 | M183: 1 | N183: 53.52
B184: 2024-12-05 | C184: 12 | D184: 0.01 | E184: 12.01 | F184: 26.85 | G184: 5.4 | H184: 32.25 | I184: 28.24 | J184: 5.4 | K184: 33.64 | L184: 52.52 | M184: 0.97 | N184: 53.49
B185: 2024-12-06 | C185: 12 | D185: 0.01 | E185: 12.01 | F185: 26.85 | G185: 5.39 | H185: 32.24 | I185: 28.24 | J185: 5.39 | K185: 33.63 | L185: 52.52 | M185: 1.02 | N185: 53.54
B186: 2024-12-07 | C186: 12 | D186: 0 | E186: 12 | F186: 26.85 | G186: 5.35 | H186: 32.2 | I186: 28.24 | J186: 5.35 | K186: 33.59 | L186: 52.52 | M186: 1 | N186: 53.52
B187: 2024-12-08 | C187: 12 | D187: 0.01 | E187: 12.01 | F187: 26.85 | G187: 5.7 | H187: 32.55 | I187: 28.24 | J187: 5.7 | K187: 33.94 | L187: 52.52 | M187: 1.07 | N187: 53.59
B188: 2024-12-09 | C188: 12 | D188: 0.01 | E188: 12.01 | F188: 26.85 | G188: 5.62 | H188: 32.47 | I188: 28.24 | J188: 5.62 | K188: 33.86 | L188: 52.52 | M188: 1.03 | N188: 53.55
B189: 2024-12-10 | C189: 12 | D189: 0.01 | E189: 12.01 | F189: 26.85 | G189: 5.71 | H189: 32.56 | I189: 28.24 | J189: 5.71 | K189: 33.95 | L189: 52.52 | M189: 1.1 | N189: 53.62
B190: 2024-12-11 | C190: 12 | D190: 0.01 | E190: 12.01 | F190: 26.85 | G190: 5.55 | H190: 32.4 | I190: 28.24 | J190: 5.55 | K190: 33.79 | L190: 52.52 | M190: 1.02 | N190: 53.54
B191: 2024-12-12 | C191: 12 | D191: 0.01 | E191: 12.01 | F191: 26.85 | G191: 5.42 | H191: 32.27 | I191: 28.24 | J191: 5.42 | K191: 33.66 | L191: 52.52 | M191: 0.98 | N191: 53.5
B192: 2024-12-13 | C192: 12 | D192: 0.01 | E192: 12.01 | F192: 26.85 | G192: 5.31 | H192: 32.16 | I192: 28.24 | J192: 5.31 | K192: 33.55 | L192: 52.52 | M192: 0.97 | N192: 53.49
B193: 2024-12-14 | C193: 12 | D193: 0 | E193: 12 | F193: 26.85 | G193: 5.24 | H193: 32.09 | I193: 28.24 | J193: 5.24 | K193: 33.48 | L193: 52.52 | M193: 0.95 | N193: 53.47
B194: 2024-12-15 | C194: 12 | D194: 0.01 | E194: 12.01 | F194: 26.85 | G194: 5.65 | H194: 32.5 | I194: 28.24 | J194: 5.65 | K194: 33.89 | L194: 52.52 | M194: 1.07 | N194: 53.59
B195: 2024-12-16 | C195: 12 | D195: 0.01 | E195: 12.01 | F195: 26.85 | G195: 5.82 | H195: 32.67 | I195: 28.24 | J195: 5.82 | K195: 34.06 | L195: 52.52 | M195: 1.09 | N195: 53.61
B196: 2024-12-17 | C196: 12 | D196: 0.01 | E196: 12.01 | F196: 26.85 | G196: 5.86 | H196: 32.71 | I196: 28.24 | J196: 5.86 | K196: 34.1 | L196: 52.52 | M196: 1.09 | N196: 53.61
B197: 2024-12-18 | C197: 12 | D197: 0.01 | E197: 12.01 | F197: 26.85 | G197: 5.62 | H197: 32.47 | I197: 28.24 | J197: 5.62 | K197: 33.86 | L197: 52.52 | M197: 1.04 | N197: 53.56
B198: 2024-12-19 | C198: 12 | D198: 0.01 | E198: 12.01 | F198: 26.85 | G198: 5.42 | H198: 32.27 | I198: 28.24 | J198: 5.42 | K198: 33.66 | L198: 52.52 | M198: 1 | N198: 53.52
B199: 2024-12-20 | C199: 12 | D199: 0.01 | E199: 12.01 | F199: 26.85 | G199: 5.37 | H199: 32.22 | I199: 28.24 | J199: 5.37 | K199: 33.61 | L199: 52.52 | M199: 0.98 | N199: 53.5
B200: 2024-12-21 | C200: 12 | D200: 0 | E200: 12 | F200: 26.85 | G200: 5.23 | H200: 32.08 | I200: 28.24 | J200: 5.23 | K200: 33.47 | L200: 52.52 | M200: 0.96 | N200: 53.48
B201: 2024-12-22 | C201: 12 | D201: 0.01 | E201: 12.01 | F201: 26.85 | G201: 5.55 | H201: 32.4 | I201: 28.24 | J201: 5.55 | K201: 33.79 | L201: 52.52 | M201: 1.03 | N201: 53.55
B202: 2024-12-23 | C202: 12 | D202: 0.01 | E202: 12.01 | F202: 26.85 | G202: 5.31 | H202: 32.16 | I202: 28.24 | J202: 5.31 | K202: 33.55 | L202: 52.52 | M202: 0.98 | N202: 53.5
B203: 2024-12-24 | C203: 12 | D203: 0.01 | E203: 12.01 | F203: 26.85 | G203: 4.5 | H203: 31.35 | I203: 28.24 | J203: 4.5 | K203: 32.74 | L203: 52.52 | M203: 0.82 | N203: 53.34
B204: 2024-12-25 | C204: 12 | D204: 0.01 | E204: 12.01 | F204: 26.85 | G204: 4.55 | H204: 31.4 | I204: 28.24 | J204: 4.55 | K204: 32.79 | L204: 52.52 | M204: 0.82 | N204: 53.34
B205: 2024-12-26 | C205: 12 | D205: 0.01 | E205: 12.01 | F205: 26.85 | G205: 5.55 | H205: 32.4 | I205: 28.24 | J205: 5.55 | K205: 33.79 | L205: 52.52 | M205: 1.04 | N205: 53.56
B206: 2024-12-27 | C206: 12 | D206: 0.01 | E206: 12.01 | F206: 26.85 | G206: 5.6 | H206: 32.45 | I206: 28.24 | J206: 5.6 | K206: 33.84 | L206: 52.52 | M206: 1.03 | N206: 53.55
B207: 2024-12-28 | C207: 12 | D207: 0.01 | E207: 12.01 | F207: 26.85 | G207: 5.62 | H207: 32.47 | I207: 28.24 | J207: 5.62 | K207: 33.86 | L207: 52.52 | M207: 1.02 | N207: 53.54
B208: 2024-12-29 | C208: 12 | D208: 0.01 | E208: 12.01 | F208: 26.85 | G208: 5.62 | H208: 32.47 | I208: 28.24 | J208: 5.62 | K208: 33.86 | L208: 52.52 | M208: 1.03 | N208: 53.55
B209: 2024-12-30 | C209: 12 | D209: 0.01 | E209: 12.01 | F209: 26.85 | G209: 5.62 | H209: 32.47 | I209: 28.24 | J209: 5.62 | K209: 33.86 | L209: 52.52 | M209: 1.02 | N209: 53.54
B210: 2024-12-31 | C210: 12 | D210: 0.01 | E210: 12.01 | F210: 26.85 | G210: 3.96 | H210: 30.81 | I210: 28.24 | J210: 3.96 | K210: 32.2 | L210: 52.52 | M210: 0.67 | N210: 53.19
B211: 2025-01-01 | C211: 12 | D211: 0.01 | E211: 12.01 | F211: 26.85 | G211: 5.73 | H211: 32.58 | I211: 28.24 | J211: 5.73 | K211: 33.97 | L211: 52.52 | M211: 1.05 | N211: 53.57
B212: 2025-01-02 | C212: 12 | D212: 0.01 | E212: 12.01 | F212: 26.85 | G212: 5.76 | H212: 32.61 | I212: 28.24 | J212: 5.76 | K212: 34 | L212: 52.52 | M212: 1.05 | N212: 53.57
B213: 2025-01-03 | C213: 12 | D213: 0.01 | E213: 12.01 | F213: 26.85 | G213: 5.62 | H213: 32.47 | I213: 28.24 | J213: 5.62 | K213: 33.86 | L213: 52.52 | M213: 1.02 | N213: 53.54
B214: 2025-01-04 | C214: 12 | D214: 0.01 | E214: 12.01 | F214: 26.85 | G214: 5.73 | H214: 32.58 | I214: 28.24 | J214: 5.73 | K214: 33.97 | L214: 52.52 | M214: 1.04 | N214: 53.56
... 86 more rows

Sheet FY25-27 FACC
B1: Cell colour meanings
B2: Input cell
B3: Calculation cell
B5: Calculation of the Forecast Average Combined Charge (FACC)
B6: FY25 ACC using Average Combined Charge (from 1 July 2024 to 31 March 2025) and FACC (for 1 April 2025 to 30 June 2025)
B7: Note 1: As per clause 2D.2.2(e)(i) of the SAU, the FY25 ACC (from 1 July 2024 to 30 June 2025), as reflected in the WAPC Price & Quantity tab, is calculated using (i) the Average Combined Charge for the period 1 July 2024 to 31 March 2025; and (ii) the FACC for the period 1 April 2025 to 30 June 2025. For each Bundled TC-4 Offer, the FY25 ACC is the sum of: (a) the Average Combined Charge (refer to the FY25 ACC tab) multiplied by 274/365 (representing the number of days between 1 July 2024 and 31 March 2025, as a proportion of the total number of days between 1 July 2024 and 30 June 2025); and (b) the FY25 FACC multiplied by 91/365 (representing the number of days between 1 April 2025 and 30 June 2025, as a proportion of the total number of days between 1 July 2024 and 30 June 2025).
C14: 12/1 Mbps (Basic Bundled Offer) | D14: 12/1 Mbps (Non-Basic Bundled Offer) | E14: 25/5 Mbps and 25/10 Mbps | F14: 50/20 and Up to 100/Up to 20 Mbps
B15: FY25 ACC 1 July 2024 - 30 June 2025 | C15: =ROUND(INDEX('FY25 ACC'!$C$19:$F$19,,MATCH(C14,'FY25 ACC'!$C$18:$F$18,0))*(274/365)+INDEX($C$37:$F$37,,MATCH(C14,$C$36:$F$36,0))*(91/365),2) -> 12.01 | D15: =ROUND(INDEX('FY25 ACC'!$C$19:$F$19,,MATCH(D14,'FY25 ACC'!$C$18:$F$18,0))*(274/365)+INDEX($C$37:$F$37,,MATCH(D14,$C$36:$F$36,0))*(91/365),2) -> 32.57 | E15: =ROUND(INDEX('FY25 ACC'!$C$19:$F$19,,MATCH(E14,'FY25 ACC'!$C$18:$F$18,0))*(274/365)+INDEX($C$37:$F$37,,MATCH(E14,$C$36:$F$36,0))*(91/365),2) -> 33.96 | F15: =ROUND(INDEX('FY25 ACC'!$C$19:$F$19,,MATCH(F14,'FY25 ACC'!$C$18:$F$18,0))*(274/365)+INDEX($C$37:$F$37,,MATCH(F14,$C$36:$F$36,0))*(91/365),2) -> 53.59
B18: FY25 to FY27 FACC
B19: Note 2: The forecast average of the Average Daily AVC Overage Charge is provided for each Bundled TC-4 Offer Group, where the Bundled TC-4 Offer Groups are (i) 12/1 Mbps (Basic Bundled Offer); (ii) 12/1 Mbps (Non-Basic Bundled Offer), 25/5 Mbps and 25/10 Mbps; and (iii) 50/20 Mbps and Up to 100/Up to 20 Mbps. Note 3: If daily usage on the 12/1 Mbps (Basic Bundled Offer) exceeds 0.1 Mbps, the charge will revert to the rate for the 12/1 Mbps (Non-Basic Bundled Offer). Note 4: From FY27, the CVC TC-4 (non-Satellite) price will be $0. Accordingly, the Bundled TC-4 Offers in FY26 will transition to Flat-Rate Offers in FY27, as per clause 2B.3.1(d) of the SAU. The FACC for each such offer in FY27 is forecast to be the Monthly Recurring Fixed Charge for that offer in FY27. Note 5: There are separate offers for each of the 12/1 Mbps (Basic Bundled Offer), 12/1 Mbps (Non-Basic Bundled Offer), 25/5 Mbps, 25/10 Mbps, and 50/20 Mbps speed tiers on each relevant access technology, as well as a separate offer for the Up to 100/Up to 20 Mbps bandwidth profile. For each such offer, nbn has forecast the proportion of AVCs that fall within the three categories specified in clause 2F.4.2(a)(ii)(A)-(C) of the SAU. These categories are referred to as “Floor”, “In between” and “Ceiling”, and collectively referred to as "Overage Groups". In developing such forecast proportions for each relevant offer, nbn has used forecasts of the Average Daily AVC Overage Charge calculated across all offers sharing the same forecast fixed bundled price and CVC inclusion. Accordingly, the proportions of AVCs subject to each Bundled TC-4 Offer that fall within each of the categories in clause 2F.4.2(a)(ii)(A)-(C) of the SAU are the same across Bundled TC-4 Offers that share the same forecast fixed bundled price and CVC inclusion. Note 6: In accordance with clause 2F.4.2(a)(ii) of the SAU, nbn forecasts the proportion of AVC TC-4s for each Bundled TC-4 Offer that will fall into the three Overage Groups for each day within the specified period for which the FACC is calculated. This forecast proportion is based on forecast monthly utilisation (such that the proportion for each day is the same across each month). For informational purposes, the table below shows the forecast average proportion of AVC TC-4s for each Bundled TC-4 Offer that will fall into each Overage Group, averaged over the specified periods (i.e., 1 April 2025 to 30 June 2025, FY26, and FY27).
B36: FACC | C36: 12/1 Mbps (Basic Bundled Offer) | D36: 12/1 Mbps (Non-Basic Bundled Offer) | E36: 25/5 Mbps and 25/10 Mbps | F36: 50/20 and Up to 100/Up to 20 Mbps
B37: 1 April 2025 - 30 June 2025 (Q4 FY25) | C37: =C45+E58 -> 12.01 | D37: =C48+E59 -> 32.65 | E37: =C51+E59 -> 34.04 | F37: =C54+E60 -> 53.61
B38: 1 July 2025 - 30 June 2026 (FY26) | C38: =H45+J58 -> 12.01 | D38: =H48+J59 -> 33.47 | E38: =H51+J59 -> 34.64 | F38: =H54+J60 -> 55.19
B39: 1 July 2026 - 30 June 2027 (FY27) | C39: =M45 -> 12 | D39: =M48 -> 35.14 | E39: =M51 -> 35.92 | F39: =M54 -> 57.69
C42: 1 April 2025 - 30 June 2025 (Q4 FY25) | H42: 1 July 2025 - 30 June 2026 (FY26) | M42: 1 July 2026 - 30 June 2027 (FY27)
C43: Forecast Avg. Monthly Price in Tariff List | D43: Overage Group | E43: Forecast Avg. Daily AVC Overage Charge | F43: Avg. Proportion of AVCs in Overage Group | H43: Forecast Avg. Monthly Price in Tariff List | I43: Overage Group | J43: Forecast Avg. Daily AVC Overage Charge | K43: Avg. Proportion of AVCs in Overage Group | M43: Forecast Avg. Monthly Price in Tariff List | N43: Overage Group | O43: Forecast Avg. Daily AVC Overage Charge | P43: Avg. Proportion of AVCs in Overage Group
B44: 12/1 Mbps (Basic Bundled Offer) Bundled Offer Group 1 | D44: Floor | E44: n/a | F44: n/a | I44: Floor | J44: n/a | K44: n/a | N44: Floor | O44: n/a | P44: n/a
C45: 12 | D45: In between | E45: 0.01 | F45: 1 | H45: 12 | I45: In between | J45: 0.01 | K45: 1 | M45: 12 | N45: In between | O45: n/a | P45: n/a
D46: Ceiling | E46: n/a | F46: n/a | I46: Ceiling | J46: n/a | K46: n/a | N46: Ceiling | O46: n/a | P46: n/a
B47: 12/1 Mbps (Non-Basic Bundled Offer) Bundled Offer Group 2 | D47: Floor | E47: 0 | F47: 0.006568505722 | I47: Floor | J47: 0 | K47: 0.006631833924 | N47: Floor | O47: n/a | P47: n/a
C48: 26.85 | D48: In between | E48: 5.12 | F48: 0.9431471618 | H48: 28.64 | I48: In between | J48: 4.53 | K48: 0.9618341094 | M48: 35.14 | N48: In between | O48: n/a | P48: n/a
D49: Ceiling | E49: 30.37 | F49: 0.05028433249 | I49: Ceiling | J49: 29.89 | K49: 0.03153405667 | N49: Ceiling | O49: n/a | P49: n/a
B50: 25/5 Mbps and 25/10 Mbps Bundled Offer Group 2 | D50: Floor | E50: 0 | F50: 0.4357751397 | I50: Floor | J50: 0 | K50: 0.4419930355 | N50: Floor | O50: n/a | P50: n/a
C51: 28.24 | D51: In between | E51: 8.3 | F51: 0.5133752569 | H51: 29.81 | I51: In between | J51: 7.33 | K51: 0.5263145167 | M51: 35.92 | N51: In between | O51: n/a | P51: n/a
D52: Ceiling | E52: 28.98 | F52: 0.05084960336 | I52: Ceiling | J52: 28.72 | K52: 0.03169244786 | N52: Ceiling | O52: n/a | P52: n/a
B53: 50/20 and Up to 100/Up to 20 Mbps Bundled Offer Group 3 | D53: Floor | E53: 0 | F53: 0.7361354313 | I53: Floor | J53: 0 | K53: 0.7325179442 | N53: Floor | O53: n/a | P53: n/a
C54: 52.52 | D54: In between | E54: 2.25 | F54: 0.06306726752 | H54: 54.2 | I54: In between | J54: 2.04 | K54: 0.07251710409 | M54: 57.69 | N54: In between | O54: n/a | P54: n/a
D55: Ceiling | E55: 4.7 | F55: 0.2007973012 | I55: Ceiling | J55: 4.33 | K55: 0.1949649517 | N55: Ceiling | O55: n/a | P55: n/a
B57: Bundled TC-4 Offer Group | E57: Forecast Avg. Daily AVC Overage Charge | J57: Forecast Avg. Daily AVC Overage Charge | O57: Forecast Avg. Daily AVC Overage Charge
B58: Bundled Offer Group 1 | E58: 0.01 | J58: 0.01 | O58: n/a
B59: Bundled Offer Group 2 | E59: 5.8 | J59: 4.83 | O59: n/a
B60: Bundled Offer Group 3 | E60: 1.09 | J60: 0.99 | O60: n/a
B62: CVC TC-4 (non-Satellite) Price | C62: 4.5 | H62: 3.5 | M62: 0
B63: Bundled Offer Ceiling | C63: =_xlfn.XLOOKUP("AVC TC-4 25-100/5-20 Mbps", 'WAPC Price & Quantity'!$C:$C, 'WAPC Price & Quantity'!$F:$F) -> 57.22 | H63: =_xlfn.XLOOKUP("AVC TC-4 25-100/5-20 Mbps", 'WAPC Price & Quantity'!$C:$C, 'WAPC Price & Quantity'!$G:$G) -> 58.53 | M63: n/a
B66: Lookup table
B67: Note 7: The following lookup table supports the functionality of this model.
C69: Tariff List Table References | D69: WAPC Charge Component | E69: Access Network
B70: 12/1 Mbps (Basic Bundled Offer) | C70: 1.3 Bundled TC-4 Offers | D70: AVC TC-4 12/1 Mbps (Basic Bundled Offer) | E70: Fibre, FTTB, FTTN, FTTC, HFC
B71: 12/1 Mbps (Non-Basic Bundled Offer) | C71: 1.3 Bundled TC-4 Offers | D71: AVC TC-4 12/1 Mbps | E71: Fibre, FTTB, FTTN, FTTC, HFC, Wireless
B72: 25/5 Mbps and 25/10 Mbps | C72: 1.3 Bundled TC-4 Offers | D72: AVC TC-4 25/5 Mbps | E72: Fibre, FTTB, FTTN, FTTC, HFC, Wireless
B73: 25/5 Mbps and 25/10 Mbps | C73: 1.3 Bundled TC-4 Offers | D73: AVC TC-4 25/5-10 Mbps | E73: FTTB, FTTN
B74: 25/5 Mbps and 25/10 Mbps | C74: 1.3 Bundled TC-4 Offers | D74: AVC TC-4 25/10 Mbps | E74: Fibre, FTTC, HFC
B75: 50/20 and Up to 100/Up to 20 Mbps | C75: 1.3 Bundled TC-4 Offers | D75: AVC TC-4 25-50/5-20 Mbps | E75: FTTB, FTTN
B76: 50/20 and Up to 100/Up to 20 Mbps | C76: 1.3 Bundled TC-4 Offers | D76: AVC TC-4 50/20 Mbps | E76: Fibre, FTTC, HFC
B77: 50/20 and Up to 100/Up to 20 Mbps | C77: 1.3 Bundled TC-4 Offers | D77: AVC TC-4 up to 100/up to 20 Mbps | E77: Wireless
B78: 25/5 Mbps and 25/10 Mbps | C78: 1.4 Bundled TC-4 Offers: Smart Places | D78: Smart Places - AVC TC-4 25/10 Mbps | E78: Fibre
B79: 50/20 and Up to 100/Up to 20 Mbps | C79: 1.4 Bundled TC-4 Offers: Smart Places | D79: Smart Places - AVC TC-4 50/20 Mbps | E79: Fibre

Sheet FY24 Average Combined Charge
B1: Cell colour meanings
B2: Input cell
B3: Calculation cell
B5: Calculation of the Average Combined Charges for the period 1 December 2023 to 30 June 2024
B6: Note 1: The Average Daily AVC Overage Charge is calculated for each Bundled TC-4 Offer Group, where the Bundled TC-4 Offer Groups are (i) 12/1 Mbps (Basic Bundled Offer); (ii) 12/1 Mbps (Non-Basic Bundled Offer), 25/5 Mbps and 25/10 Mbps; and (iii) 50/20 Mbps and Up to 100/Up to 20 Mbps. Note 2: There are separate offers for each of the 12/1 Mbps (Basic Bundled Offer), 12/1 Mbps (Non-Basic Bundled Offer), 25/5 Mbps, 25/10 Mbps, and 50/20 Mbps speed tiers on each relevant access technology, as well as a separate offer for the Up to 100/Up to 20 Mbps bandwidth profile. The calculations shown in the table below group each of the individual offers across their respective access technologies, since these have the same Bundled Price and Daily Combined Charge, and are within the same Bundled TC-4 Offer Group for which an Average Daily AVC Overage Charge is calculated. For example, the 12/1 Mbps (Basic Bundled Offer) item reflects the 12/1 Mbps (Basic Bundled Offer) on the FTTP, FTTB, FTTN, FTTC, and HFC access technologies.
C15: Bundled TC-4 Offer
C16: 12/1 Mbps (Basic Bundled Offer) | D16: 12/1 Mbps (Non-Basic Bundled Offer) | E16: 25/5 Mbps and 25/10 Mbps | F16: 50/20 and Up to 100/Up to 20 Mbps
B17: Average Combined Charge (1 December 2023 - 30 June 2024) | C17: =ROUND(SUM($E$24:$E$236)/COUNT($B$24:$B$236),2) -> 12.01 | D17: =ROUND(SUM($H$24:$H$236)/COUNT($B$24:$B$236),2) -> 30.9 | E17: =ROUND(SUM($K$24:$K$236)/COUNT($B$24:$B$236),2) -> 32.5 | F17: =ROUND(SUM($N$24:$N$236)/COUNT($B$24:$B$236),2) -> 51.16
B19: Calculation of the Daily Combined Charge (1 December 2023 - 30 June 2024)
C21: Bundled TC-4 Offer
C22: 12/1 Mbps (Basic Bundled Offer) | F22: 12/1 Mbps (Non-Basic Bundled Offer) | I22: 25/5 Mbps and 25/10 Mbps | L22: 50/20 Mbps and Up to 100/ Up to 20 Mbps
B23: Date | C23: Bundled Price | D23: Average Daily AVC Overage Charge | E23: Daily Combined Charge | F23: Bundled Price | G23: Average Daily AVC Overage Charge | H23: Daily Combined Charge | I23: Bundled Price | J23: Average Daily AVC Overage Charge | K23: Daily Combined Charge | L23: Bundled Price | M23: Average Daily AVC Overage Charge | N23: Daily Combined Charge
B24: 2023-12-01 | C24: 12 | D24: 0.01 | E24: =SUM(C24:D24) -> 12.01 | F24: 24.4 | G24: 6.19 | H24: =SUM(F24:G24) -> 30.59 | I24: 26 | J24: 6.19 | K24: =SUM(I24:J24) -> 32.19 | L24: 50 | M24: 1.05 | N24: =SUM(L24:M24) -> 51.05
B25: 2023-12-02 | C25: 12 | D25: 0.01 | E25: =SUM(C25:D25) -> 12.01 | F25: 24.4 | G25: 6.1 | H25: =SUM(F25:G25) -> 30.5 | I25: 26 | J25: 6.1 | K25: =SUM(I25:J25) -> 32.1 | L25: 50 | M25: 1.05 | N25: =SUM(L25:M25) -> 51.05
B26: 2023-12-03 | C26: 12 | D26: 0.01 | E26: 12.01 | F26: 24.4 | G26: 6.4 | H26: 30.8 | I26: 26 | J26: 6.4 | K26: 32.4 | L26: 50 | M26: 1.21 | N26: 51.21
B27: 2023-12-04 | C27: 12 | D27: 0.01 | E27: 12.01 | F27: 24.4 | G27: 6.18 | H27: 30.58 | I27: 26 | J27: 6.18 | K27: 32.18 | L27: 50 | M27: 1.06 | N27: 51.06
B28: 2023-12-05 | C28: 12 | D28: 0.01 | E28: 12.01 | F28: 24.4 | G28: 6.28 | H28: 30.68 | I28: 26 | J28: 6.28 | K28: 32.28 | L28: 50 | M28: 1.06 | N28: 51.06
B29: 2023-12-06 | C29: 12 | D29: 0.01 | E29: 12.01 | F29: 24.4 | G29: 6.25 | H29: 30.65 | I29: 26 | J29: 6.25 | K29: 32.25 | L29: 50 | M29: 1.09 | N29: 51.09
B30: 2023-12-07 | C30: 12 | D30: 0.01 | E30: 12.01 | F30: 24.4 | G30: 6.29 | H30: 30.69 | I30: 26 | J30: 6.29 | K30: 32.29 | L30: 50 | M30: 1.14 | N30: 51.14
B31: 2023-12-08 | C31: 12 | D31: 0.01 | E31: 12.01 | F31: 24.4 | G31: 6.02 | H31: 30.42 | I31: 26 | J31: 6.02 | K31: 32.02 | L31: 50 | M31: 1.06 | N31: 51.06
B32: 2023-12-09 | C32: 12 | D32: 0.01 | E32: 12.01 | F32: 24.4 | G32: 6.04 | H32: 30.44 | I32: 26 | J32: 6.04 | K32: 32.04 | L32: 50 | M32: 1.06 | N32: 51.06
B33: 2023-12-10 | C33: 12 | D33: 0.01 | E33: 12.01 | F33: 24.4 | G33: 6.56 | H33: 30.96 | I33: 26 | J33: 6.56 | K33: 32.56 | L33: 50 | M33: 1.17 | N33: 51.17
B34: 2023-12-11 | C34: 12 | D34: 0.01 | E34: 12.01 | F34: 24.4 | G34: 6.45 | H34: 30.85 | I34: 26 | J34: 6.45 | K34: 32.45 | L34: 50 | M34: 1.13 | N34: 51.13
B35: 2023-12-12 | C35: 12 | D35: 0.01 | E35: 12.01 | F35: 24.4 | G35: 6.33 | H35: 30.73 | I35: 26 | J35: 6.33 | K35: 32.33 | L35: 50 | M35: 1.11 | N35: 51.11
B36: 2023-12-13 | C36: 12 | D36: 0.01 | E36: 12.01 | F36: 24.4 | G36: 6.28 | H36: 30.68 | I36: 26 | J36: 6.28 | K36: 32.28 | L36: 50 | M36: 1.1 | N36: 51.1
B37: 2023-12-14 | C37: 12 | D37: 0.01 | E37: 12.01 | F37: 24.4 | G37: 6.25 | H37: 30.65 | I37: 26 | J37: 6.25 | K37: 32.25 | L37: 50 | M37: 1.08 | N37: 51.08
B38: 2023-12-15 | C38: 12 | D38: 0.01 | E38: 12.01 | F38: 24.4 | G38: 6.08 | H38: 30.48 | I38: 26 | J38: 6.08 | K38: 32.08 | L38: 50 | M38: 1.07 | N38: 51.07
B39: 2023-12-16 | C39: 12 | D39: 0.01 | E39: 12.01 | F39: 24.4 | G39: 5.94 | H39: 30.34 | I39: 26 | J39: 5.94 | K39: 31.94 | L39: 50 | M39: 1.04 | N39: 51.04
B40: 2023-12-17 | C40: 12 | D40: 0.01 | E40: 12.01 | F40: 24.4 | G40: 6.35 | H40: 30.75 | I40: 26 | J40: 6.35 | K40: 32.35 | L40: 50 | M40: 1.14 | N40: 51.14
B41: 2023-12-18 | C41: 12 | D41: 0.01 | E41: 12.01 | F41: 24.4 | G41: 6.47 | H41: 30.87 | I41: 26 | J41: 6.47 | K41: 32.47 | L41: 50 | M41: 1.14 | N41: 51.14
B42: 2023-12-19 | C42: 12 | D42: 0.01 | E42: 12.01 | F42: 24.4 | G42: 6.48 | H42: 30.88 | I42: 26 | J42: 6.48 | K42: 32.48 | L42: 50 | M42: 1.18 | N42: 51.18
B43: 2023-12-20 | C43: 12 | D43: 0.01 | E43: 12.01 | F43: 24.4 | G43: 6.25 | H43: 30.65 | I43: 26 | J43: 6.25 | K43: 32.25 | L43: 50 | M43: 1.11 | N43: 51.11
B44: 2023-12-21 | C44: 12 | D44: 0.01 | E44: 12.01 | F44: 24.4 | G44: 6.2 | H44: 30.6 | I44: 26 | J44: 6.2 | K44: 32.2 | L44: 50 | M44: 1.08 | N44: 51.08
B45: 2023-12-22 | C45: 12 | D45: 0.01 | E45: 12.01 | F45: 24.4 | G45: 5.92 | H45: 30.32 | I45: 26 | J45: 5.92 | K45: 31.92 | L45: 50 | M45: 1.02 | N45: 51.02
B46: 2023-12-23 | C46: 12 | D46: 0.01 | E46: 12.01 | F46: 24.4 | G46: 5.78 | H46: 30.18 | I46: 26 | J46: 5.78 | K46: 31.78 | L46: 50 | M46: 1.01 | N46: 51.01
B47: 2023-12-24 | C47: 12 | D47: 0.01 | E47: 12.01 | F47: 24.4 | G47: 5.37 | H47: 29.77 | I47: 26 | J47: 5.37 | K47: 31.37 | L47: 50 | M47: 0.93 | N47: 50.93
B48: 2023-12-25 | C48: 12 | D48: 0.01 | E48: 12.01 | F48: 24.4 | G48: 5.39 | H48: 29.79 | I48: 26 | J48: 5.39 | K48: 31.39 | L48: 50 | M48: 0.92 | N48: 50.92
B49: 2023-12-26 | C49: 12 | D49: 0.01 | E49: 12.01 | F49: 24.4 | G49: 6.35 | H49: 30.75 | I49: 26 | J49: 6.35 | K49: 32.35 | L49: 50 | M49: 1.12 | N49: 51.12
B50: 2023-12-27 | C50: 12 | D50: 0.01 | E50: 12.01 | F50: 24.4 | G50: 6.27 | H50: 30.67 | I50: 26 | J50: 6.27 | K50: 32.27 | L50: 50 | M50: 1.09 | N50: 51.09
B51: 2023-12-28 | C51: 12 | D51: 0.01 | E51: 12.01 | F51: 24.4 | G51: 6.26 | H51: 30.66 | I51: 26 | J51: 6.26 | K51: 32.26 | L51: 50 | M51: 1.07 | N51: 51.07
B52: 2023-12-29 | C52: 12 | D52: 0.01 | E52: 12.01 | F52: 24.4 | G52: 6.11 | H52: 30.51 | I52: 26 | J52: 6.11 | K52: 32.11 | L52: 50 | M52: 1.05 | N52: 51.05
B53: 2023-12-30 | C53: 12 | D53: 0.01 | E53: 12.01 | F53: 24.4 | G53: 6.32 | H53: 30.72 | I53: 26 | J53: 6.32 | K53: 32.32 | L53: 50 | M53: 1.1 | N53: 51.1
B54: 2023-12-31 | C54: 12 | D54: 0.01 | E54: 12.01 | F54: 24.4 | G54: 4.66 | H54: 29.06 | I54: 26 | J54: 4.66 | K54: 30.66 | L54: 50 | M54: 0.75 | N54: 50.75
B55: 2024-01-01 | C55: 12 | D55: 0.01 | E55: 12.01 | F55: 24.4 | G55: 6.71 | H55: 31.11 | I55: 26 | J55: 6.71 | K55: 32.71 | L55: 50 | M55: 1.18 | N55: 51.18
B56: 2024-01-02 | C56: 12 | D56: 0.01 | E56: 12.01 | F56: 24.4 | G56: 6.67 | H56: 31.07 | I56: 26 | J56: 6.67 | K56: 32.67 | L56: 50 | M56: 1.16 | N56: 51.16
B57: 2024-01-03 | C57: 12 | D57: 0.01 | E57: 12.01 | F57: 24.4 | G57: 6.51 | H57: 30.91 | I57: 26 | J57: 6.51 | K57: 32.51 | L57: 50 | M57: 1.13 | N57: 51.13
B58: 2024-01-04 | C58: 12 | D58: 0.01 | E58: 12.01 | F58: 24.4 | G58: 6.41 | H58: 30.81 | I58: 26 | J58: 6.41 | K58: 32.41 | L58: 50 | M58: 1.11 | N58: 51.11
B59: 2024-01-05 | C59: 12 | D59: 0.01 | E59: 12.01 | F59: 24.4 | G59: 6.36 | H59: 30.76 | I59: 26 | J59: 6.36 | K59: 32.36 | L59: 50 | M59: 1.09 | N59: 51.09
B60: 2024-01-06 | C60: 12 | D60: 0.01 | E60: 12.01 | F60: 24.4 | G60: 6.26 | H60: 30.66 | I60: 26 | J60: 6.26 | K60: 32.26 | L60: 50 | M60: 1.09 | N60: 51.09
B61: 2024-01-07 | C61: 12 | D61: 0.01 | E61: 12.01 | F61: 24.4 | G61: 6.8 | H61: 31.2 | I61: 26 | J61: 6.8 | K61: 32.8 | L61: 50 | M61: 1.2 | N61: 51.2
B62: 2024-01-08 | C62: 12 | D62: 0.01 | E62: 12.01 | F62: 24.4 | G62: 6.75 | H62: 31.15 | I62: 26 | J62: 6.75 | K62: 32.75 | L62: 50 | M62: 1.19 | N62: 51.19
B63: 2024-01-09 | C63: 12 | D63: 0.01 | E63: 12.01 | F63: 24.4 | G63: 6.54 | H63: 30.94 | I63: 26 | J63: 6.54 | K63: 32.54 | L63: 50 | M63: 1.14 | N63: 51.14
B64: 2024-01-10 | C64: 12 | D64: 0.01 | E64: 12.01 | F64: 24.4 | G64: 6.48 | H64: 30.88 | I64: 26 | J64: 6.48 | K64: 32.48 | L64: 50 | M64: 1.12 | N64: 51.12
B65: 2024-01-11 | C65: 12 | D65: 0.01 | E65: 12.01 | F65: 24.4 | G65: 6.44 | H65: 30.84 | I65: 26 | J65: 6.44 | K65: 32.44 | L65: 50 | M65: 1.11 | N65: 51.11
B66: 2024-01-12 | C66: 12 | D66: 0.01 | E66: 12.01 | F66: 24.4 | G66: 6.29 | H66: 30.69 | I66: 26 | J66: 6.29 | K66: 32.29 | L66: 50 | M66: 1.1 | N66: 51.1
B67: 2024-01-13 | C67: 12 | D67: 0.01 | E67: 12.01 | F67: 24.4 | G67: 6.45 | H67: 30.85 | I67: 26 | J67: 6.45 | K67: 32.45 | L67: 50 | M67: 1.13 | N67: 51.13
B68: 2024-01-14 | C68: 12 | D68: 0.01 | E68: 12.01 | F68: 24.4 | G68: 6.77 | H68: 31.17 | I68: 26 | J68: 6.77 | K68: 32.77 | L68: 50 | M68: 1.22 | N68: 51.22
B69: 2024-01-15 | C69: 12 | D69: 0.01 | E69: 12.01 | F69: 24.4 | G69: 6.74 | H69: 31.14 | I69: 26 | J69: 6.74 | K69: 32.74 | L69: 50 | M69: 1.19 | N69: 51.19
B70: 2024-01-16 | C70: 12 | D70: 0.01 | E70: 12.01 | F70: 24.4 | G70: 6.6 | H70: 31 | I70: 26 | J70: 6.6 | K70: 32.6 | L70: 50 | M70: 1.16 | N70: 51.16
B71: 2024-01-17 | C71: 12 | D71: 0.01 | E71: 12.01 | F71: 24.4 | G71: 6.55 | H71: 30.95 | I71: 26 | J71: 6.55 | K71: 32.55 | L71: 50 | M71: 1.15 | N71: 51.15
B72: 2024-01-18 | C72: 12 | D72: 0.01 | E72: 12.01 | F72: 24.4 | G72: 6.47 | H72: 30.87 | I72: 26 | J72: 6.47 | K72: 32.47 | L72: 50 | M72: 1.12 | N72: 51.12
B73: 2024-01-19 | C73: 12 | D73: 0.01 | E73: 12.01 | F73: 24.4 | G73: 6.21 | H73: 30.61 | I73: 26 | J73: 6.21 | K73: 32.21 | L73: 50 | M73: 1.1 | N73: 51.1
B74: 2024-01-20 | C74: 12 | D74: 0.01 | E74: 12.01 | F74: 24.4 | G74: 6.18 | H74: 30.58 | I74: 26 | J74: 6.18 | K74: 32.18 | L74: 50 | M74: 1.09 | N74: 51.09
B75: 2024-01-21 | C75: 12 | D75: 0.01 | E75: 12.01 | F75: 24.4 | G75: 6.47 | H75: 30.87 | I75: 26 | J75: 6.47 | K75: 32.47 | L75: 50 | M75: 1.15 | N75: 51.15
B76: 2024-01-22 | C76: 12 | D76: 0.01 | E76: 12.01 | F76: 24.4 | G76: 6.65 | H76: 31.05 | I76: 26 | J76: 6.65 | K76: 32.65 | L76: 50 | M76: 1.17 | N76: 51.17
B77: 2024-01-23 | C77: 12 | D77: 0.01 | E77: 12.01 | F77: 24.4 | G77: 6.56 | H77: 30.96 | I77: 26 | J77: 6.56 | K77: 32.56 | L77: 50 | M77: 1.2 | N77: 51.2
B78: 2024-01-24 | C78: 12 | D78: 0.01 | E78: 12.01 | F78: 24.4 | G78: 6.45 | H78: 30.85 | I78: 26 | J78: 6.45 | K78: 32.45 | L78: 50 | M78: 1.15 | N78: 51.15
B79: 2024-01-25 | C79: 12 | D79: 0.01 | E79: 12.01 | F79: 24.4 | G79: 6.35 | H79: 30.75 | I79: 26 | J79: 6.35 | K79: 32.35 | L79: 50 | M79: 1.13 | N79: 51.13
B80: 2024-01-26 | C80: 12 | D80: 0.01 | E80: 12.01 | F80: 24.4 | G80: 6.14 | H80: 30.54 | I80: 26 | J80: 6.14 | K80: 32.14 | L80: 50 | M80: 1.09 | N80: 51.09
B81: 2024-01-27 | C81: 12 | D81: 0.01 | E81: 12.01 | F81: 24.4 | G81: 6.23 | H81: 30.63 | I81: 26 | J81: 6.23 | K81: 32.23 | L81: 50 | M81: 1.12 | N81: 51.12
B82: 2024-01-28 | C82: 12 | D82: 0.01 | E82: 12.01 | F82: 24.4 | G82: 6.57 | H82: 30.97 | I82: 26 | J82: 6.57 | K82: 32.57 | L82: 50 | M82: 1.2 | N82: 51.2
B83: 2024-01-29 | C83: 12 | D83: 0.01 | E83: 12.01 | F83: 24.4 | G83: 6.2 | H83: 30.6 | I83: 26 | J83: 6.2 | K83: 32.2 | L83: 50 | M83: 1.09 | N83: 51.09
B84: 2024-01-30 | C84: 12 | D84: 0.01 | E84: 12.01 | F84: 24.4 | G84: 6.27 | H84: 30.67 | I84: 26 | J84: 6.27 | K84: 32.27 | L84: 50 | M84: 1.08 | N84: 51.08
B85: 2024-01-31 | C85: 12 | D85: 0.01 | E85: 12.01 | F85: 24.4 | G85: 6.2 | H85: 30.6 | I85: 26 | J85: 6.2 | K85: 32.2 | L85: 50 | M85: 1.07 | N85: 51.07
B86: 2024-02-01 | C86: 12 | D86: 0.01 | E86: 12.01 | F86: 24.4 | G86: 6.11 | H86: 30.51 | I86: 26 | J86: 6.11 | K86: 32.11 | L86: 50 | M86: 1.05 | N86: 51.05
B87: 2024-02-02 | C87: 12 | D87: 0.01 | E87: 12.01 | F87: 24.4 | G87: 6.45 | H87: 30.85 | I87: 26 | J87: 6.45 | K87: 32.45 | L87: 50 | M87: 1.14 | N87: 51.14
B88: 2024-02-03 | C88: 12 | D88: 0.01 | E88: 12.01 | F88: 24.4 | G88: 6.27 | H88: 30.67 | I88: 26 | J88: 6.27 | K88: 32.27 | L88: 50 | M88: 1.11 | N88: 51.11
B89: 2024-02-04 | C89: 12 | D89: 0.01 | E89: =SUM(C89:D89) -> 12.01 | F89: 24.4 | G89: 6.51 | H89: =SUM(F89:G89) -> 30.91 | I89: 26 | J89: 6.51 | K89: =SUM(I89:J89) -> 32.51 | L89: 50 | M89: 1.17 | N89: =SUM(L89:M89) -> 51.17
B90: 2024-02-05 | C90: 12 | D90: 0.01 | E90: 12.01 | F90: 24.4 | G90: 6.17 | H90: 30.57 | I90: 26 | J90: 6.17 | K90: 32.17 | L90: 50 | M90: 1.07 | N90: 51.07
B91: 2024-02-06 | C91: 12 | D91: 0.01 | E91: 12.01 | F91: 24.4 | G91: 6.27 | H91: 30.67 | I91: 26 | J91: 6.27 | K91: 32.27 | L91: 50 | M91: 1.07 | N91: 51.07
B92: 2024-02-07 | C92: 12 | D92: 0.01 | E92: 12.01 | F92: 24.4 | G92: 6.28 | H92: 30.68 | I92: 26 | J92: 6.28 | K92: 32.28 | L92: 50 | M92: 1.14 | N92: 51.14
B93: 2024-02-08 | C93: 12 | D93: 0.01 | E93: 12.01 | F93: 24.4 | G93: 6.23 | H93: 30.63 | I93: 26 | J93: 6.23 | K93: 32.23 | L93: 50 | M93: 1.08 | N93: 51.08
B94: 2024-02-09 | C94: 12 | D94: 0.01 | E94: 12.01 | F94: 24.4 | G94: 6.46 | H94: 30.86 | I94: 26 | J94: 6.46 | K94: 32.46 | L94: 50 | M94: 1.15 | N94: 51.15
B95: 2024-02-10 | C95: 12 | D95: 0.01 | E95: 12.01 | F95: 24.4 | G95: 6.23 | H95: 30.63 | I95: 26 | J95: 6.23 | K95: 32.23 | L95: 50 | M95: 1.1 | N95: 51.1
B96: 2024-02-11 | C96: 12 | D96: 0.01 | E96: 12.01 | F96: 24.4 | G96: 6.45 | H96: 30.85 | I96: 26 | J96: 6.45 | K96: 32.45 | L96: 50 | M96: 1.15 | N96: 51.15
B97: 2024-02-12 | C97: 12 | D97: 0.01 | E97: 12.01 | F97: 24.4 | G97: 6.09 | H97: 30.49 | I97: 26 | J97: 6.09 | K97: 32.09 | L97: 50 | M97: 1.05 | N97: 51.05
B98: 2024-02-13 | C98: 12 | D98: 0.01 | E98: 12.01 | F98: 24.4 | G98: 6.13 | H98: 30.53 | I98: 26 | J98: 6.13 | K98: 32.13 | L98: 50 | M98: 1.05 | N98: 51.05
B99: 2024-02-14 | C99: 12 | D99: 0.01 | E99: 12.01 | F99: 24.4 | G99: 5.89 | H99: 30.29 | I99: 26 | J99: 5.89 | K99: 31.89 | L99: 50 | M99: 1.01 | N99: 51.01
B100: 2024-02-15 | C100: 12 | D100: 0.01 | E100: 12.01 | F100: 24.4 | G100: 6.33 | H100: 30.73 | I100: 26 | J100: 6.33 | K100: 32.33 | L100: 50 | M100: 1.1 | N100: 51.1
B101: 2024-02-16 | C101: 12 | D101: 0.01 | E101: 12.01 | F101: 24.4 | G101: 6.42 | H101: 30.82 | I101: 26 | J101: 6.42 | K101: 32.42 | L101: 50 | M101: 1.15 | N101: 51.15
B102: 2024-02-17 | C102: 12 | D102: 0.01 | E102: 12.01 | F102: 24.4 | G102: 6.4 | H102: 30.8 | I102: 26 | J102: 6.4 | K102: 32.4 | L102: 50 | M102: 1.13 | N102: 51.13
B103: 2024-02-18 | C103: 12 | D103: 0.01 | E103: 12.01 | F103: 24.4 | G103: 6.42 | H103: 30.82 | I103: 26 | J103: 6.42 | K103: 32.42 | L103: 50 | M103: 1.15 | N103: 51.15
B104: 2024-02-19 | C104: 12 | D104: 0.01 | E104: 12.01 | F104: 24.4 | G104: 6.23 | H104: 30.63 | I104: 26 | J104: 6.23 | K104: 32.23 | L104: 50 | M104: 1.08 | N104: 51.08
B105: 2024-02-20 | C105: 12 | D105: 0.01 | E105: 12.01 | F105: 24.4 | G105: 6.17 | H105: 30.57 | I105: 26 | J105: 6.17 | K105: 32.17 | L105: 50 | M105: 1.06 | N105: 51.06
B106: 2024-02-21 | C106: 12 | D106: 0.01 | E106: 12.01 | F106: 24.4 | G106: 6.22 | H106: 30.62 | I106: 26 | J106: 6.22 | K106: 32.22 | L106: 50 | M106: 1.08 | N106: 51.08
B107: 2024-02-22 | C107: 12 | D107: 0.01 | E107: 12.01 | F107: 24.4 | G107: 6.43 | H107: 30.83 | I107: 26 | J107: 6.43 | K107: 32.43 | L107: 50 | M107: 1.16 | N107: 51.16
B108: 2024-02-23 | C108: 12 | D108: 0.01 | E108: 12.01 | F108: 24.4 | G108: 6.67 | H108: 31.07 | I108: 26 | J108: 6.67 | K108: 32.67 | L108: 50 | M108: 1.2 | N108: 51.2
B109: 2024-02-24 | C109: 12 | D109: 0.01 | E109: 12.01 | F109: 24.4 | G109: 6.58 | H109: 30.98 | I109: 26 | J109: 6.58 | K109: 32.58 | L109: 50 | M109: 1.18 | N109: 51.18
B110: 2024-02-25 | C110: 12 | D110: 0.01 | E110: 12.01 | F110: 24.4 | G110: 6.52 | H110: 30.92 | I110: 26 | J110: 6.52 | K110: 32.52 | L110: 50 | M110: 1.18 | N110: 51.18
B111: 2024-02-26 | C111: 12 | D111: 0.01 | E111: 12.01 | F111: 24.4 | G111: 6.39 | H111: 30.79 | I111: 26 | J111: 6.39 | K111: 32.39 | L111: 50 | M111: 1.11 | N111: 51.11
B112: 2024-02-27 | C112: 12 | D112: 0.01 | E112: 12.01 | F112: 24.4 | G112: 6.37 | H112: 30.77 | I112: 26 | J112: 6.37 | K112: 32.37 | L112: 50 | M112: 1.1 | N112: 51.1
B113: 2024-02-28 | C113: 12 | D113: 0.01 | E113: 12.01 | F113: 24.4 | G113: 6.18 | H113: 30.58 | I113: 26 | J113: 6.18 | K113: 32.18 | L113: 50 | M113: 1.08 | N113: 51.08
B114: 2024-02-29 | C114: 12 | D114: 0.01 | E114: 12.01 | F114: 24.4 | G114: 6.32 | H114: 30.72 | I114: 26 | J114: 6.32 | K114: 32.32 | L114: 50 | M114: 1.09 | N114: 51.09
B115: 2024-03-01 | C115: 12 | D115: 0.01 | E115: 12.01 | F115: 24.4 | G115: 6.42 | H115: 30.82 | I115: 26 | J115: 6.42 | K115: 32.42 | L115: 50 | M115: 1.15 | N115: 51.15
B116: 2024-03-02 | C116: 12 | D116: 0.01 | E116: 12.01 | F116: 24.4 | G116: 6.46 | H116: 30.86 | I116: 26 | J116: 6.46 | K116: 32.46 | L116: 50 | M116: 1.14 | N116: 51.14
B117: 2024-03-03 | C117: 12 | D117: 0.01 | E117: 12.01 | F117: 24.4 | G117: 6.53 | H117: 30.93 | I117: 26 | J117: 6.53 | K117: 32.53 | L117: 50 | M117: 1.17 | N117: 51.17
B118: 2024-03-04 | C118: 12 | D118: 0.01 | E118: 12.01 | F118: 24.4 | G118: 6.37 | H118: 30.77 | I118: 26 | J118: 6.37 | K118: 32.37 | L118: 50 | M118: 1.11 | N118: 51.11
B119: 2024-03-05 | C119: 12 | D119: 0.01 | E119: 12.01 | F119: 24.4 | G119: 6.27 | H119: 30.67 | I119: 26 | J119: 6.27 | K119: 32.27 | L119: 50 | M119: 1.08 | N119: 51.08
B120: 2024-03-06 | C120: 12 | D120: 0.01 | E120: 12.01 | F120: 24.4 | G120: 6.18 | H120: 30.58 | I120: 26 | J120: 6.18 | K120: 32.18 | L120: 50 | M120: 1.08 | N120: 51.08
B121: 2024-03-07 | C121: 12 | D121: 0.01 | E121: 12.01 | F121: 24.4 | G121: 6.45 | H121: 30.85 | I121: 26 | J121: 6.45 | K121: 32.45 | L121: 50 | M121: 1.15 | N121: 51.15
B122: 2024-03-08 | C122: 12 | D122: 0.01 | E122: 12.01 | F122: 24.4 | G122: 6.54 | H122: 30.94 | I122: 26 | J122: 6.54 | K122: 32.54 | L122: 50 | M122: 1.25 | N122: 51.25
B123: 2024-03-09 | C123: 12 | D123: 0.01 | E123: 12.01 | F123: 24.4 | G123: 6.51 | H123: 30.91 | I123: 26 | J123: 6.51 | K123: 32.51 | L123: 50 | M123: 1.17 | N123: 51.17
B124: 2024-03-10 | C124: 12 | D124: 0.01 | E124: 12.01 | F124: 24.4 | G124: 6.34 | H124: 30.74 | I124: 26 | J124: 6.34 | K124: 32.34 | L124: 50 | M124: 1.13 | N124: 51.13
B125: 2024-03-11 | C125: 12 | D125: 0.01 | E125: 12.01 | F125: 24.4 | G125: 6.37 | H125: 30.77 | I125: 26 | J125: 6.37 | K125: 32.37 | L125: 50 | M125: 1.11 | N125: 51.11
B126: 2024-03-12 | C126: 12 | D126: 0.01 | E126: 12.01 | F126: 24.4 | G126: 6.36 | H126: 30.76 | I126: 26 | J126: 6.36 | K126: 32.36 | L126: 50 | M126: 1.09 | N126: 51.09
B127: 2024-03-13 | C127: 12 | D127: 0.01 | E127: 12.01 | F127: 24.4 | G127: 6.29 | H127: 30.69 | I127: 26 | J127: 6.29 | K127: 32.29 | L127: 50 | M127: 1.11 | N127: 51.11
B128: 2024-03-14 | C128: 12 | D128: 0.01 | E128: 12.01 | F128: 24.4 | G128: 6.51 | H128: 30.91 | I128: 26 | J128: 6.51 | K128: 32.51 | L128: 50 | M128: 1.17 | N128: 51.17
B129: 2024-03-15 | C129: 12 | D129: 0.01 | E129: 12.01 | F129: 24.4 | G129: 6.54 | H129: 30.94 | I129: 26 | J129: 6.54 | K129: 32.54 | L129: 50 | M129: 1.2 | N129: 51.2
B130: 2024-03-16 | C130: 12 | D130: 0.01 | E130: 12.01 | F130: 24.4 | G130: 6.69 | H130: 31.09 | I130: 26 | J130: 6.69 | K130: 32.69 | L130: 50 | M130: 1.21 | N130: 51.21
B131: 2024-03-17 | C131: 12 | D131: 0.01 | E131: 12.01 | F131: 24.4 | G131: 6.63 | H131: 31.03 | I131: 26 | J131: 6.63 | K131: 32.63 | L131: 50 | M131: 1.21 | N131: 51.21
B132: 2024-03-18 | C132: 12 | D132: 0.01 | E132: 12.01 | F132: 24.4 | G132: 6.4 | H132: 30.8 | I132: 26 | J132: 6.4 | K132: 32.4 | L132: 50 | M132: 1.11 | N132: 51.11
B133: 2024-03-19 | C133: 12 | D133: 0.01 | E133: 12.01 | F133: 24.4 | G133: 6.47 | H133: 30.87 | I133: 26 | J133: 6.47 | K133: 32.47 | L133: 50 | M133: 1.16 | N133: 51.16
B134: 2024-03-20 | C134: 12 | D134: 0.01 | E134: 12.01 | F134: 24.4 | G134: 6.22 | H134: 30.62 | I134: 26 | J134: 6.22 | K134: 32.22 | L134: 50 | M134: 1.08 | N134: 51.08
B135: 2024-03-21 | C135: 12 | D135: 0.01 | E135: 12.01 | F135: 24.4 | G135: 6.53 | H135: 30.93 | I135: 26 | J135: 6.53 | K135: 32.53 | L135: 50 | M135: 1.17 | N135: 51.17
B136: 2024-03-22 | C136: 12 | D136: 0.01 | E136: 12.01 | F136: 24.4 | G136: 6.6 | H136: 31 | I136: 26 | J136: 6.6 | K136: 32.6 | L136: 50 | M136: 1.2 | N136: 51.2
B137: 2024-03-23 | C137: 12 | D137: 0.01 | E137: 12.01 | F137: 24.4 | G137: 6.77 | H137: 31.17 | I137: 26 | J137: 6.77 | K137: 32.77 | L137: 50 | M137: 1.22 | N137: 51.22
B138: 2024-03-24 | C138: 12 | D138: 0.01 | E138: 12.01 | F138: 24.4 | G138: 6.61 | H138: 31.01 | I138: 26 | J138: 6.61 | K138: 32.61 | L138: 50 | M138: 1.21 | N138: 51.21
B139: 2024-03-25 | C139: 12 | D139: 0.01 | E139: 12.01 | F139: 24.4 | G139: 6.27 | H139: 30.67 | I139: 26 | J139: 6.27 | K139: 32.27 | L139: 50 | M139: 1.1 | N139: 51.1
B140: 2024-03-26 | C140: 12 | D140: 0.01 | E140: 12.01 | F140: 24.4 | G140: 6.6 | H140: 31 | I140: 26 | J140: 6.6 | K140: 32.6 | L140: 50 | M140: 1.18 | N140: 51.18
B141: 2024-03-27 | C141: 12 | D141: 0.01 | E141: 12.01 | F141: 24.4 | G141: 6.44 | H141: 30.84 | I141: 26 | J141: 6.44 | K141: 32.44 | L141: 50 | M141: 1.11 | N141: 51.11
B142: 2024-03-28 | C142: 12 | D142: 0.01 | E142: 12.01 | F142: 24.4 | G142: 6.41 | H142: 30.81 | I142: 26 | J142: 6.41 | K142: 32.41 | L142: 50 | M142: 1.16 | N142: 51.16
B143: 2024-03-29 | C143: 12 | D143: 0.01 | E143: 12.01 | F143: 24.4 | G143: 6.7 | H143: 31.1 | I143: 26 | J143: 6.7 | K143: 32.7 | L143: 50 | M143: 1.2 | N143: 51.2
B144: 2024-03-30 | C144: 12 | D144: 0.01 | E144: 12.01 | F144: 24.4 | G144: 6.45 | H144: 30.85 | I144: 26 | J144: 6.45 | K144: 32.45 | L144: 50 | M144: 1.13 | N144: 51.13
B145: 2024-03-31 | C145: 12 | D145: 0.01 | E145: 12.01 | F145: 24.4 | G145: 6.43 | H145: 30.83 | I145: 26 | J145: 6.43 | K145: 32.43 | L145: 50 | M145: 1.13 | N145: 51.13
B146: 2024-04-01 | C146: 12 | D146: 0.01 | E146: 12.01 | F146: 24.4 | G146: 6.83 | H146: 31.23 | I146: 26 | J146: 6.83 | K146: 32.83 | L146: 50 | M146: 1.23 | N146: 51.23
B147: 2024-04-02 | C147: 12 | D147: 0.01 | E147: 12.01 | F147: 24.4 | G147: 6.87 | H147: 31.27 | I147: 26 | J147: 6.87 | K147: 32.87 | L147: 50 | M147: 1.2 | N147: 51.2
B148: 2024-04-03 | C148: 12 | D148: 0.01 | E148: 12.01 | F148: 24.4 | G148: 6.64 | H148: 31.04 | I148: 26 | J148: 6.64 | K148: 32.64 | L148: 50 | M148: 1.16 | N148: 51.16
B149: 2024-04-04 | C149: 12 | D149: 0.01 | E149: 12.01 | F149: 24.4 | G149: 6.7 | H149: 31.1 | I149: 26 | J149: 6.7 | K149: 32.7 | L149: 50 | M149: 1.21 | N149: 51.21
B150: 2024-04-05 | C150: 12 | D150: 0.01 | E150: 12.01 | F150: 24.4 | G150: 6.9 | H150: 31.3 | I150: 26 | J150: 6.9 | K150: 32.9 | L150: 50 | M150: 1.26 | N150: 51.26
B151: 2024-04-06 | C151: 12 | D151: 0.01 | E151: 12.01 | F151: 24.4 | G151: 6.94 | H151: 31.34 | I151: 26 | J151: 6.94 | K151: 32.94 | L151: 50 | M151: 1.27 | N151: 51.27
B152: 2024-04-07 | C152: 12 | D152: 0.01 | E152: 12.01 | F152: 24.4 | G152: 6.98 | H152: 31.38 | I152: 26 | J152: 6.98 | K152: 32.98 | L152: 50 | M152: 1.31 | N152: 51.31
B153: 2024-04-08 | C153: 12 | D153: 0.01 | E153: =SUM(C153:D153) -> 12.01 | F153: 24.4 | G153: 6.66 | H153: =SUM(F153:G153) -> 31.06 | I153: 26 | J153: 6.66 | K153: =SUM(I153:J153) -> 32.66 | L153: 50 | M153: 1.2 | N153: =SUM(L153:M153) -> 51.2
B154: 2024-04-09 | C154: 12 | D154: 0.01 | E154: 12.01 | F154: 24.4 | G154: 6.96 | H154: 31.36 | I154: 26 | J154: 6.96 | K154: 32.96 | L154: 50 | M154: 1.28 | N154: 51.28
B155: 2024-04-10 | C155: 12 | D155: 0.01 | E155: 12.01 | F155: 24.4 | G155: 6.77 | H155: 31.17 | I155: 26 | J155: 6.77 | K155: 32.77 | L155: 50 | M155: 1.21 | N155: 51.21
B156: 2024-04-11 | C156: 12 | D156: 0.01 | E156: 12.01 | F156: 24.4 | G156: 6.73 | H156: 31.13 | I156: 26 | J156: 6.73 | K156: 32.73 | L156: 50 | M156: 1.23 | N156: 51.23
B157: 2024-04-12 | C157: 12 | D157: 0.01 | E157: 12.01 | F157: 24.4 | G157: 6.72 | H157: 31.12 | I157: 26 | J157: 6.72 | K157: 32.72 | L157: 50 | M157: 1.25 | N157: 51.25
B158: 2024-04-13 | C158: 12 | D158: 0.01 | E158: 12.01 | F158: 24.4 | G158: 6.86 | H158: 31.26 | I158: 26 | J158: 6.86 | K158: 32.86 | L158: 50 | M158: 1.27 | N158: 51.27
B159: 2024-04-14 | C159: 12 | D159: 0.01 | E159: 12.01 | F159: 24.4 | G159: 6.94 | H159: 31.34 | I159: 26 | J159: 6.94 | K159: 32.94 | L159: 50 | M159: 1.3 | N159: 51.3
B160: 2024-04-15 | C160: 12 | D160: 0.01 | E160: 12.01 | F160: 24.4 | G160: 6.6 | H160: 31 | I160: 26 | J160: 6.6 | K160: 32.6 | L160: 50 | M160: 1.19 | N160: 51.19
B161: 2024-04-16 | C161: 12 | D161: 0.01 | E161: 12.01 | F161: 24.4 | G161: 6.56 | H161: 30.96 | I161: 26 | J161: 6.56 | K161: 32.56 | L161: 50 | M161: 1.17 | N161: 51.17
B162: 2024-04-17 | C162: 12 | D162: 0.01 | E162: 12.01 | F162: 24.4 | G162: 6.54 | H162: 30.94 | I162: 26 | J162: 6.54 | K162: 32.54 | L162: 50 | M162: 1.16 | N162: 51.16
B163: 2024-04-18 | C163: 12 | D163: 0.01 | E163: 12.01 | F163: 24.4 | G163: 6.61 | H163: 31.01 | I163: 26 | J163: 6.61 | K163: 32.61 | L163: 50 | M163: 1.2 | N163: 51.2
B164: 2024-04-19 | C164: 12 | D164: 0.01 | E164: 12.01 | F164: 24.4 | G164: 6.64 | H164: 31.04 | I164: 26 | J164: 6.64 | K164: 32.64 | L164: 50 | M164: 1.22 | N164: 51.22
B165: 2024-04-20 | C165: 12 | D165: 0.01 | E165: 12.01 | F165: 24.4 | G165: 6.87 | H165: 31.27 | I165: 26 | J165: 6.87 | K165: 32.87 | L165: 50 | M165: 1.28 | N165: 51.28
B166: 2024-04-21 | C166: 12 | D166: 0.01 | E166: 12.01 | F166: 24.4 | G166: 6.81 | H166: 31.21 | I166: 26 | J166: 6.81 | K166: 32.81 | L166: 50 | M166: 1.27 | N166: 51.27
B167: 2024-04-22 | C167: 12 | D167: 0.01 | E167: 12.01 | F167: 24.4 | G167: 6.47 | H167: 30.87 | I167: 26 | J167: 6.47 | K167: 32.47 | L167: 50 | M167: 1.16 | N167: 51.16
B168: 2024-04-23 | C168: 12 | D168: 0.01 | E168: 12.01 | F168: 24.4 | G168: 6.53 | H168: 30.93 | I168: 26 | J168: 6.53 | K168: 32.53 | L168: 50 | M168: 1.2 | N168: 51.2
B169: 2024-04-24 | C169: 12 | D169: 0.01 | E169: 12.01 | F169: 24.4 | G169: 6.59 | H169: 30.99 | I169: 26 | J169: 6.59 | K169: 32.59 | L169: 50 | M169: 1.2 | N169: 51.2
B170: 2024-04-25 | C170: 12 | D170: 0.01 | E170: 12.01 | F170: 24.4 | G170: 6.94 | H170: 31.34 | I170: 26 | J170: 6.94 | K170: 32.94 | L170: 50 | M170: 1.28 | N170: 51.28
B171: 2024-04-26 | C171: 12 | D171: 0.01 | E171: 12.01 | F171: 24.4 | G171: 6.64 | H171: 31.04 | I171: 26 | J171: 6.64 | K171: 32.64 | L171: 50 | M171: 1.22 | N171: 51.22
B172: 2024-04-27 | C172: 12 | D172: 0.01 | E172: 12.01 | F172: 24.4 | G172: 6.93 | H172: 31.33 | I172: 26 | J172: 6.93 | K172: 32.93 | L172: 50 | M172: 1.27 | N172: 51.27
B173: 2024-04-28 | C173: 12 | D173: 0.01 | E173: 12.01 | F173: 24.4 | G173: 6.83 | H173: 31.23 | I173: 26 | J173: 6.83 | K173: 32.83 | L173: 50 | M173: 1.27 | N173: 51.27
B174: 2024-04-29 | C174: 12 | D174: 0.01 | E174: 12.01 | F174: 24.4 | G174: 6.53 | H174: 30.93 | I174: 26 | J174: 6.53 | K174: 32.53 | L174: 50 | M174: 1.17 | N174: 51.17
B175: 2024-04-30 | C175: 12 | D175: 0.01 | E175: 12.01 | F175: 24.4 | G175: 6.49 | H175: 30.89 | I175: 26 | J175: 6.49 | K175: 32.49 | L175: 50 | M175: 1.15 | N175: 51.15
B176: 2024-05-01 | C176: 12 | D176: 0.01 | E176: 12.01 | F176: 24.4 | G176: 6.47 | H176: 30.87 | I176: 26 | J176: 6.47 | K176: 32.47 | L176: 50 | M176: 1.14 | N176: 51.14
B177: 2024-05-02 | C177: 12 | D177: 0.01 | E177: 12.01 | F177: 24.4 | G177: 6.61 | H177: 31.01 | I177: 26 | J177: 6.61 | K177: 32.61 | L177: 50 | M177: 1.2 | N177: 51.2
B178: 2024-05-03 | C178: 12 | D178: 0.01 | E178: 12.01 | F178: 24.4 | G178: 6.7 | H178: 31.1 | I178: 26 | J178: 6.7 | K178: 32.7 | L178: 50 | M178: 1.27 | N178: 51.27
B179: 2024-05-04 | C179: 12 | D179: 0.01 | E179: 12.01 | F179: 24.4 | G179: 6.96 | H179: 31.36 | I179: 26 | J179: 6.96 | K179: 32.96 | L179: 50 | M179: 1.3 | N179: 51.3
B180: 2024-05-05 | C180: 12 | D180: 0.01 | E180: 12.01 | F180: 24.4 | G180: 6.92 | H180: 31.32 | I180: 26 | J180: 6.92 | K180: 32.92 | L180: 50 | M180: 1.29 | N180: 51.29
B181: 2024-05-06 | C181: 12 | D181: 0.01 | E181: 12.01 | F181: 24.4 | G181: 6.64 | H181: 31.04 | I181: 26 | J181: 6.64 | K181: 32.64 | L181: 50 | M181: 1.21 | N181: 51.21
B182: 2024-05-07 | C182: 12 | D182: 0.01 | E182: 12.01 | F182: 24.4 | G182: 6.53 | H182: 30.93 | I182: 26 | J182: 6.53 | K182: 32.53 | L182: 50 | M182: 1.18 | N182: 51.18
B183: 2024-05-08 | C183: 12 | D183: 0.01 | E183: 12.01 | F183: 24.4 | G183: 6.53 | H183: 30.93 | I183: 26 | J183: 6.53 | K183: 32.53 | L183: 50 | M183: 1.15 | N183: 51.15
B184: 2024-05-09 | C184: 12 | D184: 0.01 | E184: 12.01 | F184: 24.4 | G184: 6.69 | H184: 31.09 | I184: 26 | J184: 6.69 | K184: 32.69 | L184: 50 | M184: 1.21 | N184: 51.21
B185: 2024-05-10 | C185: 12 | D185: 0.01 | E185: 12.01 | F185: 24.4 | G185: 6.81 | H185: 31.21 | I185: 26 | J185: 6.81 | K185: 32.81 | L185: 50 | M185: 1.28 | N185: 51.28
B186: 2024-05-11 | C186: 12 | D186: 0.01 | E186: 12.01 | F186: 24.4 | G186: 6.98 | H186: 31.38 | I186: 26 | J186: 6.98 | K186: 32.98 | L186: 50 | M186: 1.3 | N186: 51.3
B187: 2024-05-12 | C187: 12 | D187: 0.01 | E187: 12.01 | F187: 24.4 | G187: 6.63 | H187: 31.03 | I187: 26 | J187: 6.63 | K187: 32.63 | L187: 50 | M187: 1.22 | N187: 51.22
B188: 2024-05-13 | C188: 12 | D188: 0.01 | E188: 12.01 | F188: 24.4 | G188: 6.47 | H188: 30.87 | I188: 26 | J188: 6.47 | K188: 32.47 | L188: 50 | M188: 1.16 | N188: 51.16
B189: 2024-05-14 | C189: 12 | D189: 0.01 | E189: 12.01 | F189: 24.4 | G189: 6.44 | H189: 30.84 | I189: 26 | J189: 6.44 | K189: 32.44 | L189: 50 | M189: 1.15 | N189: 51.15
B190: 2024-05-15 | C190: 12 | D190: 0.01 | E190: 12.01 | F190: 24.4 | G190: 6.53 | H190: 30.93 | I190: 26 | J190: 6.53 | K190: 32.53 | L190: 50 | M190: 1.16 | N190: 51.16
B191: 2024-05-16 | C191: 12 | D191: 0.01 | E191: 12.01 | F191: 24.4 | G191: 6.63 | H191: 31.03 | I191: 26 | J191: 6.63 | K191: 32.63 | L191: 50 | M191: 1.19 | N191: 51.19
B192: 2024-05-17 | C192: 12 | D192: 0.01 | E192: 12.01 | F192: 24.4 | G192: 6.78 | H192: 31.18 | I192: 26 | J192: 6.78 | K192: 32.78 | L192: 50 | M192: 1.26 | N192: 51.26
B193: 2024-05-18 | C193: 12 | D193: 0.01 | E193: 12.01 | F193: 24.4 | G193: 6.93 | H193: 31.33 | I193: 26 | J193: 6.93 | K193: 32.93 | L193: 50 | M193: 1.28 | N193: 51.28
B194: 2024-05-19 | C194: 12 | D194: 0.01 | E194: 12.01 | F194: 24.4 | G194: 7.1 | H194: 31.5 | I194: 26 | J194: 7.1 | K194: 33.1 | L194: 50 | M194: 1.35 | N194: 51.35
B195: 2024-05-20 | C195: 12 | D195: 0.01 | E195: 12.01 | F195: 24.4 | G195: 6.51 | H195: 30.91 | I195: 26 | J195: 6.51 | K195: 32.51 | L195: 50 | M195: 1.17 | N195: 51.17
B196: 2024-05-21 | C196: 12 | D196: 0.01 | E196: 12.01 | F196: 24.4 | G196: 6.46 | H196: 30.86 | I196: 26 | J196: 6.46 | K196: 32.46 | L196: 50 | M196: 1.15 | N196: 51.15
B197: 2024-05-22 | C197: 12 | D197: 0.01 | E197: 12.01 | F197: 24.4 | G197: 6.45 | H197: 30.85 | I197: 26 | J197: 6.45 | K197: 32.45 | L197: 50 | M197: 1.14 | N197: 51.14
B198: 2024-05-23 | C198: 12 | D198: 0.01 | E198: 12.01 | F198: 24.4 | G198: 6.67 | H198: 31.07 | I198: 26 | J198: 6.67 | K198: 32.67 | L198: 50 | M198: 1.21 | N198: 51.21
B199: 2024-05-24 | C199: 12 | D199: 0.01 | E199: 12.01 | F199: 24.4 | G199: 6.76 | H199: 31.16 | I199: 26 | J199: 6.76 | K199: 32.76 | L199: 50 | M199: 1.29 | N199: 51.29
B200: 2024-05-25 | C200: 12 | D200: 0.01 | E200: 12.01 | F200: 24.4 | G200: 6.92 | H200: 31.32 | I200: 26 | J200: 6.92 | K200: 32.92 | L200: 50 | M200: 1.28 | N200: 51.28
B201: 2024-05-26 | C201: 12 | D201: 0.01 | E201: 12.01 | F201: 24.4 | G201: 6.83 | H201: 31.23 | I201: 26 | J201: 6.83 | K201: 32.83 | L201: 50 | M201: 1.26 | N201: 51.26
B202: 2024-05-27 | C202: 12 | D202: 0.01 | E202: 12.01 | F202: 24.4 | G202: 6.68 | H202: 31.08 | I202: 26 | J202: 6.68 | K202: 32.68 | L202: 50 | M202: 1.18 | N202: 51.18
B203: 2024-05-28 | C203: 12 | D203: 0.01 | E203: 12.01 | F203: 24.4 | G203: 6.59 | H203: 30.99 | I203: 26 | J203: 6.59 | K203: 32.59 | L203: 50 | M203: 1.15 | N203: 51.15
B204: 2024-05-29 | C204: 12 | D204: 0.01 | E204: 12.01 | F204: 24.4 | G204: 6.46 | H204: 30.86 | I204: 26 | J204: 6.46 | K204: 32.46 | L204: 50 | M204: 1.14 | N204: 51.14
B205: 2024-05-30 | C205: 12 | D205: 0.01 | E205: 12.01 | F205: 24.4 | G205: 6.76 | H205: 31.16 | I205: 26 | J205: 6.76 | K205: 32.76 | L205: 50 | M205: 1.23 | N205: 51.23
B206: 2024-05-31 | C206: 12 | D206: 0.01 | E206: 12.01 | F206: 24.4 | G206: 6.77 | H206: 31.17 | I206: 26 | J206: 6.77 | K206: 32.77 | L206: 50 | M206: 1.26 | N206: 51.26
B207: 2024-06-01 | C207: 12 | D207: 0.01 | E207: 12.01 | F207: 24.4 | G207: 7.14 | H207: 31.54 | I207: 26 | J207: 7.14 | K207: 33.14 | L207: 50 | M207: 1.31 | N207: 51.31
B208: 2024-06-02 | C208: 12 | D208: 0.01 | E208: 12.01 | F208: 24.4 | G208: 6.9 | H208: 31.3 | I208: 26 | J208: 6.9 | K208: 32.9 | L208: 50 | M208: 1.27 | N208: 51.27
B209: 2024-06-03 | C209: 12 | D209: 0.01 | E209: 12.01 | F209: 24.4 | G209: 6.74 | H209: 31.14 | I209: 26 | J209: 6.74 | K209: 32.74 | L209: 50 | M209: 1.2 | N209: 51.2
B210: 2024-06-04 | C210: 12 | D210: 0.01 | E210: 12.01 | F210: 24.4 | G210: 6.69 | H210: 31.09 | I210: 26 | J210: 6.69 | K210: 32.69 | L210: 50 | M210: 1.18 | N210: 51.18
B211: 2024-06-05 | C211: 12 | D211: 0.01 | E211: 12.01 | F211: 24.4 | G211: 6.32 | H211: 30.72 | I211: 26 | J211: 6.32 | K211: 32.32 | L211: 50 | M211: 1.14 | N211: 51.14
... 25 more rows

Sheet TC-4 Price Relativity Inputs
B1: Cell colour meanings
B2: Input cell
B3: Calculation cell
B5: TC-4 Prices in FY25-27 Pricing Roadmap
B6: Note: The 'FY26' prices in column F below, are the 'Year 2' indicative prices in the FY25-27 Pricing Roadmap published by nbn on 1 May 2024.
B8: t−1 Tariff List Table References | C8: WAPC Charge Component | D8: Access Network | E8: Individual Price Control | F8: Year 2 Indicative Prices in Roadmap t − 1
B9: 1.1 Flat-Rate Offers | C9: AVC TC-4 25-100/5-20 Mbps | D9: FTTB, FTTN | E9: Other fixed line and fixed wireless TC-4 | F9: 58.93
B10: 1.1 Flat-Rate Offers | C10: AVC TC-4 50-100/20 Mbps | D10: FTTC | E10: Other fixed line and fixed wireless TC-4 | F10: 58.93
B11: 1.1 Flat-Rate Offers | C11: AVC TC-4 100/20 Mbps | D11: Fibre, HFC | E11: Other fixed line and fixed wireless TC-4 | F11: 58.93
B12: 1.1 Flat-Rate Offers | C12: AVC TC-4 200-250/8-20 Mbps | D12: Wireless | E12: Other fixed line and fixed wireless TC-4 | F12: 58.93
B13: 1.1 Flat-Rate Offers | C13: AVC TC-4 25-100/5-40 Mbps | D13: FTTB, FTTN | E13: Other fixed line and fixed wireless TC-4 | F13: 61.93
B14: 1.1 Flat-Rate Offers | C14: AVC TC-4 50-100/20-40 Mbps | D14: FTTC | E14: Other fixed line and fixed wireless TC-4 | F14: 61.93
B15: 1.1 Flat-Rate Offers | C15: AVC TC-4 100/40 Mbps | D15: Fibre, HFC | E15: Other fixed line and fixed wireless TC-4 | F15: 61.93
B16: 1.1 Flat-Rate Offers | C16: AVC TC-4 250/25 Mbps | D16: Fibre, HFC | E16: Other fixed line and fixed wireless TC-4 | F16: 63.93
B17: 1.1 Flat-Rate Offers | C17: AVC TC-4 400/10-40 Mbps | D17: Wireless | E17: Other fixed line and fixed wireless TC-4 | F17: 63.93
B18: 1.1 Flat-Rate Offers | C18: AVC TC-4 250/100 Mbps | D18: Fibre | E18: Other fixed line and fixed wireless TC-4 | F18: 76.5
B19: 1.1 Flat-Rate Offers | C19: AVC TC-4 500/200 Mbps | D19: Fibre | E19: Other fixed line and fixed wireless TC-4 | F19: 102
B20: 1.1 Flat-Rate Offers | C20: AVC TC-4 1000/50 Mbps | D20: Fibre, HFC | E20: Other fixed line and fixed wireless TC-4 | F20: 73.93
B21: 1.1 Flat-Rate Offers | C21: AVC TC-4 1000/400 Mbps | D21: Fibre | E21: Other fixed line and fixed wireless TC-4 | F21: 127.5
B22: 1.2 Flat-Rate Offers - Smart Places | C22: Smart Places - AVC TC-4 100/40 Mbps | D22: Fibre | E22: Other fixed line and fixed wireless TC-4 | F22: 61.93
B23: 1.2 Flat-Rate Offers - Smart Places | C23: Smart Places - AVC TC-4 250/100 Mbps | D23: Fibre | E23: Other fixed line and fixed wireless TC-4 | F23: 76.5
B24: 1.2 Flat-Rate Offers - Smart Places | C24: Smart Places - AVC TC-4 500/200 Mbps | D24: Fibre | E24: Other fixed line and fixed wireless TC-4 | F24: 102
B25: 1.2 Flat-Rate Offers - Smart Places | C25: Smart Places - AVC TC-4 1000/400 Mbps | D25: Fibre | E25: Other fixed line and fixed wireless TC-4 | F25: 127.5
B26: 1.3 Bundled TC-4 Offers | C26: AVC TC-4 12/1 Mbps (Basic Bundled Offer) | D26: Fibre, FTTB, FTTN, FTTC, HFC | E26: Other fixed line and fixed wireless TC-4 | F26: 12.01
B27: 1.3 Bundled TC-4 Offers | C27: AVC TC-4 12/1 Mbps | D27: Fibre, FTTB, FTTN, FTTC, HFC, Wireless | E27: Other fixed line and fixed wireless TC-4 | F27: 33.89
B28: 1.3 Bundled TC-4 Offers | C28: AVC TC-4 25/5 Mbps | D28: Fibre, FTTB, FTTN, FTTC, HFC, Wireless | E28: Entry level TC-4 | F28: 34.75
B29: 1.3 Bundled TC-4 Offers | C29: AVC TC-4 25/5-10 Mbps | D29: FTTB, FTTN | E29: Other fixed line and fixed wireless TC-4 | F29: 34.75
B30: 1.3 Bundled TC-4 Offers | C30: AVC TC-4 25/10 Mbps | D30: Fibre, FTTC, HFC | E30: Other fixed line and fixed wireless TC-4 | F30: 34.75
B31: 1.3 Bundled TC-4 Offers | C31: AVC TC-4 25-50/5-20 Mbps | D31: FTTB, FTTN | E31: Other fixed line and fixed wireless TC-4 | F31: 55.59
B32: 1.3 Bundled TC-4 Offers | C32: AVC TC-4 50/20 Mbps | D32: Fibre, FTTC, HFC | E32: Other fixed line and fixed wireless TC-4 | F32: 55.59
B33: 1.3 Bundled TC-4 Offers | C33: AVC TC-4 up to 100/up to 20 Mbps | D33: Wireless | E33: Other fixed line and fixed wireless TC-4 | F33: 55.59
B34: 1.4 Bundled TC-4 Offers: Smart Places | C34: Smart Places - AVC TC-4 25/10 Mbps | D34: Fibre | E34: Other fixed line and fixed wireless TC-4 | F34: 34.75
B35: 1.4 Bundled TC-4 Offers: Smart Places | C35: Smart Places - AVC TC-4 50/20 Mbps | D35: Fibre | E35: Other fixed line and fixed wireless TC-4 | F35: 55.59
B36: 1.5 Asymmetric AVC Offers in respect of the NBN Co Satellite Network | C36: AVC TC-4 12/1 Mbps | D36: Satellite | E36: Satellite AVC TC-4 | F36: 24
B37: 1.5 Asymmetric AVC Offers in respect of the NBN Co Satellite Network | C37: AVC TC-4 25/5 Mbps | D37: Satellite | E37: Satellite AVC TC-4 | F37: 27

Sheet CVC Inclusion Adjustment
B1: Cell colour meanings
B2: Input cell
B3: Calculation cell
B5: CVC TC-4 Inclusions Adjustment for 1 July 2025
B6: Note 1: The CVC Inclusions for the Previous Adjustment Date (PAD) are reflected in Table 1.3 (Bundled TC-4 Offers) of the FY25 Tariff List. Note 2: No CVC inclusion adjustment applies to any Bundled TC-4 Offer with a bandwidth profile of 12/1 Mbps in accordance with 2B.5.1(d)(1)(i) of the SAU.
C10: Mean Busy Hour Throughput (MBHT)
C11: Bundled TC-4 Offer Group (12 Mbps & 25 Mbps) | D11: Bundled TC-4 Offer Group (50 Mbps & Up to 100/Up to 20 Mbps)
B12: Previous Measurement Period (PMP)
B13: 2023-10-01 | C13: 1.51 | D13: 2.65
B14: 2023-11-01 | C14: 1.53 | D14: 2.69
B15: 2023-12-01 | C15: 1.48 | D15: 2.65
B16: 2024-01-01 | C16: 1.55 | D16: 2.74
B17: 2024-02-01 | C17: 1.5 | D17: 2.69
B18: 2024-03-01 | C18: 1.55 | D18: 2.78
B19: PMP (6 months) | C19: 1.52 | D19: 2.7
B20: Measurement Period (MP)
B21: 2024-10-01 | C21: 1.56 | D21: 2.76
B22: 2024-11-01 | C22: 1.59 | D22: 2.84
B23: 2024-12-01 | C23: 1.53 | D23: 2.74
B24: 2025-01-01 | C24: 1.6 | D24: 2.79
B25: 2025-02-01 | C25: 1.6 | D25: 2.85
B26: 2025-03-01 | C26: 1.66 | D26: 2.93
B27: MP (6 months) | C27: 1.59 | D27: 2.82
B29: CVC Inclusion Adjustment | C29: =(C27-C19)/2*0.5 -> 0.0175 | D29: =(D27-D19)/2*0.5 -> 0.03
B30: CVC Inclusion Previous Adjustment Date (PAD) | C30: 0.25 | D30: 3.63
B31: CVC Inclusion for 1 July 2025 | C31: =ROUND(C30+C29,2) -> 0.27 | D31: =ROUND(D30+D29,2) -> 3.66
